{"text_format":"1","workbook":"xlsx","n_sheets":3,"sheets":["Instructions","Print Version","Farms Operated Work Version"],"not_rendered":{"charts":0,"images":2,"macros":1,"external_links":0,"defined_names":7,"comments":0,"pivot_tables":0},"unopened":[],"bounds":{"document_bytes":16777216,"sheet_cells":100000,"rows_first":2000,"rows_last":500,"rows_between":2000,"halvings":0,"cell_chars":16384,"cell_head_chars":4096},"cells_cut":0,"cells_raw":0,"read":"whole","date_system":"1900"}

{"sheet":"Instructions","index":0,"n_rows":20,"n_cols":4,"rows_kept":20,"cut":false,"hidden":false,"merged":[]}
["Purpose of Farms Operated Schedule \"FOS\":"]
[null,"* Understand the full scope of the operation"]
[null,"* Calculate historical, present, and future income and expense on a per acre basis"]
[]
["Accurately filling out the FOS Spreadsheet:"]
[null,"* FOS spreadsheet will calculate each year's crop acres and full share acres."]
[null,"* List all tracts --> first and last years operated (full 4 digit year) --> total acres  --> crop acres --> percentage full share  "]
[null,"* Location is optional, but does assist the analyst when comparing operation's yields to county averages "]
[null,"* Note - Columns \"L-R\" contain formulas that should NOT be overridden"]
[null,"* Note - Column \"D\" contains a formula that should ONLY be overridden if the farm will NO longer be operated; formula will default to current year plus 1 otherwise"]
[null,null,"* If a farm's rental terms have changed (i.e. cash rent to crop share) than write in the last year on the current rental term and add a new line with the new rental term"]
[null,"* To accurately account for prior year's acreages, any tracts lost or sold will also need to be included for the years farmed."]
[null,"* Include any rental terms, cash rent amounts, etc. as a memo entry in the rental terms column."]
[]
["What if…"]
[null,"* You farm in an informal partnership?"]
[null,null,"* Example: Your customer farms 500ac with his brother and they split the ground 50/50, but they crop share it, 2/3-1/3, with their landlord"]
[null,null,null,"* Your customer's crop acres would be his 50% of the ground, which equates to 250ac"]
[null,null,null,"* He would then receive 2/3 (67%) share of those 250ac, therefore you would put the 67% in the percent full share column"]
[null,null,null,"* See example FOS for further detail"]

{"sheet":"Print Version","index":1,"n_rows":162,"n_cols":17,"rows_kept":162,"cut":false,"hidden":false,"merged":[[2,16,3,16],[9,0,9,1],[10,0,10,1],[11,0,11,1],[12,0,12,1],[8,0,8,1],[4,0,4,1],[5,0,5,1],[6,0,6,1],[7,0,7,1],[2,15,3,15],[2,0,3,1],[2,2,2,3],[2,7,2,13],[2,14,3,14],[27,0,27,1],[37,2,37,3],[37,5,37,6],[33,0,35,5],[13,0,13,1],[26,0,26,1],[15,0,15,1],[16,0,16,1],[17,0,17,1],[18,0,18,1],[19,0,19,1],[20,0,20,1],[21,0,21,1],[22,0,22,1],[23,0,23,1],[24,0,24,1],[25,0,25,1],[14,0,14,1],[41,14,43,14],[41,15,43,15],[41,16,43,16],[42,0,43,1],[42,2,42,3],[42,7,42,13],[37,7,37,13],[38,2,38,3],[38,5,38,6],[38,7,38,13],[54,0,54,1],[44,0,44,1],[45,0,45,1],[46,0,46,1],[47,0,47,1],[48,0,48,1],[49,0,49,1],[50,0,50,1],[51,0,51,1],[52,0,52,1],[53,0,53,1],[66,0,66,1],[55,0,55,1],[56,0,56,1],[57,0,57,1],[58,0,58,1],[59,0,59,1],[60,0,60,1],[61,0,61,1],[62,0,62,1],[63,0,63,1],[64,0,64,1],[65,0,65,1],[78,7,78,13],[79,2,79,3],[79,5,79,6],[79,7,79,13],[67,0,67,1],[68,0,68,1],[78,2,78,3],[78,5,78,6],[74,0,76,5],[85,0,85,1],[86,0,86,1],[87,0,87,1],[88,0,88,1],[89,0,89,1],[82,14,84,14],[82,15,84,15],[82,16,84,16],[83,0,84,1],[83,2,83,3],[83,7,83,13],[95,0,95,1],[96,0,96,1],[97,0,97,1],[98,0,98,1],[99,0,99,1],[90,0,90,1],[91,0,91,1],[92,0,92,1],[93,0,93,1],[94,0,94,1],[105,0,105,1],[106,0,106,1],[107,0,107,1],[108,0,108,1],[109,0,109,1],[100,0,100,1],[101,0,101,1],[102,0,102,1],[103,0,103,1],[104,0,104,1],[123,14,125,14],[123,15,125,15],[123,16,125,16],[124,0,125,1],[124,2,124,3],[124,7,124,13],[115,0,117,5],[119,2,119,3],[119,5,119,6],[119,7,119,13],[120,2,120,3],[120,5,120,6],[120,7,120,13],[131,0,131,1],[132,0,132,1],[133,0,133,1],[134,0,134,1],[135,0,135,1],[126,0,126,1],[127,0,127,1],[128,0,128,1],[129,0,129,1],[130,0,130,1],[141,0,141,1],[142,0,142,1],[143,0,143,1],[144,0,144,1],[145,0,145,1],[136,0,136,1],[137,0,137,1],[138,0,138,1],[139,0,139,1],[140,0,140,1],[156,0,158,5],[160,2,160,3],[160,5,160,6],[160,7,160,13],[161,2,161,3],[161,5,161,6],[161,7,161,13],[146,0,146,1],[147,0,147,1],[148,0,148,1],[149,0,149,1],[150,0,150,1]]}
[]
[]
["Owner/Farm Name",null,"Years Operated",null,"Total","Crop","Percentage","Full Share Acres",null,null,null,null,null,null,"Rental Terms (cash rent/ac, lease term, etc.)","Cash Rent Per Acre","Cash Rent Paid"]
[null,null,"First","Last","Acres","Acres","Full Share",{"$f":"+'Farms Operated Work Version'!H4","v":2016},{"$f":"H4+1","v":2017},2018,2019,2020,2021,2022]
[{"$f":"INDIRECT(\"'Farms Operated Work Version'!A5:B5\")","v":0},null,{"$f":"INDIRECT(\"'Farms Operated Work Version'!C5\")","v":0},{"$f":"INDIRECT(\"'Farms Operated Work Version'!D5\")","v":0},{"$f":"INDIRECT(\"'Farms Operated Work Version'!E5\")","v":0},{"$f":"INDIRECT(\"'Farms Operated Work Version'!F5\")","v":0},{"$f":"INDIRECT(\"'Farms Operated Work Version'!G5\")","v":0},{"$f":"IF($C5>0,IF(AND(H$4>=$C5,H$4<=$D5),$F5*$G5,0),0)","v":0},0,0,0,0,0,0,{"$f":"INDIRECT(\"'Farms Operated Work Version'!O5\")","v":0},{"$f":"INDIRECT(\"'Farms Operated Work Version'!P5\")","v":0},{"$f":"P5*N5","v":0}]
[{"$f":"INDIRECT(\"'Farms Operated Work Version'!A6:B6\")","v":0},null,{"$f":"INDIRECT(\"'Farms Operated Work Version'!C6\")","v":0},{"$f":"INDIRECT(\"'Farms Operated Work Version'!D6\")","v":0},{"$f":"INDIRECT(\"'Farms Operated Work Version'!E6\")","v":0},{"$f":"INDIRECT(\"'Farms Operated Work Version'!F6\")","v":0},{"$f":"INDIRECT(\"'Farms Operated Work Version'!G6\")","v":0},0,0,0,0,0,0,0,{"$f":"INDIRECT(\"'Farms Operated Work Version'!O6\")","v":0},{"$f":"INDIRECT(\"'Farms Operated Work Version'!P6\")","v":0},{"$f":"P6*N6","v":0}]
[{"$f":"INDIRECT(\"'Farms Operated Work Version'!A7:B7\")","v":0},null,{"$f":"INDIRECT(\"'Farms Operated Work Version'!C7\")","v":0},{"$f":"INDIRECT(\"'Farms Operated Work Version'!D7\")","v":0},{"$f":"INDIRECT(\"'Farms Operated Work Version'!E7\")","v":0},{"$f":"INDIRECT(\"'Farms Operated Work Version'!F7\")","v":0},{"$f":"INDIRECT(\"'Farms Operated Work Version'!G7\")","v":0},0,0,0,0,0,0,0,{"$f":"INDIRECT(\"'Farms Operated Work Version'!O7\")","v":0},{"$f":"INDIRECT(\"'Farms Operated Work Version'!P7\")","v":0},0]
[{"$f":"INDIRECT(\"'Farms Operated Work Version'!A8:B8\")","v":0},null,{"$f":"INDIRECT(\"'Farms Operated Work Version'!C8\")","v":0},{"$f":"INDIRECT(\"'Farms Operated Work Version'!D8\")","v":0},{"$f":"INDIRECT(\"'Farms Operated Work Version'!E8\")","v":0},{"$f":"INDIRECT(\"'Farms Operated Work Version'!F8\")","v":0},{"$f":"INDIRECT(\"'Farms Operated Work Version'!G8\")","v":0},0,0,0,0,0,0,0,{"$f":"INDIRECT(\"'Farms Operated Work Version'!O8\")","v":0},{"$f":"INDIRECT(\"'Farms Operated Work Version'!P8\")","v":0},0]
[{"$f":"INDIRECT(\"'Farms Operated Work Version'!A9:B9\")","v":0},null,{"$f":"INDIRECT(\"'Farms Operated Work Version'!C9\")","v":0},{"$f":"INDIRECT(\"'Farms Operated Work Version'!D9\")","v":0},{"$f":"INDIRECT(\"'Farms Operated Work Version'!E9\")","v":0},{"$f":"INDIRECT(\"'Farms Operated Work Version'!F9\")","v":0},{"$f":"INDIRECT(\"'Farms Operated Work Version'!G9\")","v":0},0,0,0,0,0,0,0,{"$f":"INDIRECT(\"'Farms Operated Work Version'!O9\")","v":0},{"$f":"INDIRECT(\"'Farms Operated Work Version'!P9\")","v":0},0]
[{"$f":"INDIRECT(\"'Farms Operated Work Version'!A10:B10\")","v":0},null,{"$f":"INDIRECT(\"'Farms Operated Work Version'!C10\")","v":0},{"$f":"INDIRECT(\"'Farms Operated Work Version'!D10\")","v":0},{"$f":"INDIRECT(\"'Farms Operated Work Version'!E10\")","v":0},{"$f":"INDIRECT(\"'Farms Operated Work Version'!F10\")","v":0},{"$f":"INDIRECT(\"'Farms Operated Work Version'!G10\")","v":0},0,0,0,0,0,0,0,{"$f":"INDIRECT(\"'Farms Operated Work Version'!O10\")","v":0},{"$f":"INDIRECT(\"'Farms Operated Work Version'!P10\")","v":0},0]
[{"$f":"INDIRECT(\"'Farms Operated Work Version'!A11:B11\")","v":0},null,{"$f":"INDIRECT(\"'Farms Operated Work Version'!C11\")","v":0},{"$f":"INDIRECT(\"'Farms Operated Work Version'!D11\")","v":0},{"$f":"INDIRECT(\"'Farms Operated Work Version'!E11\")","v":0},{"$f":"INDIRECT(\"'Farms Operated Work Version'!F11\")","v":0},{"$f":"INDIRECT(\"'Farms Operated Work Version'!G11\")","v":0},0,0,0,0,0,0,0,{"$f":"INDIRECT(\"'Farms Operated Work Version'!O11\")","v":0},{"$f":"INDIRECT(\"'Farms Operated Work Version'!P11\")","v":0},0]
[{"$f":"INDIRECT(\"'Farms Operated Work Version'!A12:B12\")","v":0},null,{"$f":"INDIRECT(\"'Farms Operated Work Version'!C12\")","v":0},{"$f":"INDIRECT(\"'Farms Operated Work Version'!D12\")","v":0},{"$f":"INDIRECT(\"'Farms Operated Work Version'!E12\")","v":0},{"$f":"INDIRECT(\"'Farms Operated Work Version'!F12\")","v":0},{"$f":"INDIRECT(\"'Farms Operated Work Version'!G12\")","v":0},0,0,0,0,0,0,0,{"$f":"INDIRECT(\"'Farms Operated Work Version'!O12\")","v":0},{"$f":"INDIRECT(\"'Farms Operated Work Version'!P12\")","v":0},0]
[{"$f":"INDIRECT(\"'Farms Operated Work Version'!A13:B13\")","v":0},null,{"$f":"INDIRECT(\"'Farms Operated Work Version'!C13\")","v":0},{"$f":"INDIRECT(\"'Farms Operated Work Version'!D13\")","v":0},{"$f":"INDIRECT(\"'Farms Operated Work Version'!E13\")","v":0},{"$f":"INDIRECT(\"'Farms Operated Work Version'!F13\")","v":0},{"$f":"INDIRECT(\"'Farms Operated Work Version'!G13\")","v":0},0,0,0,0,0,0,0,{"$f":"INDIRECT(\"'Farms Operated Work Version'!O13\")","v":0},{"$f":"INDIRECT(\"'Farms Operated Work Version'!P13\")","v":0},0]
[{"$f":"INDIRECT(\"'Farms Operated Work Version'!A14:B14\")","v":0},null,{"$f":"INDIRECT(\"'Farms Operated Work Version'!C14\")","v":0},{"$f":"INDIRECT(\"'Farms Operated Work Version'!D14\")","v":0},{"$f":"INDIRECT(\"'Farms Operated Work Version'!E14\")","v":0},{"$f":"INDIRECT(\"'Farms Operated Work Version'!F14\")","v":0},{"$f":"INDIRECT(\"'Farms Operated Work Version'!G14\")","v":0},0,0,0,0,0,0,0,{"$f":"INDIRECT(\"'Farms Operated Work Version'!O14\")","v":0},{"$f":"INDIRECT(\"'Farms Operated Work Version'!P14\")","v":0},0]
[{"$f":"INDIRECT(\"'Farms Operated Work Version'!A15:B15\")","v":0},null,{"$f":"INDIRECT(\"'Farms Operated Work Version'!C15\")","v":0},{"$f":"INDIRECT(\"'Farms Operated Work Version'!D15\")","v":0},{"$f":"INDIRECT(\"'Farms Operated Work Version'!E15\")","v":0},{"$f":"INDIRECT(\"'Farms Operated Work Version'!F15\")","v":0},{"$f":"INDIRECT(\"'Farms Operated Work Version'!G15\")","v":0},{"$f":"IF($C15>0,IF(AND(H$4>=$C15,H$4<=$D15),$F15*$G15,0),0)","v":0},0,0,0,0,0,0,{"$f":"INDIRECT(\"'Farms Operated Work Version'!O15\")","v":0},{"$f":"INDIRECT(\"'Farms Operated Work Version'!P15\")","v":0},0]
[{"$f":"INDIRECT(\"'Farms Operated Work Version'!A16:B16\")","v":0},null,{"$f":"INDIRECT(\"'Farms Operated Work Version'!C16\")","v":0},{"$f":"INDIRECT(\"'Farms Operated Work Version'!D16\")","v":0},{"$f":"INDIRECT(\"'Farms Operated Work Version'!E16\")","v":0},{"$f":"INDIRECT(\"'Farms Operated Work Version'!F16\")","v":0},{"$f":"INDIRECT(\"'Farms Operated Work Version'!G16\")","v":0},0,0,0,0,0,0,{"$f":"IF($C16>0,IF(AND(N$4>=$C16,N$4<=$D16),$F16*$G16,0),0)","v":0},{"$f":"INDIRECT(\"'Farms Operated Work Version'!O16\")","v":0},{"$f":"INDIRECT(\"'Farms Operated Work Version'!P16\")","v":0},0]
[{"$f":"INDIRECT(\"'Farms Operated Work Version'!A17:B17\")","v":0},null,{"$f":"INDIRECT(\"'Farms Operated Work Version'!C17\")","v":0},{"$f":"INDIRECT(\"'Farms Operated Work Version'!D17\")","v":0},{"$f":"INDIRECT(\"'Farms Operated Work Version'!E17\")","v":0},{"$f":"INDIRECT(\"'Farms Operated Work Version'!F17\")","v":0},{"$f":"INDIRECT(\"'Farms Operated Work Version'!G17\")","v":0},0,0,0,0,0,0,0,{"$f":"INDIRECT(\"'Farms Operated Work Version'!O17\")","v":0},{"$f":"INDIRECT(\"'Farms Operated Work Version'!P17\")","v":0},0]
[{"$f":"INDIRECT(\"'Farms Operated Work Version'!A18:B18\")","v":0},null,{"$f":"INDIRECT(\"'Farms Operated Work Version'!C18\")","v":0},{"$f":"INDIRECT(\"'Farms Operated Work Version'!D18\")","v":0},{"$f":"INDIRECT(\"'Farms Operated Work Version'!E18\")","v":0},{"$f":"INDIRECT(\"'Farms Operated Work Version'!F18\")","v":0},{"$f":"INDIRECT(\"'Farms Operated Work Version'!G18\")","v":0},0,0,0,0,0,0,0,{"$f":"INDIRECT(\"'Farms Operated Work Version'!O18\")","v":0},{"$f":"INDIRECT(\"'Farms Operated Work Version'!P18\")","v":0},0]
[{"$f":"INDIRECT(\"'Farms Operated Work Version'!A19:B19\")","v":0},null,{"$f":"INDIRECT(\"'Farms Operated Work Version'!C19\")","v":0},{"$f":"INDIRECT(\"'Farms Operated Work Version'!D19\")","v":0},{"$f":"INDIRECT(\"'Farms Operated Work Version'!E19\")","v":0},{"$f":"INDIRECT(\"'Farms Operated Work Version'!F19\")","v":0},{"$f":"INDIRECT(\"'Farms Operated Work Version'!G19\")","v":0},0,0,0,0,0,0,0,{"$f":"INDIRECT(\"'Farms Operated Work Version'!O19\")","v":0},{"$f":"INDIRECT(\"'Farms Operated Work Version'!P19\")","v":0},0]
[{"$f":"INDIRECT(\"'Farms Operated Work Version'!A20:B20\")","v":0},null,{"$f":"INDIRECT(\"'Farms Operated Work Version'!C20\")","v":0},{"$f":"INDIRECT(\"'Farms Operated Work Version'!D20\")","v":0},{"$f":"INDIRECT(\"'Farms Operated Work Version'!E20\")","v":0},{"$f":"INDIRECT(\"'Farms Operated Work Version'!F20\")","v":0},{"$f":"INDIRECT(\"'Farms Operated Work Version'!G20\")","v":0},0,0,0,0,0,0,0,{"$f":"INDIRECT(\"'Farms Operated Work Version'!O20\")","v":0},{"$f":"INDIRECT(\"'Farms Operated Work Version'!P20\")","v":0},0]
[{"$f":"INDIRECT(\"'Farms Operated Work Version'!A21:B21\")","v":0},null,{"$f":"INDIRECT(\"'Farms Operated Work Version'!C21\")","v":0},{"$f":"INDIRECT(\"'Farms Operated Work Version'!D21\")","v":0},{"$f":"INDIRECT(\"'Farms Operated Work Version'!E21\")","v":0},{"$f":"INDIRECT(\"'Farms Operated Work Version'!F21\")","v":0},{"$f":"INDIRECT(\"'Farms Operated Work Version'!G21\")","v":0},0,0,0,0,0,0,0,{"$f":"INDIRECT(\"'Farms Operated Work Version'!O21\")","v":0},{"$f":"INDIRECT(\"'Farms Operated Work Version'!P21\")","v":0},0]
[{"$f":"INDIRECT(\"'Farms Operated Work Version'!A22:B22\")","v":0},null,{"$f":"INDIRECT(\"'Farms Operated Work Version'!C22\")","v":0},{"$f":"INDIRECT(\"'Farms Operated Work Version'!D22\")","v":0},{"$f":"INDIRECT(\"'Farms Operated Work Version'!E22\")","v":0},{"$f":"INDIRECT(\"'Farms Operated Work Version'!F22\")","v":0},{"$f":"INDIRECT(\"'Farms Operated Work Version'!G22\")","v":0},0,0,0,0,0,0,0,{"$f":"INDIRECT(\"'Farms Operated Work Version'!O22\")","v":0},{"$f":"INDIRECT(\"'Farms Operated Work Version'!P22\")","v":0},0]
[{"$f":"INDIRECT(\"'Farms Operated Work Version'!A23:B23\")","v":0},null,{"$f":"INDIRECT(\"'Farms Operated Work Version'!C23\")","v":0},{"$f":"INDIRECT(\"'Farms Operated Work Version'!D23\")","v":0},{"$f":"INDIRECT(\"'Farms Operated Work Version'!E23\")","v":0},{"$f":"INDIRECT(\"'Farms Operated Work Version'!F23\")","v":0},{"$f":"INDIRECT(\"'Farms Operated Work Version'!G23\")","v":0},0,0,0,0,0,0,0,{"$f":"INDIRECT(\"'Farms Operated Work Version'!O23\")","v":0},{"$f":"INDIRECT(\"'Farms Operated Work Version'!P23\")","v":0},0]
[{"$f":"INDIRECT(\"'Farms Operated Work Version'!A24:B24\")","v":0},null,{"$f":"INDIRECT(\"'Farms Operated Work Version'!C24\")","v":0},{"$f":"INDIRECT(\"'Farms Operated Work Version'!D24\")","v":0},{"$f":"INDIRECT(\"'Farms Operated Work Version'!E24\")","v":0},{"$f":"INDIRECT(\"'Farms Operated Work Version'!F24\")","v":0},{"$f":"INDIRECT(\"'Farms Operated Work Version'!G24\")","v":0},0,0,0,0,0,0,0,{"$f":"INDIRECT(\"'Farms Operated Work Version'!O24\")","v":0},{"$f":"INDIRECT(\"'Farms Operated Work Version'!P24\")","v":0},0]
[{"$f":"INDIRECT(\"'Farms Operated Work Version'!A25:B25\")","v":0},null,{"$f":"INDIRECT(\"'Farms Operated Work Version'!C25\")","v":0},{"$f":"INDIRECT(\"'Farms Operated Work Version'!D25\")","v":0},{"$f":"INDIRECT(\"'Farms Operated Work Version'!E25\")","v":0},{"$f":"INDIRECT(\"'Farms Operated Work Version'!F25\")","v":0},{"$f":"INDIRECT(\"'Farms Operated Work Version'!G25\")","v":0},0,0,0,0,0,0,0,{"$f":"INDIRECT(\"'Farms Operated Work Version'!O25\")","v":0},{"$f":"INDIRECT(\"'Farms Operated Work Version'!P25\")","v":0},0]
[{"$f":"INDIRECT(\"'Farms Operated Work Version'!A26:B26\")","v":0},null,{"$f":"INDIRECT(\"'Farms Operated Work Version'!C26\")","v":0},{"$f":"INDIRECT(\"'Farms Operated Work Version'!D26\")","v":0},{"$f":"INDIRECT(\"'Farms Operated Work Version'!E26\")","v":0},{"$f":"INDIRECT(\"'Farms Operated Work Version'!F26\")","v":0},{"$f":"INDIRECT(\"'Farms Operated Work Version'!G26\")","v":0},0,0,0,0,0,0,0,{"$f":"INDIRECT(\"'Farms Operated Work Version'!O26\")","v":""},{"$f":"INDIRECT(\"'Farms Operated Work Version'!P26\")","v":0},0]
[{"$f":"INDIRECT(\"'Farms Operated Work Version'!A27:B27\")","v":0},null,{"$f":"INDIRECT(\"'Farms Operated Work Version'!C27\")","v":0},{"$f":"INDIRECT(\"'Farms Operated Work Version'!D27\")","v":0},{"$f":"INDIRECT(\"'Farms Operated Work Version'!E27\")","v":0},{"$f":"INDIRECT(\"'Farms Operated Work Version'!F27\")","v":0},{"$f":"INDIRECT(\"'Farms Operated Work Version'!G27\")","v":0},0,0,0,0,0,0,0,{"$f":"INDIRECT(\"'Farms Operated Work Version'!O27\")","v":0},{"$f":"INDIRECT(\"'Farms Operated Work Version'!P27\")","v":0},0]
[{"$f":"INDIRECT(\"'Farms Operated Work Version'!A28:B28\")","v":0},null,{"$f":"INDIRECT(\"'Farms Operated Work Version'!C28\")","v":0},{"$f":"INDIRECT(\"'Farms Operated Work Version'!D28\")","v":0},{"$f":"INDIRECT(\"'Farms Operated Work Version'!E28\")","v":0},{"$f":"INDIRECT(\"'Farms Operated Work Version'!F28\")","v":0},{"$f":"INDIRECT(\"'Farms Operated Work Version'!G28\")","v":0},0,0,0,0,0,0,0,{"$f":"INDIRECT(\"'Farms Operated Work Version'!O28\")","v":0},{"$f":"INDIRECT(\"'Farms Operated Work Version'!P28\")","v":0},0]
[null,null,null,null,null,"TOTAL CROP ACRES",null,{"$f":"'Farms Operated Work Version'!$H$37","v":0},{"$f":"'Farms Operated Work Version'!$I$37","v":0},{"$f":"'Farms Operated Work Version'!$J$37","v":0},{"$f":"'Farms Operated Work Version'!$K$37","v":0},{"$f":"'Farms Operated Work Version'!$L$37","v":0},{"$f":"'Farms Operated Work Version'!$M$37","v":0},{"$f":"'Farms Operated Work Version'!$N$37","v":0},null,"Total Rent Paid:",{"$f":"'Farms Operated Work Version'!$Q$37","v":0}]
[null,null,null,null,null,"TOTAL FULL SHARE ACRES",null,{"$f":"'Farms Operated Work Version'!$H$38","v":0},{"$f":"'Farms Operated Work Version'!$I$38","v":0},{"$f":"'Farms Operated Work Version'!$J$38","v":0},{"$f":"'Farms Operated Work Version'!$K$38","v":0},{"$f":"'Farms Operated Work Version'!$L$38","v":0},{"$f":"'Farms Operated Work Version'!$M$38","v":0},{"$f":"'Farms Operated Work Version'!$N$38","v":0},null,"Avg. Rent Per Acre:",{"$f":"IFERROR(Q29/N33, \"\")","v":""}]
["COMMENTS",null,null,null,null,null,null,null,null,null,null,null,"TOTAL SHARE ACRES",{"$f":"'Farms Operated Work Version'!$N$39","v":0}]
["(Explain Flex Rent Lease)",null,null,null,null,null,null,null,null,null,null,null,"TOTAL OWNED ACRES",{"$f":"'Farms Operated Work Version'!$N$40","v":0}]
["(Explain Custome Hire Agreement)",null,null,null,null,null,null,null,null,null,null,null,"TOTAL CASH RENT ACRES",{"$f":"'Farms Operated Work Version'!$N$41","v":0}]
[{"$f":"'Farms Operated Work Version'!A41","v":"COMMENTS"},null,null,null,null,null,null,null,null,null,null,null,"CASH RENT:OWNED RATIO",{"$f":"IFERROR(N33/N32,\"\")","v":""}]
[]
[]
[]
["Loan Entity","Assn. #","Branch #",null,null,"CIF Number",null,"Borrower Name",null,null,null,null,null,null,"Date"]
["FCS",14,{"$f":"number","v":0},null,null,null,null,{"$f":"name","v":0},null,null,null,null,null,null,{"$f":"date","v":"00:00:00"}]
[]
[]
[null,null,null,null,null,null,null,null,null,null,null,null,null,null,"Rental Terms (cash rent/ac, lease term, etc.)","Cash Rent Per Acre","Cash Rent Paid"]
["Owner/Farm Name",null,"Years Operated",null,"Total","Crop","Percentage","Full Share Acres"]
[null,null,"First","Last","Acres","Acres","Full Share",{"$f":"H4","v":2016},2017,2018,2019,2020,2021,2022]
[{"$f":"IF(INDIRECT(\"'Farms Operated Work Version'!A29:B29\")=\"COMMENTS\",\"\",IF(INDIRECT(\"'Farms Operated Work Version'!A29:B29\")=\"Loan Entity\",\"\",IF(INDIRECT(\"'Farms Operated Work Version'!A29:B29\")=\"FCS\",\"\",IF(INDIRECT(\"'Farms Operated Work Version'!A29:B29\")=\"(Explain Flex Rent Lease)\",\"\",IF(INDIRECT(\"'Farms Operated Work Version'!A29:B29\")=\"(Explain Custom Hire Agreement)\",\"\",IF(INDIRECT(\"'Farms Operated Work Version'!A29\")=comments,\"\",INDIRECT(\"'Farms Operated Work Version'!A29:B29\")))))))","v":0},null,{"$f":"IF(INDIRECT(\"'Farms Operated Work Version'!C29\")=\"Branch #\",\"\",IF(INDIRECT(\"'Farms Operated Work Version'!C29\")=number,\"\",INDIRECT(\"'Farms Operated Work Version'!C29\")))","v":""},{"$f":"INDIRECT(\"'Farms Operated Work Version'!D29\")","v":0},{"$f":"INDIRECT(\"'Farms Operated Work Version'!E29\")","v":0},{"$f":"IF(INDIRECT(\"'Farms Operated Work Version'!F29\")=\"TOTAL CROP ACRES\",\"\",IF(INDIRECT(\"'Farms Operated Work Version'!F29\")=\"TOTAL FULL SHARE ACRES\",\"\",IF(INDIRECT(\"'Farms Operated Work Version'!F29\")=\"CIF Number\",\"\",INDIRECT(\"'Farms Operated Work Version'!F29\"))))","v":0},{"$f":"IF(INDIRECT(\"'Farms Operated Work Version'!G29\")=\"CIF Number\",\"\",INDIRECT(\"'Farms Operated Work Version'!G29\"))","v":0},{"$f":"IF($C45>0,IF(AND(H$4>=$C45,H$4<=$D45),$F45*$G45,0),0)","v":0},0,0,0,0,0,0,{"$f":"IF(INDIRECT(\"'Farms Operated Work Version'!O29\")=\"Date\",\"\",IF(INDIRECT(\"'Farms Operated Work Version'!O29\")=date,\"\",INDIRECT(\"'Farms Operated Work Version'!O29\")))","v":""},{"$f":"IF(INDIRECT(\"'Farms Operated Work Version'!P29\")=\"Total Rent Paid:\",\"\",IF(INDIRECT(\"'Farms Operated Work Version'!P29\")=\"Avg. Rent Per Acre:\",\"\",INDIRECT(\"'Farms Operated Work Version'!P29\")))","v":0},{"$f":"IFERROR(P45*N45,\"\")","v":0}]
[{"$f":"IF(INDIRECT(\"'Farms Operated Work Version'!A30:B30\")=\"COMMENTS\",\"\",IF(INDIRECT(\"'Farms Operated Work Version'!A30:B30\")=\"Loan Entity\",\"\",IF(INDIRECT(\"'Farms Operated Work Version'!A30:B30\")=\"FCS\",\"\",IF(INDIRECT(\"'Farms Operated Work Version'!A30:B30\")=\"(Explain Flex Rent Lease)\",\"\",IF(INDIRECT(\"'Farms Operated Work Version'!A30:B30\")=\"(Explain Custom Hire Agreement)\",\"\",IF(INDIRECT(\"'Farms Operated Work Version'!A30\")=comments,\"\",INDIRECT(\"'Farms Operated Work Version'!A30:B30\")))))))","v":0},null,{"$f":"IF(INDIRECT(\"'Farms Operated Work Version'!C30\")=\"Branch #\",\"\",IF(INDIRECT(\"'Farms Operated Work Version'!C30\")=number,\"\",INDIRECT(\"'Farms Operated Work Version'!C30\")))","v":""},{"$f":"INDIRECT(\"'Farms Operated Work Version'!D30\")","v":0},{"$f":"INDIRECT(\"'Farms Operated Work Version'!E30\")","v":0},{"$f":"IF(INDIRECT(\"'Farms Operated Work Version'!F30\")=\"TOTAL CROP ACRES\",\"\",IF(INDIRECT(\"'Farms Operated Work Version'!F30\")=\"TOTAL FULL SHARE ACRES\",\"\",IF(INDIRECT(\"'Farms Operated Work Version'!F30\")=\"CIF Number\",\"\",INDIRECT(\"'Farms Operated Work Version'!F30\"))))","v":0},{"$f":"IF(INDIRECT(\"'Farms Operated Work Version'!G30\")=\"CIF Number\",\"\",INDIRECT(\"'Farms Operated Work Version'!G30\"))","v":0},0,0,0,0,0,0,0,{"$f":"IF(INDIRECT(\"'Farms Operated Work Version'!O30\")=\"Date\",\"\",IF(INDIRECT(\"'Farms Operated Work Version'!O30\")=date,\"\",INDIRECT(\"'Farms Operated Work Version'!O30\")))","v":""},{"$f":"IF(INDIRECT(\"'Farms Operated Work Version'!P30\")=\"Total Rent Paid:\",\"\",IF(INDIRECT(\"'Farms Operated Work Version'!P30\")=\"Avg. Rent Per Acre:\",\"\",INDIRECT(\"'Farms Operated Work Version'!P30\")))","v":0},{"$f":"IFERROR(P46*N46,\"\")","v":0}]
[{"$f":"IF(INDIRECT(\"'Farms Operated Work Version'!A31:B31\")=\"COMMENTS\",\"\",IF(INDIRECT(\"'Farms Operated Work Version'!A31:B31\")=\"Loan Entity\",\"\",IF(INDIRECT(\"'Farms Operated Work Version'!A31:B31\")=\"FCS\",\"\",IF(INDIRECT(\"'Farms Operated Work Version'!A31:B31\")=\"(Explain Flex Rent Lease)\",\"\",IF(INDIRECT(\"'Farms Operated Work Version'!A31:B31\")=\"(Explain Custom Hire Agreement)\",\"\",IF(INDIRECT(\"'Farms Operated Work Version'!A31\")=comments,\"\",INDIRECT(\"'Farms Operated Work Version'!A31:B31\")))))))","v":0},null,{"$f":"IF(INDIRECT(\"'Farms Operated Work Version'!C31\")=\"Branch #\",\"\",IF(INDIRECT(\"'Farms Operated Work Version'!C31\")=number,\"\",INDIRECT(\"'Farms Operated Work Version'!C31\")))","v":""},{"$f":"INDIRECT(\"'Farms Operated Work Version'!D31\")","v":0},{"$f":"INDIRECT(\"'Farms Operated Work Version'!E31\")","v":0},{"$f":"IF(INDIRECT(\"'Farms Operated Work Version'!F31\")=\"TOTAL CROP ACRES\",\"\",IF(INDIRECT(\"'Farms Operated Work Version'!F31\")=\"TOTAL FULL SHARE ACRES\",\"\",IF(INDIRECT(\"'Farms Operated Work Version'!F31\")=\"CIF Number\",\"\",INDIRECT(\"'Farms Operated Work Version'!F31\"))))","v":0},{"$f":"IF(INDIRECT(\"'Farms Operated Work Version'!G31\")=\"CIF Number\",\"\",INDIRECT(\"'Farms Operated Work Version'!G31\"))","v":0},0,0,0,0,0,0,0,{"$f":"IF(INDIRECT(\"'Farms Operated Work Version'!O31\")=\"Date\",\"\",IF(INDIRECT(\"'Farms Operated Work Version'!O31\")=date,\"\",INDIRECT(\"'Farms Operated Work Version'!O31\")))","v":""},{"$f":"IF(INDIRECT(\"'Farms Operated Work Version'!P31\")=\"Total Rent Paid:\",\"\",IF(INDIRECT(\"'Farms Operated Work Version'!P31\")=\"Avg. Rent Per Acre:\",\"\",INDIRECT(\"'Farms Operated Work Version'!P31\")))","v":0},0]
[{"$f":"IF(INDIRECT(\"'Farms Operated Work Version'!A32:B32\")=\"COMMENTS\",\"\",IF(INDIRECT(\"'Farms Operated Work Version'!A32:B32\")=\"Loan Entity\",\"\",IF(INDIRECT(\"'Farms Operated Work Version'!A32:B32\")=\"FCS\",\"\",IF(INDIRECT(\"'Farms Operated Work Version'!A32:B32\")=\"(Explain Flex Rent Lease)\",\"\",IF(INDIRECT(\"'Farms Operated Work Version'!A32:B32\")=\"(Explain Custom Hire Agreement)\",\"\",IF(INDIRECT(\"'Farms Operated Work Version'!A32\")=comments,\"\",INDIRECT(\"'Farms Operated Work Version'!A32:B32\")))))))","v":0},null,{"$f":"IF(INDIRECT(\"'Farms Operated Work Version'!C32\")=\"Branch #\",\"\",IF(INDIRECT(\"'Farms Operated Work Version'!C32\")=number,\"\",INDIRECT(\"'Farms Operated Work Version'!C32\")))","v":""},{"$f":"INDIRECT(\"'Farms Operated Work Version'!D32\")","v":0},{"$f":"INDIRECT(\"'Farms Operated Work Version'!E32\")","v":0},{"$f":"IF(INDIRECT(\"'Farms Operated Work Version'!F32\")=\"TOTAL CROP ACRES\",\"\",IF(INDIRECT(\"'Farms Operated Work Version'!F32\")=\"TOTAL FULL SHARE ACRES\",\"\",IF(INDIRECT(\"'Farms Operated Work Version'!F32\")=\"CIF Number\",\"\",INDIRECT(\"'Farms Operated Work Version'!F32\"))))","v":0},{"$f":"IF(INDIRECT(\"'Farms Operated Work Version'!G32\")=\"CIF Number\",\"\",INDIRECT(\"'Farms Operated Work Version'!G32\"))","v":0},0,0,0,0,0,0,0,{"$f":"IF(INDIRECT(\"'Farms Operated Work Version'!O32\")=\"Date\",\"\",IF(INDIRECT(\"'Farms Operated Work Version'!O32\")=date,\"\",INDIRECT(\"'Farms Operated Work Version'!O32\")))","v":""},{"$f":"IF(INDIRECT(\"'Farms Operated Work Version'!P32\")=\"Total Rent Paid:\",\"\",IF(INDIRECT(\"'Farms Operated Work Version'!P32\")=\"Avg. Rent Per Acre:\",\"\",INDIRECT(\"'Farms Operated Work Version'!P32\")))","v":0},0]
[{"$f":"IF(INDIRECT(\"'Farms Operated Work Version'!A33:B33\")=\"COMMENTS\",\"\",IF(INDIRECT(\"'Farms Operated Work Version'!A33:B33\")=\"Loan Entity\",\"\",IF(INDIRECT(\"'Farms Operated Work Version'!A33:B33\")=\"FCS\",\"\",IF(INDIRECT(\"'Farms Operated Work Version'!A33:B33\")=\"(Explain Flex Rent Lease)\",\"\",IF(INDIRECT(\"'Farms Operated Work Version'!A33:B33\")=\"(Explain Custom Hire Agreement)\",\"\",IF(INDIRECT(\"'Farms Operated Work Version'!A33\")=comments,\"\",INDIRECT(\"'Farms Operated Work Version'!A33:B33\")))))))","v":0},null,{"$f":"IF(INDIRECT(\"'Farms Operated Work Version'!C33\")=\"Branch #\",\"\",IF(INDIRECT(\"'Farms Operated Work Version'!C33\")=number,\"\",INDIRECT(\"'Farms Operated Work Version'!C33\")))","v":""},{"$f":"INDIRECT(\"'Farms Operated Work Version'!D33\")","v":0},{"$f":"INDIRECT(\"'Farms Operated Work Version'!E33\")","v":0},{"$f":"IF(INDIRECT(\"'Farms Operated Work Version'!F33\")=\"TOTAL CROP ACRES\",\"\",IF(INDIRECT(\"'Farms Operated Work Version'!F33\")=\"TOTAL FULL SHARE ACRES\",\"\",IF(INDIRECT(\"'Farms Operated Work Version'!F33\")=\"CIF Number\",\"\",INDIRECT(\"'Farms Operated Work Version'!F33\"))))","v":0},{"$f":"IF(INDIRECT(\"'Farms Operated Work Version'!G33\")=\"CIF Number\",\"\",INDIRECT(\"'Farms Operated Work Version'!G33\"))","v":0},0,0,0,0,0,0,0,{"$f":"IF(INDIRECT(\"'Farms Operated Work Version'!O33\")=\"Date\",\"\",IF(INDIRECT(\"'Farms Operated Work Version'!O33\")=date,\"\",INDIRECT(\"'Farms Operated Work Version'!O33\")))","v":""},{"$f":"IF(INDIRECT(\"'Farms Operated Work Version'!P33\")=\"Total Rent Paid:\",\"\",IF(INDIRECT(\"'Farms Operated Work Version'!P33\")=\"Avg. Rent Per Acre:\",\"\",INDIRECT(\"'Farms Operated Work Version'!P33\")))","v":0},0]
[{"$f":"IF(INDIRECT(\"'Farms Operated Work Version'!A34:B34\")=\"COMMENTS\",\"\",IF(INDIRECT(\"'Farms Operated Work Version'!A34:B34\")=\"Loan Entity\",\"\",IF(INDIRECT(\"'Farms Operated Work Version'!A34:B34\")=\"FCS\",\"\",IF(INDIRECT(\"'Farms Operated Work Version'!A34:B34\")=\"(Explain Flex Rent Lease)\",\"\",IF(INDIRECT(\"'Farms Operated Work Version'!A34:B34\")=\"(Explain Custom Hire Agreement)\",\"\",IF(INDIRECT(\"'Farms Operated Work Version'!A34\")=comments,\"\",INDIRECT(\"'Farms Operated Work Version'!A34:B34\")))))))","v":0},null,{"$f":"IF(INDIRECT(\"'Farms Operated Work Version'!C34\")=\"Branch #\",\"\",IF(INDIRECT(\"'Farms Operated Work Version'!C34\")=number,\"\",INDIRECT(\"'Farms Operated Work Version'!C34\")))","v":""},{"$f":"INDIRECT(\"'Farms Operated Work Version'!D34\")","v":0},{"$f":"INDIRECT(\"'Farms Operated Work Version'!E34\")","v":0},{"$f":"IF(INDIRECT(\"'Farms Operated Work Version'!F34\")=\"TOTAL CROP ACRES\",\"\",IF(INDIRECT(\"'Farms Operated Work Version'!F34\")=\"TOTAL FULL SHARE ACRES\",\"\",IF(INDIRECT(\"'Farms Operated Work Version'!F34\")=\"CIF Number\",\"\",INDIRECT(\"'Farms Operated Work Version'!F34\"))))","v":0},{"$f":"IF(INDIRECT(\"'Farms Operated Work Version'!G34\")=\"CIF Number\",\"\",INDIRECT(\"'Farms Operated Work Version'!G34\"))","v":0},0,0,0,0,0,0,0,{"$f":"IF(INDIRECT(\"'Farms Operated Work Version'!O34\")=\"Date\",\"\",IF(INDIRECT(\"'Farms Operated Work Version'!O34\")=date,\"\",INDIRECT(\"'Farms Operated Work Version'!O34\")))","v":""},{"$f":"IF(INDIRECT(\"'Farms Operated Work Version'!P34\")=\"Total Rent Paid:\",\"\",IF(INDIRECT(\"'Farms Operated Work Version'!P34\")=\"Avg. Rent Per Acre:\",\"\",INDIRECT(\"'Farms Operated Work Version'!P34\")))","v":0},0]
[{"$f":"IF(INDIRECT(\"'Farms Operated Work Version'!A35:B35\")=\"COMMENTS\",\"\",IF(INDIRECT(\"'Farms Operated Work Version'!A35:B35\")=\"Loan Entity\",\"\",IF(INDIRECT(\"'Farms Operated Work Version'!A35:B35\")=\"FCS\",\"\",IF(INDIRECT(\"'Farms Operated Work Version'!A35:B35\")=\"(Explain Flex Rent Lease)\",\"\",IF(INDIRECT(\"'Farms Operated Work Version'!A35:B35\")=\"(Explain Custom Hire Agreement)\",\"\",IF(INDIRECT(\"'Farms Operated Work Version'!A35\")=comments,\"\",INDIRECT(\"'Farms Operated Work Version'!A35:B35\")))))))","v":0},null,{"$f":"IF(INDIRECT(\"'Farms Operated Work Version'!C35\")=\"Branch #\",\"\",IF(INDIRECT(\"'Farms Operated Work Version'!C35\")=number,\"\",INDIRECT(\"'Farms Operated Work Version'!C35\")))","v":""},{"$f":"INDIRECT(\"'Farms Operated Work Version'!D35\")","v":0},{"$f":"INDIRECT(\"'Farms Operated Work Version'!E35\")","v":0},{"$f":"IF(INDIRECT(\"'Farms Operated Work Version'!F35\")=\"TOTAL CROP ACRES\",\"\",IF(INDIRECT(\"'Farms Operated Work Version'!F35\")=\"TOTAL FULL SHARE ACRES\",\"\",IF(INDIRECT(\"'Farms Operated Work Version'!F35\")=\"CIF Number\",\"\",INDIRECT(\"'Farms Operated Work Version'!F35\"))))","v":0},{"$f":"IF(INDIRECT(\"'Farms Operated Work Version'!G35\")=\"CIF Number\",\"\",INDIRECT(\"'Farms Operated Work Version'!G35\"))","v":0},0,0,0,0,0,0,0,{"$f":"IF(INDIRECT(\"'Farms Operated Work Version'!O35\")=\"Date\",\"\",IF(INDIRECT(\"'Farms Operated Work Version'!O35\")=date,\"\",INDIRECT(\"'Farms Operated Work Version'!O35\")))","v":""},{"$f":"IF(INDIRECT(\"'Farms Operated Work Version'!P35\")=\"Total Rent Paid:\",\"\",IF(INDIRECT(\"'Farms Operated Work Version'!P35\")=\"Avg. Rent Per Acre:\",\"\",INDIRECT(\"'Farms Operated Work Version'!P35\")))","v":0},0]
[{"$f":"IF(INDIRECT(\"'Farms Operated Work Version'!A36:B36\")=\"COMMENTS\",\"\",IF(INDIRECT(\"'Farms Operated Work Version'!A36:B36\")=\"Loan Entity\",\"\",IF(INDIRECT(\"'Farms Operated Work Version'!A36:B36\")=\"FCS\",\"\",IF(INDIRECT(\"'Farms Operated Work Version'!A36:B36\")=\"(Explain Flex Rent Lease)\",\"\",IF(INDIRECT(\"'Farms Operated Work Version'!A36:B36\")=\"(Explain Custom Hire Agreement)\",\"\",IF(INDIRECT(\"'Farms Operated Work Version'!A36\")=comments,\"\",INDIRECT(\"'Farms Operated Work Version'!A36:B36\")))))))","v":0},null,{"$f":"IF(INDIRECT(\"'Farms Operated Work Version'!C36\")=\"Branch #\",\"\",IF(INDIRECT(\"'Farms Operated Work Version'!C36\")=number,\"\",INDIRECT(\"'Farms Operated Work Version'!C36\")))","v":""},{"$f":"INDIRECT(\"'Farms Operated Work Version'!D36\")","v":0},{"$f":"INDIRECT(\"'Farms Operated Work Version'!E36\")","v":0},{"$f":"IF(INDIRECT(\"'Farms Operated Work Version'!F36\")=\"TOTAL CROP ACRES\",\"\",IF(INDIRECT(\"'Farms Operated Work Version'!F36\")=\"TOTAL FULL SHARE ACRES\",\"\",IF(INDIRECT(\"'Farms Operated Work Version'!F36\")=\"CIF Number\",\"\",INDIRECT(\"'Farms Operated Work Version'!F36\"))))","v":0},{"$f":"IF(INDIRECT(\"'Farms Operated Work Version'!G36\")=\"CIF Number\",\"\",INDIRECT(\"'Farms Operated Work Version'!G36\"))","v":0},0,0,0,0,0,0,0,{"$f":"IF(INDIRECT(\"'Farms Operated Work Version'!O36\")=\"Date\",\"\",IF(INDIRECT(\"'Farms Operated Work Version'!O36\")=date,\"\",INDIRECT(\"'Farms Operated Work Version'!O36\")))","v":""},{"$f":"IF(INDIRECT(\"'Farms Operated Work Version'!P36\")=\"Total Rent Paid:\",\"\",IF(INDIRECT(\"'Farms Operated Work Version'!P36\")=\"Avg. Rent Per Acre:\",\"\",INDIRECT(\"'Farms Operated Work Version'!P36\")))","v":0},0]
[{"$f":"IF(INDIRECT(\"'Farms Operated Work Version'!A37:B37\")=\"COMMENTS\",\"\",IF(INDIRECT(\"'Farms Operated Work Version'!A37:B37\")=\"Loan Entity\",\"\",IF(INDIRECT(\"'Farms Operated Work Version'!A37:B37\")=\"FCS\",\"\",IF(INDIRECT(\"'Farms Operated Work Version'!A37:B37\")=\"(Explain Flex Rent Lease)\",\"\",IF(INDIRECT(\"'Farms Operated Work Version'!A37:B37\")=\"(Explain Custom Hire Agreement)\",\"\",IF(INDIRECT(\"'Farms Operated Work Version'!A37\")=comments,\"\",INDIRECT(\"'Farms Operated Work Version'!A37:B37\")))))))","v":0},null,{"$f":"IF(INDIRECT(\"'Farms Operated Work Version'!C37\")=\"Branch #\",\"\",IF(INDIRECT(\"'Farms Operated Work Version'!C37\")=number,\"\",INDIRECT(\"'Farms Operated Work Version'!C37\")))","v":""},{"$f":"INDIRECT(\"'Farms Operated Work Version'!D37\")","v":0},{"$f":"INDIRECT(\"'Farms Operated Work Version'!E37\")","v":0},{"$f":"IF(INDIRECT(\"'Farms Operated Work Version'!F37\")=\"TOTAL CROP ACRES\",\"\",IF(INDIRECT(\"'Farms Operated Work Version'!F37\")=\"TOTAL FULL SHARE ACRES\",\"\",IF(INDIRECT(\"'Farms Operated Work Version'!F37\")=\"CIF Number\",\"\",INDIRECT(\"'Farms Operated Work Version'!F37\"))))","v":""},{"$f":"IF(INDIRECT(\"'Farms Operated Work Version'!G37\")=\"CIF Number\",\"\",INDIRECT(\"'Farms Operated Work Version'!G37\"))","v":0},0,0,0,0,0,0,0,{"$f":"IF(INDIRECT(\"'Farms Operated Work Version'!O37\")=\"Date\",\"\",IF(INDIRECT(\"'Farms Operated Work Version'!O37\")=date,\"\",INDIRECT(\"'Farms Operated Work Version'!O37\")))","v":""},{"$f":"IF(INDIRECT(\"'Farms Operated Work Version'!P37\")=\"Total Rent Paid:\",\"\",IF(INDIRECT(\"'Farms Operated Work Version'!P37\")=\"Avg. Rent Per Acre:\",\"\",INDIRECT(\"'Farms Operated Work Version'!P37\")))","v":""},""]
[{"$f":"IF(INDIRECT(\"'Farms Operated Work Version'!A38:B38\")=\"COMMENTS\",\"\",IF(INDIRECT(\"'Farms Operated Work Version'!A38:B38\")=\"Loan Entity\",\"\",IF(INDIRECT(\"'Farms Operated Work Version'!A38:B38\")=\"FCS\",\"\",IF(INDIRECT(\"'Farms Operated Work Version'!A38:B38\")=\"(Explain Flex Rent Lease)\",\"\",IF(INDIRECT(\"'Farms Operated Work Version'!A38:B38\")=\"(Explain Custom Hire Agreement)\",\"\",IF(INDIRECT(\"'Farms Operated Work Version'!A38\")=comments,\"\",INDIRECT(\"'Farms Operated Work Version'!A38:B38\")))))))","v":""},null,{"$f":"IF(INDIRECT(\"'Farms Operated Work Version'!C38\")=\"Branch #\",\"\",IF(INDIRECT(\"'Farms Operated Work Version'!C38\")=number,\"\",INDIRECT(\"'Farms Operated Work Version'!C38\")))","v":""},{"$f":"INDIRECT(\"'Farms Operated Work Version'!D38\")","v":0},{"$f":"INDIRECT(\"'Farms Operated Work Version'!E38\")","v":0},{"$f":"IF(INDIRECT(\"'Farms Operated Work Version'!F38\")=\"TOTAL CROP ACRES\",\"\",IF(INDIRECT(\"'Farms Operated Work Version'!F38\")=\"TOTAL FULL SHARE ACRES\",\"\",IF(INDIRECT(\"'Farms Operated Work Version'!F38\")=\"CIF Number\",\"\",INDIRECT(\"'Farms Operated Work Version'!F38\"))))","v":""},{"$f":"IF(INDIRECT(\"'Farms Operated Work Version'!G38\")=\"CIF Number\",\"\",INDIRECT(\"'Farms Operated Work Version'!G38\"))","v":0},0,0,0,0,0,0,0,{"$f":"IF(INDIRECT(\"'Farms Operated Work Version'!O38\")=\"Date\",\"\",IF(INDIRECT(\"'Farms Operated Work Version'!O38\")=date,\"\",INDIRECT(\"'Farms Operated Work Version'!O38\")))","v":""},{"$f":"IF(INDIRECT(\"'Farms Operated Work Version'!P38\")=\"Total Rent Paid:\",\"\",IF(INDIRECT(\"'Farms Operated Work Version'!P38\")=\"Avg. Rent Per Acre:\",\"\",INDIRECT(\"'Farms Operated Work Version'!P38\")))","v":""},""]
[{"$f":"IF(INDIRECT(\"'Farms Operated Work Version'!A39:B39\")=\"COMMENTS\",\"\",IF(INDIRECT(\"'Farms Operated Work Version'!A39:B39\")=\"Loan Entity\",\"\",IF(INDIRECT(\"'Farms Operated Work Version'!A39:B39\")=\"FCS\",\"\",IF(INDIRECT(\"'Farms Operated Work Version'!A39:B39\")=\"(Explain Flex Rent Lease)\",\"\",IF(INDIRECT(\"'Farms Operated Work Version'!A39:B39\")=\"(Explain Custom Hire Agreement)\",\"\",IF(INDIRECT(\"'Farms Operated Work Version'!A39\")=comments,\"\",INDIRECT(\"'Farms Operated Work Version'!A39:B39\")))))))","v":""},null,{"$f":"IF(INDIRECT(\"'Farms Operated Work Version'!C39\")=\"Branch #\",\"\",IF(INDIRECT(\"'Farms Operated Work Version'!C39\")=number,\"\",INDIRECT(\"'Farms Operated Work Version'!C39\")))","v":""},{"$f":"INDIRECT(\"'Farms Operated Work Version'!D39\")","v":0},{"$f":"INDIRECT(\"'Farms Operated Work Version'!E39\")","v":0},{"$f":"IF(INDIRECT(\"'Farms Operated Work Version'!F39\")=\"TOTAL CROP ACRES\",\"\",IF(INDIRECT(\"'Farms Operated Work Version'!F39\")=\"TOTAL FULL SHARE ACRES\",\"\",IF(INDIRECT(\"'Farms Operated Work Version'!F39\")=\"CIF Number\",\"\",INDIRECT(\"'Farms Operated Work Version'!F39\"))))","v":0},{"$f":"IF(INDIRECT(\"'Farms Operated Work Version'!G39\")=\"CIF Number\",\"\",INDIRECT(\"'Farms Operated Work Version'!G39\"))","v":0},{"$f":"IF($C55>0,IF(AND(H$4>=$C55,H$4<=$D55),$F55*$G55,0),0)","v":0},0,0,0,0,0,0,{"$f":"IF(INDIRECT(\"'Farms Operated Work Version'!O39\")=\"Date\",\"\",IF(INDIRECT(\"'Farms Operated Work Version'!O39\")=date,\"\",INDIRECT(\"'Farms Operated Work Version'!O39\")))","v":""},{"$f":"IF(INDIRECT(\"'Farms Operated Work Version'!P39\")=\"Total Rent Paid:\",\"\",IF(INDIRECT(\"'Farms Operated Work Version'!P39\")=\"Avg. Rent Per Acre:\",\"\",INDIRECT(\"'Farms Operated Work Version'!P39\")))","v":0},0]
[{"$f":"IF(INDIRECT(\"'Farms Operated Work Version'!A40:B40\")=\"COMMENTS\",\"\",IF(INDIRECT(\"'Farms Operated Work Version'!A40:B40\")=\"Loan Entity\",\"\",IF(INDIRECT(\"'Farms Operated Work Version'!A40:B40\")=\"FCS\",\"\",IF(INDIRECT(\"'Farms Operated Work Version'!A40:B40\")=\"(Explain Flex Rent Lease)\",\"\",IF(INDIRECT(\"'Farms Operated Work Version'!A40:B40\")=\"(Explain Custom Hire Agreement)\",\"\",IF(INDIRECT(\"'Farms Operated Work Version'!A40\")=comments,\"\",INDIRECT(\"'Farms Operated Work Version'!A40:B40\")))))))","v":""},null,{"$f":"IF(INDIRECT(\"'Farms Operated Work Version'!C40\")=\"Branch #\",\"\",IF(INDIRECT(\"'Farms Operated Work Version'!C40\")=number,\"\",INDIRECT(\"'Farms Operated Work Version'!C40\")))","v":""},{"$f":"INDIRECT(\"'Farms Operated Work Version'!D40\")","v":0},{"$f":"INDIRECT(\"'Farms Operated Work Version'!E40\")","v":0},{"$f":"IF(INDIRECT(\"'Farms Operated Work Version'!F40\")=\"TOTAL CROP ACRES\",\"\",IF(INDIRECT(\"'Farms Operated Work Version'!F40\")=\"TOTAL FULL SHARE ACRES\",\"\",IF(INDIRECT(\"'Farms Operated Work Version'!F40\")=\"CIF Number\",\"\",INDIRECT(\"'Farms Operated Work Version'!F40\"))))","v":0},{"$f":"IF(INDIRECT(\"'Farms Operated Work Version'!G40\")=\"CIF Number\",\"\",INDIRECT(\"'Farms Operated Work Version'!G40\"))","v":0},0,0,0,0,0,0,0,{"$f":"IF(INDIRECT(\"'Farms Operated Work Version'!O40\")=\"Date\",\"\",IF(INDIRECT(\"'Farms Operated Work Version'!O40\")=date,\"\",INDIRECT(\"'Farms Operated Work Version'!O40\")))","v":""},{"$f":"IF(INDIRECT(\"'Farms Operated Work Version'!P40\")=\"Total Rent Paid:\",\"\",IF(INDIRECT(\"'Farms Operated Work Version'!P40\")=\"Avg. Rent Per Acre:\",\"\",INDIRECT(\"'Farms Operated Work Version'!P40\")))","v":0},0]
[{"$f":"IF(INDIRECT(\"'Farms Operated Work Version'!A41:B41\")=\"COMMENTS\",\"\",IF(INDIRECT(\"'Farms Operated Work Version'!A41:B41\")=\"Loan Entity\",\"\",IF(INDIRECT(\"'Farms Operated Work Version'!A41:B41\")=\"FCS\",\"\",IF(INDIRECT(\"'Farms Operated Work Version'!A41:B41\")=\"(Explain Flex Rent Lease)\",\"\",IF(INDIRECT(\"'Farms Operated Work Version'!A41:B41\")=\"(Explain Custom Hire Agreement)\",\"\",IF(INDIRECT(\"'Farms Operated Work Version'!A41\")=comments,\"\",INDIRECT(\"'Farms Operated Work Version'!A41:B41\")))))))","v":""},null,{"$f":"IF(INDIRECT(\"'Farms Operated Work Version'!C41\")=\"Branch #\",\"\",IF(INDIRECT(\"'Farms Operated Work Version'!C41\")=number,\"\",INDIRECT(\"'Farms Operated Work Version'!C41\")))","v":""},{"$f":"INDIRECT(\"'Farms Operated Work Version'!D41\")","v":0},{"$f":"INDIRECT(\"'Farms Operated Work Version'!E41\")","v":0},{"$f":"IF(INDIRECT(\"'Farms Operated Work Version'!F41\")=\"TOTAL CROP ACRES\",\"\",IF(INDIRECT(\"'Farms Operated Work Version'!F41\")=\"TOTAL FULL SHARE ACRES\",\"\",IF(INDIRECT(\"'Farms Operated Work Version'!F41\")=\"CIF Number\",\"\",INDIRECT(\"'Farms Operated Work Version'!F41\"))))","v":0},{"$f":"IF(INDIRECT(\"'Farms Operated Work Version'!G41\")=\"CIF Number\",\"\",INDIRECT(\"'Farms Operated Work Version'!G41\"))","v":0},0,0,0,0,0,0,0,{"$f":"IF(INDIRECT(\"'Farms Operated Work Version'!O41\")=\"Date\",\"\",IF(INDIRECT(\"'Farms Operated Work Version'!O41\")=date,\"\",INDIRECT(\"'Farms Operated Work Version'!O41\")))","v":""},{"$f":"IF(INDIRECT(\"'Farms Operated Work Version'!P41\")=\"Total Rent Paid:\",\"\",IF(INDIRECT(\"'Farms Operated Work Version'!P41\")=\"Avg. Rent Per Acre:\",\"\",INDIRECT(\"'Farms Operated Work Version'!P41\")))","v":0},0]
[{"$f":"IF(INDIRECT(\"'Farms Operated Work Version'!A42:B42\")=\"COMMENTS\",\"\",IF(INDIRECT(\"'Farms Operated Work Version'!A42:B42\")=\"Loan Entity\",\"\",IF(INDIRECT(\"'Farms Operated Work Version'!A42:B42\")=\"FCS\",\"\",IF(INDIRECT(\"'Farms Operated Work Version'!A42:B42\")=\"(Explain Flex Rent Lease)\",\"\",IF(INDIRECT(\"'Farms Operated Work Version'!A42:B42\")=\"(Explain Custom Hire Agreement)\",\"\",IF(INDIRECT(\"'Farms Operated Work Version'!A42\")=comments,\"\",INDIRECT(\"'Farms Operated Work Version'!A42:B42\")))))))","v":0},null,{"$f":"IF(INDIRECT(\"'Farms Operated Work Version'!C42\")=\"Branch #\",\"\",IF(INDIRECT(\"'Farms Operated Work Version'!C42\")=number,\"\",INDIRECT(\"'Farms Operated Work Version'!C42\")))","v":""},{"$f":"INDIRECT(\"'Farms Operated Work Version'!D42\")","v":0},{"$f":"INDIRECT(\"'Farms Operated Work Version'!E42\")","v":0},{"$f":"IF(INDIRECT(\"'Farms Operated Work Version'!F42\")=\"TOTAL CROP ACRES\",\"\",IF(INDIRECT(\"'Farms Operated Work Version'!F42\")=\"TOTAL FULL SHARE ACRES\",\"\",IF(INDIRECT(\"'Farms Operated Work Version'!F42\")=\"CIF Number\",\"\",INDIRECT(\"'Farms Operated Work Version'!F42\"))))","v":0},{"$f":"IF(INDIRECT(\"'Farms Operated Work Version'!G42\")=\"CIF Number\",\"\",INDIRECT(\"'Farms Operated Work Version'!G42\"))","v":0},0,0,0,0,0,0,0,{"$f":"IF(INDIRECT(\"'Farms Operated Work Version'!O42\")=\"Date\",\"\",IF(INDIRECT(\"'Farms Operated Work Version'!O42\")=date,\"\",INDIRECT(\"'Farms Operated Work Version'!O42\")))","v":""},{"$f":"IF(INDIRECT(\"'Farms Operated Work Version'!P42\")=\"Total Rent Paid:\",\"\",IF(INDIRECT(\"'Farms Operated Work Version'!P42\")=\"Avg. Rent Per Acre:\",\"\",INDIRECT(\"'Farms Operated Work Version'!P42\")))","v":0},0]
[{"$f":"IF(INDIRECT(\"'Farms Operated Work Version'!A43:B43\")=\"COMMENTS\",\"\",IF(INDIRECT(\"'Farms Operated Work Version'!A43:B43\")=\"Loan Entity\",\"\",IF(INDIRECT(\"'Farms Operated Work Version'!A43:B43\")=\"FCS\",\"\",IF(INDIRECT(\"'Farms Operated Work Version'!A43:B43\")=\"(Explain Flex Rent Lease)\",\"\",IF(INDIRECT(\"'Farms Operated Work Version'!A43:B43\")=\"(Explain Custom Hire Agreement)\",\"\",IF(INDIRECT(\"'Farms Operated Work Version'!A43\")=comments,\"\",INDIRECT(\"'Farms Operated Work Version'!A43:B43\")))))))","v":0},null,{"$f":"IF(INDIRECT(\"'Farms Operated Work Version'!C43\")=\"Branch #\",\"\",IF(INDIRECT(\"'Farms Operated Work Version'!C43\")=number,\"\",INDIRECT(\"'Farms Operated Work Version'!C43\")))","v":""},{"$f":"INDIRECT(\"'Farms Operated Work Version'!D43\")","v":0},{"$f":"INDIRECT(\"'Farms Operated Work Version'!E43\")","v":0},{"$f":"IF(INDIRECT(\"'Farms Operated Work Version'!F43\")=\"TOTAL CROP ACRES\",\"\",IF(INDIRECT(\"'Farms Operated Work Version'!F43\")=\"TOTAL FULL SHARE ACRES\",\"\",IF(INDIRECT(\"'Farms Operated Work Version'!F43\")=\"CIF Number\",\"\",INDIRECT(\"'Farms Operated Work Version'!F43\"))))","v":0},{"$f":"IF(INDIRECT(\"'Farms Operated Work Version'!G43\")=\"CIF Number\",\"\",INDIRECT(\"'Farms Operated Work Version'!G43\"))","v":0},0,0,0,0,0,0,0,{"$f":"IF(INDIRECT(\"'Farms Operated Work Version'!O43\")=\"Date\",\"\",IF(INDIRECT(\"'Farms Operated Work Version'!O43\")=date,\"\",INDIRECT(\"'Farms Operated Work Version'!O43\")))","v":""},{"$f":"IF(INDIRECT(\"'Farms Operated Work Version'!P43\")=\"Total Rent Paid:\",\"\",IF(INDIRECT(\"'Farms Operated Work Version'!P43\")=\"Avg. Rent Per Acre:\",\"\",INDIRECT(\"'Farms Operated Work Version'!P43\")))","v":0},0]
[{"$f":"IF(INDIRECT(\"'Farms Operated Work Version'!A44:B44\")=\"COMMENTS\",\"\",IF(INDIRECT(\"'Farms Operated Work Version'!A44:B44\")=\"Loan Entity\",\"\",IF(INDIRECT(\"'Farms Operated Work Version'!A44:B44\")=\"FCS\",\"\",IF(INDIRECT(\"'Farms Operated Work Version'!A44:B44\")=\"(Explain Flex Rent Lease)\",\"\",IF(INDIRECT(\"'Farms Operated Work Version'!A44:B44\")=\"(Explain Custom Hire Agreement)\",\"\",IF(INDIRECT(\"'Farms Operated Work Version'!A44\")=comments,\"\",INDIRECT(\"'Farms Operated Work Version'!A44:B44\")))))))","v":0},null,{"$f":"IF(INDIRECT(\"'Farms Operated Work Version'!C44\")=\"Branch #\",\"\",IF(INDIRECT(\"'Farms Operated Work Version'!C44\")=number,\"\",INDIRECT(\"'Farms Operated Work Version'!C44\")))","v":""},{"$f":"INDIRECT(\"'Farms Operated Work Version'!D44\")","v":0},{"$f":"INDIRECT(\"'Farms Operated Work Version'!E44\")","v":0},{"$f":"IF(INDIRECT(\"'Farms Operated Work Version'!F44\")=\"TOTAL CROP ACRES\",\"\",IF(INDIRECT(\"'Farms Operated Work Version'!F44\")=\"TOTAL FULL SHARE ACRES\",\"\",IF(INDIRECT(\"'Farms Operated Work Version'!F44\")=\"CIF Number\",\"\",INDIRECT(\"'Farms Operated Work Version'!F44\"))))","v":0},{"$f":"IF(INDIRECT(\"'Farms Operated Work Version'!G44\")=\"CIF Number\",\"\",INDIRECT(\"'Farms Operated Work Version'!G44\"))","v":0},0,0,0,0,0,0,0,{"$f":"IF(INDIRECT(\"'Farms Operated Work Version'!O44\")=\"Date\",\"\",IF(INDIRECT(\"'Farms Operated Work Version'!O44\")=date,\"\",INDIRECT(\"'Farms Operated Work Version'!O44\")))","v":""},{"$f":"IF(INDIRECT(\"'Farms Operated Work Version'!P44\")=\"Total Rent Paid:\",\"\",IF(INDIRECT(\"'Farms Operated Work Version'!P44\")=\"Avg. Rent Per Acre:\",\"\",INDIRECT(\"'Farms Operated Work Version'!P44\")))","v":0},0]
[{"$f":"IF(INDIRECT(\"'Farms Operated Work Version'!A45:B45\")=\"COMMENTS\",\"\",IF(INDIRECT(\"'Farms Operated Work Version'!A45:B45\")=\"Loan Entity\",\"\",IF(INDIRECT(\"'Farms Operated Work Version'!A45:B45\")=\"FCS\",\"\",IF(INDIRECT(\"'Farms Operated Work Version'!A45:B45\")=\"(Explain Flex Rent Lease)\",\"\",IF(INDIRECT(\"'Farms Operated Work Version'!A45:B45\")=\"(Explain Custom Hire Agreement)\",\"\",IF(INDIRECT(\"'Farms Operated Work Version'!A45\")=comments,\"\",INDIRECT(\"'Farms Operated Work Version'!A45:B45\")))))))","v":0},null,{"$f":"IF(INDIRECT(\"'Farms Operated Work Version'!C45\")=\"Branch #\",\"\",IF(INDIRECT(\"'Farms Operated Work Version'!C45\")=number,\"\",INDIRECT(\"'Farms Operated Work Version'!C45\")))","v":""},{"$f":"INDIRECT(\"'Farms Operated Work Version'!D45\")","v":0},{"$f":"INDIRECT(\"'Farms Operated Work Version'!E45\")","v":0},{"$f":"IF(INDIRECT(\"'Farms Operated Work Version'!F45\")=\"TOTAL CROP ACRES\",\"\",IF(INDIRECT(\"'Farms Operated Work Version'!F45\")=\"TOTAL FULL SHARE ACRES\",\"\",IF(INDIRECT(\"'Farms Operated Work Version'!F45\")=\"CIF Number\",\"\",INDIRECT(\"'Farms Operated Work Version'!F45\"))))","v":0},{"$f":"IF(INDIRECT(\"'Farms Operated Work Version'!G45\")=\"CIF Number\",\"\",INDIRECT(\"'Farms Operated Work Version'!G45\"))","v":0},0,0,0,0,0,0,0,{"$f":"IF(INDIRECT(\"'Farms Operated Work Version'!O45\")=\"Date\",\"\",IF(INDIRECT(\"'Farms Operated Work Version'!O45\")=date,\"\",INDIRECT(\"'Farms Operated Work Version'!O45\")))","v":""},{"$f":"IF(INDIRECT(\"'Farms Operated Work Version'!P45\")=\"Total Rent Paid:\",\"\",IF(INDIRECT(\"'Farms Operated Work Version'!P45\")=\"Avg. Rent Per Acre:\",\"\",INDIRECT(\"'Farms Operated Work Version'!P45\")))","v":0},0]
[{"$f":"IF(INDIRECT(\"'Farms Operated Work Version'!A46:B46\")=\"COMMENTS\",\"\",IF(INDIRECT(\"'Farms Operated Work Version'!A46:B46\")=\"Loan Entity\",\"\",IF(INDIRECT(\"'Farms Operated Work Version'!A46:B46\")=\"FCS\",\"\",IF(INDIRECT(\"'Farms Operated Work Version'!A46:B46\")=\"(Explain Flex Rent Lease)\",\"\",IF(INDIRECT(\"'Farms Operated Work Version'!A46:B46\")=\"(Explain Custom Hire Agreement)\",\"\",IF(INDIRECT(\"'Farms Operated Work Version'!A46\")=comments,\"\",INDIRECT(\"'Farms Operated Work Version'!A46:B46\")))))))","v":0},null,{"$f":"IF(INDIRECT(\"'Farms Operated Work Version'!C46\")=\"Branch #\",\"\",IF(INDIRECT(\"'Farms Operated Work Version'!C46\")=number,\"\",INDIRECT(\"'Farms Operated Work Version'!C46\")))","v":""},{"$f":"INDIRECT(\"'Farms Operated Work Version'!D46\")","v":0},{"$f":"INDIRECT(\"'Farms Operated Work Version'!E46\")","v":0},{"$f":"IF(INDIRECT(\"'Farms Operated Work Version'!F46\")=\"TOTAL CROP ACRES\",\"\",IF(INDIRECT(\"'Farms Operated Work Version'!F46\")=\"TOTAL FULL SHARE ACRES\",\"\",IF(INDIRECT(\"'Farms Operated Work Version'!F46\")=\"CIF Number\",\"\",INDIRECT(\"'Farms Operated Work Version'!F46\"))))","v":0},{"$f":"IF(INDIRECT(\"'Farms Operated Work Version'!G46\")=\"CIF Number\",\"\",INDIRECT(\"'Farms Operated Work Version'!G46\"))","v":0},0,0,0,0,0,0,0,{"$f":"IF(INDIRECT(\"'Farms Operated Work Version'!O46\")=\"Date\",\"\",IF(INDIRECT(\"'Farms Operated Work Version'!O46\")=date,\"\",INDIRECT(\"'Farms Operated Work Version'!O46\")))","v":""},{"$f":"IF(INDIRECT(\"'Farms Operated Work Version'!P46\")=\"Total Rent Paid:\",\"\",IF(INDIRECT(\"'Farms Operated Work Version'!P46\")=\"Avg. Rent Per Acre:\",\"\",INDIRECT(\"'Farms Operated Work Version'!P46\")))","v":0},0]
[{"$f":"IF(INDIRECT(\"'Farms Operated Work Version'!A47:B47\")=\"COMMENTS\",\"\",IF(INDIRECT(\"'Farms Operated Work Version'!A47:B47\")=\"Loan Entity\",\"\",IF(INDIRECT(\"'Farms Operated Work Version'!A47:B47\")=\"FCS\",\"\",IF(INDIRECT(\"'Farms Operated Work Version'!A47:B47\")=\"(Explain Flex Rent Lease)\",\"\",IF(INDIRECT(\"'Farms Operated Work Version'!A47:B47\")=\"(Explain Custom Hire Agreement)\",\"\",IF(INDIRECT(\"'Farms Operated Work Version'!A47\")=comments,\"\",INDIRECT(\"'Farms Operated Work Version'!A47:B47\")))))))","v":0},null,{"$f":"IF(INDIRECT(\"'Farms Operated Work Version'!C47\")=\"Branch #\",\"\",IF(INDIRECT(\"'Farms Operated Work Version'!C47\")=number,\"\",INDIRECT(\"'Farms Operated Work Version'!C47\")))","v":""},{"$f":"INDIRECT(\"'Farms Operated Work Version'!D47\")","v":0},{"$f":"INDIRECT(\"'Farms Operated Work Version'!E47\")","v":0},{"$f":"IF(INDIRECT(\"'Farms Operated Work Version'!F47\")=\"TOTAL CROP ACRES\",\"\",IF(INDIRECT(\"'Farms Operated Work Version'!F47\")=\"TOTAL FULL SHARE ACRES\",\"\",IF(INDIRECT(\"'Farms Operated Work Version'!F47\")=\"CIF Number\",\"\",INDIRECT(\"'Farms Operated Work Version'!F47\"))))","v":0},{"$f":"IF(INDIRECT(\"'Farms Operated Work Version'!G47\")=\"CIF Number\",\"\",INDIRECT(\"'Farms Operated Work Version'!G47\"))","v":0},0,0,0,0,0,0,0,{"$f":"IF(INDIRECT(\"'Farms Operated Work Version'!O47\")=\"Date\",\"\",IF(INDIRECT(\"'Farms Operated Work Version'!O47\")=date,\"\",INDIRECT(\"'Farms Operated Work Version'!O47\")))","v":""},{"$f":"IF(INDIRECT(\"'Farms Operated Work Version'!P47\")=\"Total Rent Paid:\",\"\",IF(INDIRECT(\"'Farms Operated Work Version'!P47\")=\"Avg. Rent Per Acre:\",\"\",INDIRECT(\"'Farms Operated Work Version'!P47\")))","v":0},0]
[{"$f":"IF(INDIRECT(\"'Farms Operated Work Version'!A48:B48\")=\"COMMENTS\",\"\",IF(INDIRECT(\"'Farms Operated Work Version'!A48:B48\")=\"Loan Entity\",\"\",IF(INDIRECT(\"'Farms Operated Work Version'!A48:B48\")=\"FCS\",\"\",IF(INDIRECT(\"'Farms Operated Work Version'!A48:B48\")=\"(Explain Flex Rent Lease)\",\"\",IF(INDIRECT(\"'Farms Operated Work Version'!A48:B48\")=\"(Explain Custom Hire Agreement)\",\"\",IF(INDIRECT(\"'Farms Operated Work Version'!A48\")=comments,\"\",INDIRECT(\"'Farms Operated Work Version'!A48:B48\")))))))","v":0},null,{"$f":"IF(INDIRECT(\"'Farms Operated Work Version'!C48\")=\"Branch #\",\"\",IF(INDIRECT(\"'Farms Operated Work Version'!C48\")=number,\"\",INDIRECT(\"'Farms Operated Work Version'!C48\")))","v":""},{"$f":"INDIRECT(\"'Farms Operated Work Version'!D48\")","v":0},{"$f":"INDIRECT(\"'Farms Operated Work Version'!E48\")","v":0},{"$f":"IF(INDIRECT(\"'Farms Operated Work Version'!F48\")=\"TOTAL CROP ACRES\",\"\",IF(INDIRECT(\"'Farms Operated Work Version'!F48\")=\"TOTAL FULL SHARE ACRES\",\"\",IF(INDIRECT(\"'Farms Operated Work Version'!F48\")=\"CIF Number\",\"\",INDIRECT(\"'Farms Operated Work Version'!F48\"))))","v":0},{"$f":"IF(INDIRECT(\"'Farms Operated Work Version'!G48\")=\"CIF Number\",\"\",INDIRECT(\"'Farms Operated Work Version'!G48\"))","v":0},0,0,0,0,0,0,0,{"$f":"IF(INDIRECT(\"'Farms Operated Work Version'!O48\")=\"Date\",\"\",IF(INDIRECT(\"'Farms Operated Work Version'!O48\")=date,\"\",INDIRECT(\"'Farms Operated Work Version'!O48\")))","v":""},{"$f":"IF(INDIRECT(\"'Farms Operated Work Version'!P48\")=\"Total Rent Paid:\",\"\",IF(INDIRECT(\"'Farms Operated Work Version'!P48\")=\"Avg. Rent Per Acre:\",\"\",INDIRECT(\"'Farms Operated Work Version'!P48\")))","v":0},0]
[{"$f":"IF(INDIRECT(\"'Farms Operated Work Version'!A49:B49\")=\"COMMENTS\",\"\",IF(INDIRECT(\"'Farms Operated Work Version'!A49:B49\")=\"Loan Entity\",\"\",IF(INDIRECT(\"'Farms Operated Work Version'!A49:B49\")=\"FCS\",\"\",IF(INDIRECT(\"'Farms Operated Work Version'!A49:B49\")=\"(Explain Flex Rent Lease)\",\"\",IF(INDIRECT(\"'Farms Operated Work Version'!A49:B49\")=\"(Explain Custom Hire Agreement)\",\"\",IF(INDIRECT(\"'Farms Operated Work Version'!A49\")=comments,\"\",INDIRECT(\"'Farms Operated Work Version'!A49:B49\")))))))","v":0},null,{"$f":"IF(INDIRECT(\"'Farms Operated Work Version'!C49\")=\"Branch #\",\"\",IF(INDIRECT(\"'Farms Operated Work Version'!C49\")=number,\"\",INDIRECT(\"'Farms Operated Work Version'!C49\")))","v":""},{"$f":"INDIRECT(\"'Farms Operated Work Version'!D49\")","v":0},{"$f":"INDIRECT(\"'Farms Operated Work Version'!E49\")","v":0},{"$f":"IF(INDIRECT(\"'Farms Operated Work Version'!F49\")=\"TOTAL CROP ACRES\",\"\",IF(INDIRECT(\"'Farms Operated Work Version'!F49\")=\"TOTAL FULL SHARE ACRES\",\"\",IF(INDIRECT(\"'Farms Operated Work Version'!F49\")=\"CIF Number\",\"\",INDIRECT(\"'Farms Operated Work Version'!F49\"))))","v":0},{"$f":"IF(INDIRECT(\"'Farms Operated Work Version'!G49\")=\"CIF Number\",\"\",INDIRECT(\"'Farms Operated Work Version'!G49\"))","v":0},0,0,0,0,0,0,0,{"$f":"IF(INDIRECT(\"'Farms Operated Work Version'!O49\")=\"Date\",\"\",IF(INDIRECT(\"'Farms Operated Work Version'!O49\")=date,\"\",INDIRECT(\"'Farms Operated Work Version'!O49\")))","v":""},{"$f":"IF(INDIRECT(\"'Farms Operated Work Version'!P49\")=\"Total Rent Paid:\",\"\",IF(INDIRECT(\"'Farms Operated Work Version'!P49\")=\"Avg. Rent Per Acre:\",\"\",INDIRECT(\"'Farms Operated Work Version'!P49\")))","v":0},0]
[{"$f":"IF(INDIRECT(\"'Farms Operated Work Version'!A50:B50\")=\"COMMENTS\",\"\",IF(INDIRECT(\"'Farms Operated Work Version'!A50:B50\")=\"Loan Entity\",\"\",IF(INDIRECT(\"'Farms Operated Work Version'!A50:B50\")=\"FCS\",\"\",IF(INDIRECT(\"'Farms Operated Work Version'!A50:B50\")=\"(Explain Flex Rent Lease)\",\"\",IF(INDIRECT(\"'Farms Operated Work Version'!A50:B50\")=\"(Explain Custom Hire Agreement)\",\"\",IF(INDIRECT(\"'Farms Operated Work Version'!A50\")=comments,\"\",INDIRECT(\"'Farms Operated Work Version'!A50:B50\")))))))","v":0},null,{"$f":"IF(INDIRECT(\"'Farms Operated Work Version'!C50\")=\"Branch #\",\"\",IF(INDIRECT(\"'Farms Operated Work Version'!C50\")=number,\"\",INDIRECT(\"'Farms Operated Work Version'!C50\")))","v":""},{"$f":"INDIRECT(\"'Farms Operated Work Version'!D50\")","v":0},{"$f":"INDIRECT(\"'Farms Operated Work Version'!E50\")","v":0},{"$f":"IF(INDIRECT(\"'Farms Operated Work Version'!F50\")=\"TOTAL CROP ACRES\",\"\",IF(INDIRECT(\"'Farms Operated Work Version'!F50\")=\"TOTAL FULL SHARE ACRES\",\"\",IF(INDIRECT(\"'Farms Operated Work Version'!F50\")=\"CIF Number\",\"\",INDIRECT(\"'Farms Operated Work Version'!F50\"))))","v":0},{"$f":"IF(INDIRECT(\"'Farms Operated Work Version'!G50\")=\"CIF Number\",\"\",INDIRECT(\"'Farms Operated Work Version'!G50\"))","v":0},0,0,0,0,0,0,0,{"$f":"IF(INDIRECT(\"'Farms Operated Work Version'!O50\")=\"Date\",\"\",IF(INDIRECT(\"'Farms Operated Work Version'!O50\")=date,\"\",INDIRECT(\"'Farms Operated Work Version'!O50\")))","v":""},{"$f":"IF(INDIRECT(\"'Farms Operated Work Version'!P50\")=\"Total Rent Paid:\",\"\",IF(INDIRECT(\"'Farms Operated Work Version'!P50\")=\"Avg. Rent Per Acre:\",\"\",INDIRECT(\"'Farms Operated Work Version'!P50\")))","v":0},0]
[{"$f":"IF(INDIRECT(\"'Farms Operated Work Version'!A51:B51\")=\"COMMENTS\",\"\",IF(INDIRECT(\"'Farms Operated Work Version'!A51:B51\")=\"Loan Entity\",\"\",IF(INDIRECT(\"'Farms Operated Work Version'!A51:B51\")=\"FCS\",\"\",IF(INDIRECT(\"'Farms Operated Work Version'!A51:B51\")=\"(Explain Flex Rent Lease)\",\"\",IF(INDIRECT(\"'Farms Operated Work Version'!A51:B51\")=\"(Explain Custom Hire Agreement)\",\"\",IF(INDIRECT(\"'Farms Operated Work Version'!A51\")=comments,\"\",INDIRECT(\"'Farms Operated Work Version'!A51:B51\")))))))","v":0},null,{"$f":"IF(INDIRECT(\"'Farms Operated Work Version'!C51\")=\"Branch #\",\"\",IF(INDIRECT(\"'Farms Operated Work Version'!C51\")=number,\"\",INDIRECT(\"'Farms Operated Work Version'!C51\")))","v":""},{"$f":"INDIRECT(\"'Farms Operated Work Version'!D51\")","v":0},{"$f":"INDIRECT(\"'Farms Operated Work Version'!E51\")","v":0},{"$f":"IF(INDIRECT(\"'Farms Operated Work Version'!F51\")=\"TOTAL CROP ACRES\",\"\",IF(INDIRECT(\"'Farms Operated Work Version'!F51\")=\"TOTAL FULL SHARE ACRES\",\"\",IF(INDIRECT(\"'Farms Operated Work Version'!F51\")=\"CIF Number\",\"\",INDIRECT(\"'Farms Operated Work Version'!F51\"))))","v":0},{"$f":"IF(INDIRECT(\"'Farms Operated Work Version'!G51\")=\"CIF Number\",\"\",INDIRECT(\"'Farms Operated Work Version'!G51\"))","v":0},0,0,0,0,0,0,0,{"$f":"IF(INDIRECT(\"'Farms Operated Work Version'!O51\")=\"Date\",\"\",IF(INDIRECT(\"'Farms Operated Work Version'!O51\")=date,\"\",INDIRECT(\"'Farms Operated Work Version'!O51\")))","v":""},{"$f":"IF(INDIRECT(\"'Farms Operated Work Version'!P51\")=\"Total Rent Paid:\",\"\",IF(INDIRECT(\"'Farms Operated Work Version'!P51\")=\"Avg. Rent Per Acre:\",\"\",INDIRECT(\"'Farms Operated Work Version'!P51\")))","v":0},0]
[{"$f":"IF(INDIRECT(\"'Farms Operated Work Version'!A52:B52\")=\"COMMENTS\",\"\",IF(INDIRECT(\"'Farms Operated Work Version'!A52:B52\")=\"Loan Entity\",\"\",IF(INDIRECT(\"'Farms Operated Work Version'!A52:B52\")=\"FCS\",\"\",IF(INDIRECT(\"'Farms Operated Work Version'!A52:B52\")=\"(Explain Flex Rent Lease)\",\"\",IF(INDIRECT(\"'Farms Operated Work Version'!A52:B52\")=\"(Explain Custom Hire Agreement)\",\"\",IF(INDIRECT(\"'Farms Operated Work Version'!A52\")=comments,\"\",INDIRECT(\"'Farms Operated Work Version'!A52:B52\")))))))","v":0},null,{"$f":"IF(INDIRECT(\"'Farms Operated Work Version'!C52\")=\"Branch #\",\"\",IF(INDIRECT(\"'Farms Operated Work Version'!C52\")=number,\"\",INDIRECT(\"'Farms Operated Work Version'!C52\")))","v":""},{"$f":"INDIRECT(\"'Farms Operated Work Version'!D52\")","v":0},{"$f":"INDIRECT(\"'Farms Operated Work Version'!E52\")","v":0},{"$f":"IF(INDIRECT(\"'Farms Operated Work Version'!F52\")=\"TOTAL CROP ACRES\",\"\",IF(INDIRECT(\"'Farms Operated Work Version'!F52\")=\"TOTAL FULL SHARE ACRES\",\"\",IF(INDIRECT(\"'Farms Operated Work Version'!F52\")=\"CIF Number\",\"\",INDIRECT(\"'Farms Operated Work Version'!F52\"))))","v":0},{"$f":"IF(INDIRECT(\"'Farms Operated Work Version'!G52\")=\"CIF Number\",\"\",INDIRECT(\"'Farms Operated Work Version'!G52\"))","v":0},0,0,0,0,0,0,0,{"$f":"IF(INDIRECT(\"'Farms Operated Work Version'!O52\")=\"Date\",\"\",IF(INDIRECT(\"'Farms Operated Work Version'!O52\")=date,\"\",INDIRECT(\"'Farms Operated Work Version'!O52\")))","v":""},{"$f":"IF(INDIRECT(\"'Farms Operated Work Version'!P52\")=\"Total Rent Paid:\",\"\",IF(INDIRECT(\"'Farms Operated Work Version'!P52\")=\"Avg. Rent Per Acre:\",\"\",INDIRECT(\"'Farms Operated Work Version'!P52\")))","v":0},0]
[{"$f":"IF(INDIRECT(\"'Farms Operated Work Version'!A53:B53\")=\"COMMENTS\",\"\",IF(INDIRECT(\"'Farms Operated Work Version'!A53:B53\")=\"Loan Entity\",\"\",IF(INDIRECT(\"'Farms Operated Work Version'!A53:B53\")=\"FCS\",\"\",IF(INDIRECT(\"'Farms Operated Work Version'!A53:B53\")=\"(Explain Flex Rent Lease)\",\"\",IF(INDIRECT(\"'Farms Operated Work Version'!A53:B53\")=\"(Explain Custom Hire Agreement)\",\"\",IF(INDIRECT(\"'Farms Operated Work Version'!A53\")=comments,\"\",INDIRECT(\"'Farms Operated Work Version'!A53:B53\")))))))","v":0},null,{"$f":"IF(INDIRECT(\"'Farms Operated Work Version'!C53\")=\"Branch #\",\"\",IF(INDIRECT(\"'Farms Operated Work Version'!C53\")=number,\"\",INDIRECT(\"'Farms Operated Work Version'!C53\")))","v":""},{"$f":"INDIRECT(\"'Farms Operated Work Version'!D53\")","v":0},{"$f":"INDIRECT(\"'Farms Operated Work Version'!E53\")","v":0},{"$f":"IF(INDIRECT(\"'Farms Operated Work Version'!F53\")=\"TOTAL CROP ACRES\",\"\",IF(INDIRECT(\"'Farms Operated Work Version'!F53\")=\"TOTAL FULL SHARE ACRES\",\"\",IF(INDIRECT(\"'Farms Operated Work Version'!F53\")=\"CIF Number\",\"\",INDIRECT(\"'Farms Operated Work Version'!F53\"))))","v":0},{"$f":"IF(INDIRECT(\"'Farms Operated Work Version'!G53\")=\"CIF Number\",\"\",INDIRECT(\"'Farms Operated Work Version'!G53\"))","v":0},0,0,0,0,0,0,0,{"$f":"IF(INDIRECT(\"'Farms Operated Work Version'!O53\")=\"Date\",\"\",IF(INDIRECT(\"'Farms Operated Work Version'!O53\")=date,\"\",INDIRECT(\"'Farms Operated Work Version'!O53\")))","v":""},{"$f":"IF(INDIRECT(\"'Farms Operated Work Version'!P53\")=\"Total Rent Paid:\",\"\",IF(INDIRECT(\"'Farms Operated Work Version'!P53\")=\"Avg. Rent Per Acre:\",\"\",INDIRECT(\"'Farms Operated Work Version'!P53\")))","v":0},0]
[null,null,null,null,null,"TOTAL CROP ACRES",null,{"$f":"'Farms Operated Work Version'!$H$37","v":0},{"$f":"'Farms Operated Work Version'!$I$37","v":0},{"$f":"'Farms Operated Work Version'!$J$37","v":0},{"$f":"'Farms Operated Work Version'!$K$37","v":0},{"$f":"'Farms Operated Work Version'!$L$37","v":0},{"$f":"'Farms Operated Work Version'!$M$37","v":0},{"$f":"'Farms Operated Work Version'!$N$37","v":0},null,"Total Rent Paid:",{"$f":"'Farms Operated Work Version'!$Q$37","v":0}]
[null,null,null,null,null,"TOTAL FULL SHARE ACRES",null,null,{"$f":"'Farms Operated Work Version'!$I$38","v":0},{"$f":"'Farms Operated Work Version'!$J$38","v":0},{"$f":"'Farms Operated Work Version'!$K$38","v":0},{"$f":"'Farms Operated Work Version'!$L$38","v":0},{"$f":"'Farms Operated Work Version'!$M$38","v":0},{"$f":"'Farms Operated Work Version'!$N$38","v":0},null,"Avg. Rent Per Acre:",{"$f":"IFERROR(Q70/N74, \"\")","v":""}]
["COMMENTS",null,null,null,null,null,null,null,null,null,null,null,"TOTAL SHARE ACRES",{"$f":"'Farms Operated Work Version'!$N$39","v":0}]
["(Explain Flex Rent Lease)",null,null,null,null,null,null,null,null,null,null,null,"TOTAL OWNED ACRES",{"$f":"'Farms Operated Work Version'!$N$40","v":0}]
["(Explain Custom Hire Agreement)",null,null,null,null,null,null,null,null,null,null,null,"TOTAL CASH RENT ACRES",{"$f":"'Farms Operated Work Version'!$N$41","v":0}]
[{"$f":"'Farms Operated Work Version'!A41","v":"COMMENTS"},null,null,null,null,null,null,null,null,null,null,null,"CASH RENT:OWNED RATIO",{"$f":"IFERROR(N74/N73,\"\")","v":""}]
[]
[]
[]
[null,null,"Branch #",null,null,null,null,"Borrower Name",null,null,null,null,null,null,"Date"]
[null,null,{"$f":"number","v":0},null,null,null,null,{"$f":"name","v":0},null,null,null,null,null,null,{"$f":"date","v":"00:00:00"}]
[]
[]
[null,null,null,null,null,null,null,null,null,null,null,null,null,null,"Rental Terms (cash rent/ac, lease term, etc.)","Cash Rent Per Acre","Cash Rent Paid"]
["Owner/Farm Name",null,"Years Operated",null,"Total","Crop","Percentage","Full Share Acres"]
[null,null,"First","Last","Acres","Acres","Full Share",{"$f":"H4","v":2016},2017,2018,2019,2020,2021,2022]
[{"$f":"IF(INDIRECT(\"'Farms Operated Work Version'!A54:B54\")=\"COMMENTS\",\"\",IF(INDIRECT(\"'Farms Operated Work Version'!A54:B54\")=\"Loan Entity\",\"\",IF(INDIRECT(\"'Farms Operated Work Version'!A54:B54\")=\"FCS\",\"\",IF(INDIRECT(\"'Farms Operated Work Version'!A54:B54\")=\"(Explain Flex Rent Lease)\",\"\",IF(INDIRECT(\"'Farms Operated Work Version'!A54:B54\")=\"(Explain Custom Hire Agreement)\",\"\",IF(INDIRECT(\"'Farms Operated Work Version'!A54\")=comments,\"\",INDIRECT(\"'Farms Operated Work Version'!A54:B54\")))))))","v":0},null,{"$f":"IF(INDIRECT(\"'Farms Operated Work Version'!C54\")=\"Branch #\",\"\",IF(INDIRECT(\"'Farms Operated Work Version'!C54\")=number,\"\",INDIRECT(\"'Farms Operated Work Version'!C54\")))","v":""},{"$f":"INDIRECT(\"'Farms Operated Work Version'!D54\")","v":0},{"$f":"INDIRECT(\"'Farms Operated Work Version'!E54\")","v":0},{"$f":"IF(INDIRECT(\"'Farms Operated Work Version'!F54\")=\"TOTAL CROP ACRES\",\"\",IF(INDIRECT(\"'Farms Operated Work Version'!F54\")=\"TOTAL FULL SHARE ACRES\",\"\",IF(INDIRECT(\"'Farms Operated Work Version'!F54\")=\"CIF Number\",\"\",INDIRECT(\"'Farms Operated Work Version'!F54\"))))","v":0},{"$f":"IF(INDIRECT(\"'Farms Operated Work Version'!G54\")=\"CIF Number\",\"\",INDIRECT(\"'Farms Operated Work Version'!G54\"))","v":0},{"$f":"IF($C86>0,IF(AND(H$4>=$C86,H$4<=$D86),$F86*$G86,0),0)","v":0},0,0,0,0,0,0,{"$f":"IF(INDIRECT(\"'Farms Operated Work Version'!O54\")=\"Date\",\"\",IF(INDIRECT(\"'Farms Operated Work Version'!O54\")=date,\"\",INDIRECT(\"'Farms Operated Work Version'!O54\")))","v":""},{"$f":"IF(INDIRECT(\"'Farms Operated Work Version'!P54\")=\"Total Rent Paid:\",\"\",IF(INDIRECT(\"'Farms Operated Work Version'!P54\")=\"Avg. Rent Per Acre:\",\"\",INDIRECT(\"'Farms Operated Work Version'!P54\")))","v":0},{"$f":"IFERROR(P86*N86,\"\")","v":0}]
[{"$f":"IF(INDIRECT(\"'Farms Operated Work Version'!A55:B55\")=\"COMMENTS\",\"\",IF(INDIRECT(\"'Farms Operated Work Version'!A55:B55\")=\"Loan Entity\",\"\",IF(INDIRECT(\"'Farms Operated Work Version'!A55:B55\")=\"FCS\",\"\",IF(INDIRECT(\"'Farms Operated Work Version'!A55:B55\")=\"(Explain Flex Rent Lease)\",\"\",IF(INDIRECT(\"'Farms Operated Work Version'!A55:B55\")=\"(Explain Custom Hire Agreement)\",\"\",IF(INDIRECT(\"'Farms Operated Work Version'!A55\")=comments,\"\",INDIRECT(\"'Farms Operated Work Version'!A55:B55\")))))))","v":0},null,{"$f":"IF(INDIRECT(\"'Farms Operated Work Version'!C55\")=\"Branch #\",\"\",IF(INDIRECT(\"'Farms Operated Work Version'!C55\")=number,\"\",INDIRECT(\"'Farms Operated Work Version'!C55\")))","v":""},{"$f":"INDIRECT(\"'Farms Operated Work Version'!D55\")","v":0},{"$f":"INDIRECT(\"'Farms Operated Work Version'!E55\")","v":0},{"$f":"IF(INDIRECT(\"'Farms Operated Work Version'!F55\")=\"TOTAL CROP ACRES\",\"\",IF(INDIRECT(\"'Farms Operated Work Version'!F55\")=\"TOTAL FULL SHARE ACRES\",\"\",IF(INDIRECT(\"'Farms Operated Work Version'!F55\")=\"CIF Number\",\"\",INDIRECT(\"'Farms Operated Work Version'!F55\"))))","v":0},{"$f":"IF(INDIRECT(\"'Farms Operated Work Version'!G55\")=\"CIF Number\",\"\",INDIRECT(\"'Farms Operated Work Version'!G55\"))","v":0},0,0,0,0,0,0,0,{"$f":"IF(INDIRECT(\"'Farms Operated Work Version'!O55\")=\"Date\",\"\",IF(INDIRECT(\"'Farms Operated Work Version'!O55\")=date,\"\",INDIRECT(\"'Farms Operated Work Version'!O55\")))","v":""},{"$f":"IF(INDIRECT(\"'Farms Operated Work Version'!P55\")=\"Total Rent Paid:\",\"\",IF(INDIRECT(\"'Farms Operated Work Version'!P55\")=\"Avg. Rent Per Acre:\",\"\",INDIRECT(\"'Farms Operated Work Version'!P55\")))","v":0},{"$f":"IFERROR(P87*N87,\"\")","v":0}]
[{"$f":"IF(INDIRECT(\"'Farms Operated Work Version'!A56:B56\")=\"COMMENTS\",\"\",IF(INDIRECT(\"'Farms Operated Work Version'!A56:B56\")=\"Loan Entity\",\"\",IF(INDIRECT(\"'Farms Operated Work Version'!A56:B56\")=\"FCS\",\"\",IF(INDIRECT(\"'Farms Operated Work Version'!A56:B56\")=\"(Explain Flex Rent Lease)\",\"\",IF(INDIRECT(\"'Farms Operated Work Version'!A56:B56\")=\"(Explain Custom Hire Agreement)\",\"\",IF(INDIRECT(\"'Farms Operated Work Version'!A56\")=comments,\"\",INDIRECT(\"'Farms Operated Work Version'!A56:B56\")))))))","v":0},null,{"$f":"IF(INDIRECT(\"'Farms Operated Work Version'!C56\")=\"Branch #\",\"\",IF(INDIRECT(\"'Farms Operated Work Version'!C56\")=number,\"\",INDIRECT(\"'Farms Operated Work Version'!C56\")))","v":""},{"$f":"INDIRECT(\"'Farms Operated Work Version'!D56\")","v":0},{"$f":"INDIRECT(\"'Farms Operated Work Version'!E56\")","v":0},{"$f":"IF(INDIRECT(\"'Farms Operated Work Version'!F56\")=\"TOTAL CROP ACRES\",\"\",IF(INDIRECT(\"'Farms Operated Work Version'!F56\")=\"TOTAL FULL SHARE ACRES\",\"\",IF(INDIRECT(\"'Farms Operated Work Version'!F56\")=\"CIF Number\",\"\",INDIRECT(\"'Farms Operated Work Version'!F56\"))))","v":0},{"$f":"IF(INDIRECT(\"'Farms Operated Work Version'!G56\")=\"CIF Number\",\"\",INDIRECT(\"'Farms Operated Work Version'!G56\"))","v":0},0,0,0,0,0,0,0,{"$f":"IF(INDIRECT(\"'Farms Operated Work Version'!O56\")=\"Date\",\"\",IF(INDIRECT(\"'Farms Operated Work Version'!O56\")=date,\"\",INDIRECT(\"'Farms Operated Work Version'!O56\")))","v":""},{"$f":"IF(INDIRECT(\"'Farms Operated Work Version'!P56\")=\"Total Rent Paid:\",\"\",IF(INDIRECT(\"'Farms Operated Work Version'!P56\")=\"Avg. Rent Per Acre:\",\"\",INDIRECT(\"'Farms Operated Work Version'!P56\")))","v":0},0]
[{"$f":"IF(INDIRECT(\"'Farms Operated Work Version'!A57:B57\")=\"COMMENTS\",\"\",IF(INDIRECT(\"'Farms Operated Work Version'!A57:B57\")=\"Loan Entity\",\"\",IF(INDIRECT(\"'Farms Operated Work Version'!A57:B57\")=\"FCS\",\"\",IF(INDIRECT(\"'Farms Operated Work Version'!A57:B57\")=\"(Explain Flex Rent Lease)\",\"\",IF(INDIRECT(\"'Farms Operated Work Version'!A57:B57\")=\"(Explain Custom Hire Agreement)\",\"\",IF(INDIRECT(\"'Farms Operated Work Version'!A57\")=comments,\"\",INDIRECT(\"'Farms Operated Work Version'!A57:B57\")))))))","v":0},null,{"$f":"IF(INDIRECT(\"'Farms Operated Work Version'!C57\")=\"Branch #\",\"\",IF(INDIRECT(\"'Farms Operated Work Version'!C57\")=number,\"\",INDIRECT(\"'Farms Operated Work Version'!C57\")))","v":""},{"$f":"INDIRECT(\"'Farms Operated Work Version'!D57\")","v":0},{"$f":"INDIRECT(\"'Farms Operated Work Version'!E57\")","v":0},{"$f":"IF(INDIRECT(\"'Farms Operated Work Version'!F57\")=\"TOTAL CROP ACRES\",\"\",IF(INDIRECT(\"'Farms Operated Work Version'!F57\")=\"TOTAL FULL SHARE ACRES\",\"\",IF(INDIRECT(\"'Farms Operated Work Version'!F57\")=\"CIF Number\",\"\",INDIRECT(\"'Farms Operated Work Version'!F57\"))))","v":0},{"$f":"IF(INDIRECT(\"'Farms Operated Work Version'!G57\")=\"CIF Number\",\"\",INDIRECT(\"'Farms Operated Work Version'!G57\"))","v":0},0,0,0,0,0,0,0,{"$f":"IF(INDIRECT(\"'Farms Operated Work Version'!O57\")=\"Date\",\"\",IF(INDIRECT(\"'Farms Operated Work Version'!O57\")=date,\"\",INDIRECT(\"'Farms Operated Work Version'!O57\")))","v":""},{"$f":"IF(INDIRECT(\"'Farms Operated Work Version'!P57\")=\"Total Rent Paid:\",\"\",IF(INDIRECT(\"'Farms Operated Work Version'!P57\")=\"Avg. Rent Per Acre:\",\"\",INDIRECT(\"'Farms Operated Work Version'!P57\")))","v":0},0]
[{"$f":"IF(INDIRECT(\"'Farms Operated Work Version'!A58:B58\")=\"COMMENTS\",\"\",IF(INDIRECT(\"'Farms Operated Work Version'!A58:B58\")=\"Loan Entity\",\"\",IF(INDIRECT(\"'Farms Operated Work Version'!A58:B58\")=\"FCS\",\"\",IF(INDIRECT(\"'Farms Operated Work Version'!A58:B58\")=\"(Explain Flex Rent Lease)\",\"\",IF(INDIRECT(\"'Farms Operated Work Version'!A58:B58\")=\"(Explain Custom Hire Agreement)\",\"\",IF(INDIRECT(\"'Farms Operated Work Version'!A58\")=comments,\"\",INDIRECT(\"'Farms Operated Work Version'!A58:B58\")))))))","v":0},null,{"$f":"IF(INDIRECT(\"'Farms Operated Work Version'!C58\")=\"Branch #\",\"\",IF(INDIRECT(\"'Farms Operated Work Version'!C58\")=number,\"\",INDIRECT(\"'Farms Operated Work Version'!C58\")))","v":""},{"$f":"INDIRECT(\"'Farms Operated Work Version'!D58\")","v":0},{"$f":"INDIRECT(\"'Farms Operated Work Version'!E58\")","v":0},{"$f":"IF(INDIRECT(\"'Farms Operated Work Version'!F58\")=\"TOTAL CROP ACRES\",\"\",IF(INDIRECT(\"'Farms Operated Work Version'!F58\")=\"TOTAL FULL SHARE ACRES\",\"\",IF(INDIRECT(\"'Farms Operated Work Version'!F58\")=\"CIF Number\",\"\",INDIRECT(\"'Farms Operated Work Version'!F58\"))))","v":0},{"$f":"IF(INDIRECT(\"'Farms Operated Work Version'!G58\")=\"CIF Number\",\"\",INDIRECT(\"'Farms Operated Work Version'!G58\"))","v":0},0,0,0,0,0,0,0,{"$f":"IF(INDIRECT(\"'Farms Operated Work Version'!O58\")=\"Date\",\"\",IF(INDIRECT(\"'Farms Operated Work Version'!O58\")=date,\"\",INDIRECT(\"'Farms Operated Work Version'!O58\")))","v":""},{"$f":"IF(INDIRECT(\"'Farms Operated Work Version'!P58\")=\"Total Rent Paid:\",\"\",IF(INDIRECT(\"'Farms Operated Work Version'!P58\")=\"Avg. Rent Per Acre:\",\"\",INDIRECT(\"'Farms Operated Work Version'!P58\")))","v":0},0]
[{"$f":"IF(INDIRECT(\"'Farms Operated Work Version'!A59:B59\")=\"COMMENTS\",\"\",IF(INDIRECT(\"'Farms Operated Work Version'!A59:B59\")=\"Loan Entity\",\"\",IF(INDIRECT(\"'Farms Operated Work Version'!A59:B59\")=\"FCS\",\"\",IF(INDIRECT(\"'Farms Operated Work Version'!A59:B59\")=\"(Explain Flex Rent Lease)\",\"\",IF(INDIRECT(\"'Farms Operated Work Version'!A59:B59\")=\"(Explain Custom Hire Agreement)\",\"\",IF(INDIRECT(\"'Farms Operated Work Version'!A59\")=comments,\"\",INDIRECT(\"'Farms Operated Work Version'!A59:B59\")))))))","v":0},null,{"$f":"IF(INDIRECT(\"'Farms Operated Work Version'!C59\")=\"Branch #\",\"\",IF(INDIRECT(\"'Farms Operated Work Version'!C59\")=number,\"\",INDIRECT(\"'Farms Operated Work Version'!C59\")))","v":""},{"$f":"INDIRECT(\"'Farms Operated Work Version'!D59\")","v":0},{"$f":"INDIRECT(\"'Farms Operated Work Version'!E59\")","v":0},{"$f":"IF(INDIRECT(\"'Farms Operated Work Version'!F59\")=\"TOTAL CROP ACRES\",\"\",IF(INDIRECT(\"'Farms Operated Work Version'!F59\")=\"TOTAL FULL SHARE ACRES\",\"\",IF(INDIRECT(\"'Farms Operated Work Version'!F59\")=\"CIF Number\",\"\",INDIRECT(\"'Farms Operated Work Version'!F59\"))))","v":0},{"$f":"IF(INDIRECT(\"'Farms Operated Work Version'!G59\")=\"CIF Number\",\"\",INDIRECT(\"'Farms Operated Work Version'!G59\"))","v":0},0,0,0,0,0,0,0,{"$f":"IF(INDIRECT(\"'Farms Operated Work Version'!O59\")=\"Date\",\"\",IF(INDIRECT(\"'Farms Operated Work Version'!O59\")=date,\"\",INDIRECT(\"'Farms Operated Work Version'!O59\")))","v":""},{"$f":"IF(INDIRECT(\"'Farms Operated Work Version'!P59\")=\"Total Rent Paid:\",\"\",IF(INDIRECT(\"'Farms Operated Work Version'!P59\")=\"Avg. Rent Per Acre:\",\"\",INDIRECT(\"'Farms Operated Work Version'!P59\")))","v":0},0]
[{"$f":"IF(INDIRECT(\"'Farms Operated Work Version'!A60:B60\")=\"COMMENTS\",\"\",IF(INDIRECT(\"'Farms Operated Work Version'!A60:B60\")=\"Loan Entity\",\"\",IF(INDIRECT(\"'Farms Operated Work Version'!A60:B60\")=\"FCS\",\"\",IF(INDIRECT(\"'Farms Operated Work Version'!A60:B60\")=\"(Explain Flex Rent Lease)\",\"\",IF(INDIRECT(\"'Farms Operated Work Version'!A60:B60\")=\"(Explain Custom Hire Agreement)\",\"\",IF(INDIRECT(\"'Farms Operated Work Version'!A60\")=comments,\"\",INDIRECT(\"'Farms Operated Work Version'!A60:B60\")))))))","v":0},null,{"$f":"IF(INDIRECT(\"'Farms Operated Work Version'!C60\")=\"Branch #\",\"\",IF(INDIRECT(\"'Farms Operated Work Version'!C60\")=number,\"\",INDIRECT(\"'Farms Operated Work Version'!C60\")))","v":""},{"$f":"INDIRECT(\"'Farms Operated Work Version'!D60\")","v":0},{"$f":"INDIRECT(\"'Farms Operated Work Version'!E60\")","v":0},{"$f":"IF(INDIRECT(\"'Farms Operated Work Version'!F60\")=\"TOTAL CROP ACRES\",\"\",IF(INDIRECT(\"'Farms Operated Work Version'!F60\")=\"TOTAL FULL SHARE ACRES\",\"\",IF(INDIRECT(\"'Farms Operated Work Version'!F60\")=\"CIF Number\",\"\",INDIRECT(\"'Farms Operated Work Version'!F60\"))))","v":0},{"$f":"IF(INDIRECT(\"'Farms Operated Work Version'!G60\")=\"CIF Number\",\"\",INDIRECT(\"'Farms Operated Work Version'!G60\"))","v":0},0,0,0,0,0,0,0,{"$f":"IF(INDIRECT(\"'Farms Operated Work Version'!O60\")=\"Date\",\"\",IF(INDIRECT(\"'Farms Operated Work Version'!O60\")=date,\"\",INDIRECT(\"'Farms Operated Work Version'!O60\")))","v":""},{"$f":"IF(INDIRECT(\"'Farms Operated Work Version'!P60\")=\"Total Rent Paid:\",\"\",IF(INDIRECT(\"'Farms Operated Work Version'!P60\")=\"Avg. Rent Per Acre:\",\"\",INDIRECT(\"'Farms Operated Work Version'!P60\")))","v":0},0]
[{"$f":"IF(INDIRECT(\"'Farms Operated Work Version'!A61:B61\")=\"COMMENTS\",\"\",IF(INDIRECT(\"'Farms Operated Work Version'!A61:B61\")=\"Loan Entity\",\"\",IF(INDIRECT(\"'Farms Operated Work Version'!A61:B61\")=\"FCS\",\"\",IF(INDIRECT(\"'Farms Operated Work Version'!A61:B61\")=\"(Explain Flex Rent Lease)\",\"\",IF(INDIRECT(\"'Farms Operated Work Version'!A61:B61\")=\"(Explain Custom Hire Agreement)\",\"\",IF(INDIRECT(\"'Farms Operated Work Version'!A61\")=comments,\"\",INDIRECT(\"'Farms Operated Work Version'!A61:B61\")))))))","v":0},null,{"$f":"IF(INDIRECT(\"'Farms Operated Work Version'!C61\")=\"Branch #\",\"\",IF(INDIRECT(\"'Farms Operated Work Version'!C61\")=number,\"\",INDIRECT(\"'Farms Operated Work Version'!C61\")))","v":""},{"$f":"INDIRECT(\"'Farms Operated Work Version'!D61\")","v":0},{"$f":"INDIRECT(\"'Farms Operated Work Version'!E61\")","v":0},{"$f":"IF(INDIRECT(\"'Farms Operated Work Version'!F61\")=\"TOTAL CROP ACRES\",\"\",IF(INDIRECT(\"'Farms Operated Work Version'!F61\")=\"TOTAL FULL SHARE ACRES\",\"\",IF(INDIRECT(\"'Farms Operated Work Version'!F61\")=\"CIF Number\",\"\",INDIRECT(\"'Farms Operated Work Version'!F61\"))))","v":0},{"$f":"IF(INDIRECT(\"'Farms Operated Work Version'!G61\")=\"CIF Number\",\"\",INDIRECT(\"'Farms Operated Work Version'!G61\"))","v":0},0,0,0,0,0,0,0,{"$f":"IF(INDIRECT(\"'Farms Operated Work Version'!O61\")=\"Date\",\"\",IF(INDIRECT(\"'Farms Operated Work Version'!O61\")=date,\"\",INDIRECT(\"'Farms Operated Work Version'!O61\")))","v":""},{"$f":"IF(INDIRECT(\"'Farms Operated Work Version'!P61\")=\"Total Rent Paid:\",\"\",IF(INDIRECT(\"'Farms Operated Work Version'!P61\")=\"Avg. Rent Per Acre:\",\"\",INDIRECT(\"'Farms Operated Work Version'!P61\")))","v":0},0]
[{"$f":"IF(INDIRECT(\"'Farms Operated Work Version'!A62:B62\")=\"COMMENTS\",\"\",IF(INDIRECT(\"'Farms Operated Work Version'!A62:B62\")=\"Loan Entity\",\"\",IF(INDIRECT(\"'Farms Operated Work Version'!A62:B62\")=\"FCS\",\"\",IF(INDIRECT(\"'Farms Operated Work Version'!A62:B62\")=\"(Explain Flex Rent Lease)\",\"\",IF(INDIRECT(\"'Farms Operated Work Version'!A62:B62\")=\"(Explain Custom Hire Agreement)\",\"\",IF(INDIRECT(\"'Farms Operated Work Version'!A62\")=comments,\"\",INDIRECT(\"'Farms Operated Work Version'!A62:B62\")))))))","v":0},null,{"$f":"IF(INDIRECT(\"'Farms Operated Work Version'!C62\")=\"Branch #\",\"\",IF(INDIRECT(\"'Farms Operated Work Version'!C62\")=number,\"\",INDIRECT(\"'Farms Operated Work Version'!C62\")))","v":""},{"$f":"INDIRECT(\"'Farms Operated Work Version'!D62\")","v":0},{"$f":"INDIRECT(\"'Farms Operated Work Version'!E62\")","v":0},{"$f":"IF(INDIRECT(\"'Farms Operated Work Version'!F62\")=\"TOTAL CROP ACRES\",\"\",IF(INDIRECT(\"'Farms Operated Work Version'!F62\")=\"TOTAL FULL SHARE ACRES\",\"\",IF(INDIRECT(\"'Farms Operated Work Version'!F62\")=\"CIF Number\",\"\",INDIRECT(\"'Farms Operated Work Version'!F62\"))))","v":0},{"$f":"IF(INDIRECT(\"'Farms Operated Work Version'!G62\")=\"CIF Number\",\"\",INDIRECT(\"'Farms Operated Work Version'!G62\"))","v":0},0,0,0,0,0,0,0,{"$f":"IF(INDIRECT(\"'Farms Operated Work Version'!O62\")=\"Date\",\"\",IF(INDIRECT(\"'Farms Operated Work Version'!O62\")=date,\"\",INDIRECT(\"'Farms Operated Work Version'!O62\")))","v":""},{"$f":"IF(INDIRECT(\"'Farms Operated Work Version'!P62\")=\"Total Rent Paid:\",\"\",IF(INDIRECT(\"'Farms Operated Work Version'!P62\")=\"Avg. Rent Per Acre:\",\"\",INDIRECT(\"'Farms Operated Work Version'!P62\")))","v":0},0]
[{"$f":"IF(INDIRECT(\"'Farms Operated Work Version'!A63:B63\")=\"COMMENTS\",\"\",IF(INDIRECT(\"'Farms Operated Work Version'!A63:B63\")=\"Loan Entity\",\"\",IF(INDIRECT(\"'Farms Operated Work Version'!A63:B63\")=\"FCS\",\"\",IF(INDIRECT(\"'Farms Operated Work Version'!A63:B63\")=\"(Explain Flex Rent Lease)\",\"\",IF(INDIRECT(\"'Farms Operated Work Version'!A63:B63\")=\"(Explain Custom Hire Agreement)\",\"\",IF(INDIRECT(\"'Farms Operated Work Version'!A63\")=comments,\"\",INDIRECT(\"'Farms Operated Work Version'!A63:B63\")))))))","v":0},null,{"$f":"IF(INDIRECT(\"'Farms Operated Work Version'!C63\")=\"Branch #\",\"\",IF(INDIRECT(\"'Farms Operated Work Version'!C63\")=number,\"\",INDIRECT(\"'Farms Operated Work Version'!C63\")))","v":""},{"$f":"INDIRECT(\"'Farms Operated Work Version'!D63\")","v":0},{"$f":"INDIRECT(\"'Farms Operated Work Version'!E63\")","v":0},{"$f":"IF(INDIRECT(\"'Farms Operated Work Version'!F63\")=\"TOTAL CROP ACRES\",\"\",IF(INDIRECT(\"'Farms Operated Work Version'!F63\")=\"TOTAL FULL SHARE ACRES\",\"\",IF(INDIRECT(\"'Farms Operated Work Version'!F63\")=\"CIF Number\",\"\",INDIRECT(\"'Farms Operated Work Version'!F63\"))))","v":0},{"$f":"IF(INDIRECT(\"'Farms Operated Work Version'!G63\")=\"CIF Number\",\"\",INDIRECT(\"'Farms Operated Work Version'!G63\"))","v":0},0,0,0,0,0,0,0,{"$f":"IF(INDIRECT(\"'Farms Operated Work Version'!O63\")=\"Date\",\"\",IF(INDIRECT(\"'Farms Operated Work Version'!O63\")=date,\"\",INDIRECT(\"'Farms Operated Work Version'!O63\")))","v":""},{"$f":"IF(INDIRECT(\"'Farms Operated Work Version'!P63\")=\"Total Rent Paid:\",\"\",IF(INDIRECT(\"'Farms Operated Work Version'!P63\")=\"Avg. Rent Per Acre:\",\"\",INDIRECT(\"'Farms Operated Work Version'!P63\")))","v":0},0]
[{"$f":"IF(INDIRECT(\"'Farms Operated Work Version'!A64:B64\")=\"COMMENTS\",\"\",IF(INDIRECT(\"'Farms Operated Work Version'!A64:B64\")=\"Loan Entity\",\"\",IF(INDIRECT(\"'Farms Operated Work Version'!A64:B64\")=\"FCS\",\"\",IF(INDIRECT(\"'Farms Operated Work Version'!A64:B64\")=\"(Explain Flex Rent Lease)\",\"\",IF(INDIRECT(\"'Farms Operated Work Version'!A64:B64\")=\"(Explain Custom Hire Agreement)\",\"\",IF(INDIRECT(\"'Farms Operated Work Version'!A64\")=comments,\"\",INDIRECT(\"'Farms Operated Work Version'!A64:B64\")))))))","v":0},null,{"$f":"IF(INDIRECT(\"'Farms Operated Work Version'!C64\")=\"Branch #\",\"\",IF(INDIRECT(\"'Farms Operated Work Version'!C64\")=number,\"\",INDIRECT(\"'Farms Operated Work Version'!C64\")))","v":""},{"$f":"INDIRECT(\"'Farms Operated Work Version'!D64\")","v":0},{"$f":"INDIRECT(\"'Farms Operated Work Version'!E64\")","v":0},{"$f":"IF(INDIRECT(\"'Farms Operated Work Version'!F64\")=\"TOTAL CROP ACRES\",\"\",IF(INDIRECT(\"'Farms Operated Work Version'!F64\")=\"TOTAL FULL SHARE ACRES\",\"\",IF(INDIRECT(\"'Farms Operated Work Version'!F64\")=\"CIF Number\",\"\",INDIRECT(\"'Farms Operated Work Version'!F64\"))))","v":0},{"$f":"IF(INDIRECT(\"'Farms Operated Work Version'!G64\")=\"CIF Number\",\"\",INDIRECT(\"'Farms Operated Work Version'!G64\"))","v":0},0,0,0,0,0,0,0,{"$f":"IF(INDIRECT(\"'Farms Operated Work Version'!O64\")=\"Date\",\"\",IF(INDIRECT(\"'Farms Operated Work Version'!O64\")=date,\"\",INDIRECT(\"'Farms Operated Work Version'!O64\")))","v":""},{"$f":"IF(INDIRECT(\"'Farms Operated Work Version'!P64\")=\"Total Rent Paid:\",\"\",IF(INDIRECT(\"'Farms Operated Work Version'!P64\")=\"Avg. Rent Per Acre:\",\"\",INDIRECT(\"'Farms Operated Work Version'!P64\")))","v":0},0]
[{"$f":"IF(INDIRECT(\"'Farms Operated Work Version'!A65:B65\")=\"COMMENTS\",\"\",IF(INDIRECT(\"'Farms Operated Work Version'!A65:B65\")=\"Loan Entity\",\"\",IF(INDIRECT(\"'Farms Operated Work Version'!A65:B65\")=\"FCS\",\"\",IF(INDIRECT(\"'Farms Operated Work Version'!A65:B65\")=\"(Explain Flex Rent Lease)\",\"\",IF(INDIRECT(\"'Farms Operated Work Version'!A65:B65\")=\"(Explain Custom Hire Agreement)\",\"\",IF(INDIRECT(\"'Farms Operated Work Version'!A65\")=comments,\"\",INDIRECT(\"'Farms Operated Work Version'!A65:B65\")))))))","v":0},null,{"$f":"IF(INDIRECT(\"'Farms Operated Work Version'!C65\")=\"Branch #\",\"\",IF(INDIRECT(\"'Farms Operated Work Version'!C65\")=number,\"\",INDIRECT(\"'Farms Operated Work Version'!C65\")))","v":""},{"$f":"INDIRECT(\"'Farms Operated Work Version'!D65\")","v":0},{"$f":"INDIRECT(\"'Farms Operated Work Version'!E65\")","v":0},{"$f":"IF(INDIRECT(\"'Farms Operated Work Version'!F65\")=\"TOTAL CROP ACRES\",\"\",IF(INDIRECT(\"'Farms Operated Work Version'!F65\")=\"TOTAL FULL SHARE ACRES\",\"\",IF(INDIRECT(\"'Farms Operated Work Version'!F65\")=\"CIF Number\",\"\",INDIRECT(\"'Farms Operated Work Version'!F65\"))))","v":0},{"$f":"IF(INDIRECT(\"'Farms Operated Work Version'!G65\")=\"CIF Number\",\"\",INDIRECT(\"'Farms Operated Work Version'!G65\"))","v":0},0,0,0,0,0,0,0,{"$f":"IF(INDIRECT(\"'Farms Operated Work Version'!O65\")=\"Date\",\"\",IF(INDIRECT(\"'Farms Operated Work Version'!O65\")=date,\"\",INDIRECT(\"'Farms Operated Work Version'!O65\")))","v":""},{"$f":"IF(INDIRECT(\"'Farms Operated Work Version'!P65\")=\"Total Rent Paid:\",\"\",IF(INDIRECT(\"'Farms Operated Work Version'!P65\")=\"Avg. Rent Per Acre:\",\"\",INDIRECT(\"'Farms Operated Work Version'!P65\")))","v":0},0]
[{"$f":"IF(INDIRECT(\"'Farms Operated Work Version'!A66:B66\")=\"COMMENTS\",\"\",IF(INDIRECT(\"'Farms Operated Work Version'!A66:B66\")=\"Loan Entity\",\"\",IF(INDIRECT(\"'Farms Operated Work Version'!A66:B66\")=\"FCS\",\"\",IF(INDIRECT(\"'Farms Operated Work Version'!A66:B66\")=\"(Explain Flex Rent Lease)\",\"\",IF(INDIRECT(\"'Farms Operated Work Version'!A66:B66\")=\"(Explain Custom Hire Agreement)\",\"\",IF(INDIRECT(\"'Farms Operated Work Version'!A66\")=comments,\"\",INDIRECT(\"'Farms Operated Work Version'!A66:B66\")))))))","v":0},null,{"$f":"IF(INDIRECT(\"'Farms Operated Work Version'!C66\")=\"Branch #\",\"\",IF(INDIRECT(\"'Farms Operated Work Version'!C66\")=number,\"\",INDIRECT(\"'Farms Operated Work Version'!C66\")))","v":""},{"$f":"INDIRECT(\"'Farms Operated Work Version'!D66\")","v":0},{"$f":"INDIRECT(\"'Farms Operated Work Version'!E66\")","v":0},{"$f":"IF(INDIRECT(\"'Farms Operated Work Version'!F66\")=\"TOTAL CROP ACRES\",\"\",IF(INDIRECT(\"'Farms Operated Work Version'!F66\")=\"TOTAL FULL SHARE ACRES\",\"\",IF(INDIRECT(\"'Farms Operated Work Version'!F66\")=\"CIF Number\",\"\",INDIRECT(\"'Farms Operated Work Version'!F66\"))))","v":0},{"$f":"IF(INDIRECT(\"'Farms Operated Work Version'!G66\")=\"CIF Number\",\"\",INDIRECT(\"'Farms Operated Work Version'!G66\"))","v":0},0,0,0,0,0,0,0,{"$f":"IF(INDIRECT(\"'Farms Operated Work Version'!O66\")=\"Date\",\"\",IF(INDIRECT(\"'Farms Operated Work Version'!O66\")=date,\"\",INDIRECT(\"'Farms Operated Work Version'!O66\")))","v":""},{"$f":"IF(INDIRECT(\"'Farms Operated Work Version'!P66\")=\"Total Rent Paid:\",\"\",IF(INDIRECT(\"'Farms Operated Work Version'!P66\")=\"Avg. Rent Per Acre:\",\"\",INDIRECT(\"'Farms Operated Work Version'!P66\")))","v":0},0]
[{"$f":"IF(INDIRECT(\"'Farms Operated Work Version'!A67:B67\")=\"COMMENTS\",\"\",IF(INDIRECT(\"'Farms Operated Work Version'!A67:B67\")=\"Loan Entity\",\"\",IF(INDIRECT(\"'Farms Operated Work Version'!A67:B67\")=\"FCS\",\"\",IF(INDIRECT(\"'Farms Operated Work Version'!A67:B67\")=\"(Explain Flex Rent Lease)\",\"\",IF(INDIRECT(\"'Farms Operated Work Version'!A67:B67\")=\"(Explain Custom Hire Agreement)\",\"\",IF(INDIRECT(\"'Farms Operated Work Version'!A67\")=comments,\"\",INDIRECT(\"'Farms Operated Work Version'!A67:B67\")))))))","v":0},null,{"$f":"IF(INDIRECT(\"'Farms Operated Work Version'!C67\")=\"Branch #\",\"\",IF(INDIRECT(\"'Farms Operated Work Version'!C67\")=number,\"\",INDIRECT(\"'Farms Operated Work Version'!C67\")))","v":""},{"$f":"INDIRECT(\"'Farms Operated Work Version'!D67\")","v":0},{"$f":"INDIRECT(\"'Farms Operated Work Version'!E67\")","v":0},{"$f":"IF(INDIRECT(\"'Farms Operated Work Version'!F67\")=\"TOTAL CROP ACRES\",\"\",IF(INDIRECT(\"'Farms Operated Work Version'!F67\")=\"TOTAL FULL SHARE ACRES\",\"\",IF(INDIRECT(\"'Farms Operated Work Version'!F67\")=\"CIF Number\",\"\",INDIRECT(\"'Farms Operated Work Version'!F67\"))))","v":0},{"$f":"IF(INDIRECT(\"'Farms Operated Work Version'!G67\")=\"CIF Number\",\"\",INDIRECT(\"'Farms Operated Work Version'!G67\"))","v":0},0,0,0,0,0,0,0,{"$f":"IF(INDIRECT(\"'Farms Operated Work Version'!O67\")=\"Date\",\"\",IF(INDIRECT(\"'Farms Operated Work Version'!O67\")=date,\"\",INDIRECT(\"'Farms Operated Work Version'!O67\")))","v":""},{"$f":"IF(INDIRECT(\"'Farms Operated Work Version'!P67\")=\"Total Rent Paid:\",\"\",IF(INDIRECT(\"'Farms Operated Work Version'!P67\")=\"Avg. Rent Per Acre:\",\"\",INDIRECT(\"'Farms Operated Work Version'!P67\")))","v":0},0]
[{"$f":"IF(INDIRECT(\"'Farms Operated Work Version'!A68:B68\")=\"COMMENTS\",\"\",IF(INDIRECT(\"'Farms Operated Work Version'!A68:B68\")=\"Loan Entity\",\"\",IF(INDIRECT(\"'Farms Operated Work Version'!A68:B68\")=\"FCS\",\"\",IF(INDIRECT(\"'Farms Operated Work Version'!A68:B68\")=\"(Explain Flex Rent Lease)\",\"\",IF(INDIRECT(\"'Farms Operated Work Version'!A68:B68\")=\"(Explain Custom Hire Agreement)\",\"\",IF(INDIRECT(\"'Farms Operated Work Version'!A68\")=comments,\"\",INDIRECT(\"'Farms Operated Work Version'!A68:B68\")))))))","v":0},null,{"$f":"IF(INDIRECT(\"'Farms Operated Work Version'!C68\")=\"Branch #\",\"\",IF(INDIRECT(\"'Farms Operated Work Version'!C68\")=number,\"\",INDIRECT(\"'Farms Operated Work Version'!C68\")))","v":""},{"$f":"INDIRECT(\"'Farms Operated Work Version'!D68\")","v":0},{"$f":"INDIRECT(\"'Farms Operated Work Version'!E68\")","v":0},{"$f":"IF(INDIRECT(\"'Farms Operated Work Version'!F68\")=\"TOTAL CROP ACRES\",\"\",IF(INDIRECT(\"'Farms Operated Work Version'!F68\")=\"TOTAL FULL SHARE ACRES\",\"\",IF(INDIRECT(\"'Farms Operated Work Version'!F68\")=\"CIF Number\",\"\",INDIRECT(\"'Farms Operated Work Version'!F68\"))))","v":0},{"$f":"IF(INDIRECT(\"'Farms Operated Work Version'!G68\")=\"CIF Number\",\"\",INDIRECT(\"'Farms Operated Work Version'!G68\"))","v":0},0,0,0,0,0,0,0,{"$f":"IF(INDIRECT(\"'Farms Operated Work Version'!O68\")=\"Date\",\"\",IF(INDIRECT(\"'Farms Operated Work Version'!O68\")=date,\"\",INDIRECT(\"'Farms Operated Work Version'!O68\")))","v":""},{"$f":"IF(INDIRECT(\"'Farms Operated Work Version'!P68\")=\"Total Rent Paid:\",\"\",IF(INDIRECT(\"'Farms Operated Work Version'!P68\")=\"Avg. Rent Per Acre:\",\"\",INDIRECT(\"'Farms Operated Work Version'!P68\")))","v":0},0]
[{"$f":"IF(INDIRECT(\"'Farms Operated Work Version'!A69:B69\")=\"COMMENTS\",\"\",IF(INDIRECT(\"'Farms Operated Work Version'!A69:B69\")=\"Loan Entity\",\"\",IF(INDIRECT(\"'Farms Operated Work Version'!A69:B69\")=\"FCS\",\"\",IF(INDIRECT(\"'Farms Operated Work Version'!A69:B69\")=\"(Explain Flex Rent Lease)\",\"\",IF(INDIRECT(\"'Farms Operated Work Version'!A69:B69\")=\"(Explain Custom Hire Agreement)\",\"\",IF(INDIRECT(\"'Farms Operated Work Version'!A69\")=comments,\"\",INDIRECT(\"'Farms Operated Work Version'!A69:B69\")))))))","v":0},null,{"$f":"IF(INDIRECT(\"'Farms Operated Work Version'!C69\")=\"Branch #\",\"\",IF(INDIRECT(\"'Farms Operated Work Version'!C69\")=number,\"\",INDIRECT(\"'Farms Operated Work Version'!C69\")))","v":""},{"$f":"INDIRECT(\"'Farms Operated Work Version'!D69\")","v":0},{"$f":"INDIRECT(\"'Farms Operated Work Version'!E69\")","v":0},{"$f":"IF(INDIRECT(\"'Farms Operated Work Version'!F69\")=\"TOTAL CROP ACRES\",\"\",IF(INDIRECT(\"'Farms Operated Work Version'!F69\")=\"TOTAL FULL SHARE ACRES\",\"\",IF(INDIRECT(\"'Farms Operated Work Version'!F69\")=\"CIF Number\",\"\",INDIRECT(\"'Farms Operated Work Version'!F69\"))))","v":0},{"$f":"IF(INDIRECT(\"'Farms Operated Work Version'!G69\")=\"CIF Number\",\"\",INDIRECT(\"'Farms Operated Work Version'!G69\"))","v":0},0,0,0,0,0,0,0,{"$f":"IF(INDIRECT(\"'Farms Operated Work Version'!O69\")=\"Date\",\"\",IF(INDIRECT(\"'Farms Operated Work Version'!O69\")=date,\"\",INDIRECT(\"'Farms Operated Work Version'!O69\")))","v":""},{"$f":"IF(INDIRECT(\"'Farms Operated Work Version'!P69\")=\"Total Rent Paid:\",\"\",IF(INDIRECT(\"'Farms Operated Work Version'!P69\")=\"Avg. Rent Per Acre:\",\"\",INDIRECT(\"'Farms Operated Work Version'!P69\")))","v":0},0]
[{"$f":"IF(INDIRECT(\"'Farms Operated Work Version'!A70:B70\")=\"COMMENTS\",\"\",IF(INDIRECT(\"'Farms Operated Work Version'!A70:B70\")=\"Loan Entity\",\"\",IF(INDIRECT(\"'Farms Operated Work Version'!A70:B70\")=\"FCS\",\"\",IF(INDIRECT(\"'Farms Operated Work Version'!A70:B70\")=\"(Explain Flex Rent Lease)\",\"\",IF(INDIRECT(\"'Farms Operated Work Version'!A70:B70\")=\"(Explain Custom Hire Agreement)\",\"\",IF(INDIRECT(\"'Farms Operated Work Version'!A70\")=comments,\"\",INDIRECT(\"'Farms Operated Work Version'!A70:B70\")))))))","v":0},null,{"$f":"IF(INDIRECT(\"'Farms Operated Work Version'!C70\")=\"Branch #\",\"\",IF(INDIRECT(\"'Farms Operated Work Version'!C70\")=number,\"\",INDIRECT(\"'Farms Operated Work Version'!C70\")))","v":""},{"$f":"INDIRECT(\"'Farms Operated Work Version'!D70\")","v":0},{"$f":"INDIRECT(\"'Farms Operated Work Version'!E70\")","v":0},{"$f":"IF(INDIRECT(\"'Farms Operated Work Version'!F70\")=\"TOTAL CROP ACRES\",\"\",IF(INDIRECT(\"'Farms Operated Work Version'!F70\")=\"TOTAL FULL SHARE ACRES\",\"\",IF(INDIRECT(\"'Farms Operated Work Version'!F70\")=\"CIF Number\",\"\",INDIRECT(\"'Farms Operated Work Version'!F70\"))))","v":0},{"$f":"IF(INDIRECT(\"'Farms Operated Work Version'!G70\")=\"CIF Number\",\"\",INDIRECT(\"'Farms Operated Work Version'!G70\"))","v":0},{"$f":"IF($C102>0,IF(AND(H$4>=$C102,H$4<=$D102),$F102*$G102,0),0)","v":0},0,0,0,0,0,0,{"$f":"IF(INDIRECT(\"'Farms Operated Work Version'!O70\")=\"Date\",\"\",IF(INDIRECT(\"'Farms Operated Work Version'!O70\")=date,\"\",INDIRECT(\"'Farms Operated Work Version'!O70\")))","v":""},{"$f":"IF(INDIRECT(\"'Farms Operated Work Version'!P70\")=\"Total Rent Paid:\",\"\",IF(INDIRECT(\"'Farms Operated Work Version'!P70\")=\"Avg. Rent Per Acre:\",\"\",INDIRECT(\"'Farms Operated Work Version'!P70\")))","v":0},0]
[{"$f":"IF(INDIRECT(\"'Farms Operated Work Version'!A71:B71\")=\"COMMENTS\",\"\",IF(INDIRECT(\"'Farms Operated Work Version'!A71:B71\")=\"Loan Entity\",\"\",IF(INDIRECT(\"'Farms Operated Work Version'!A71:B71\")=\"FCS\",\"\",IF(INDIRECT(\"'Farms Operated Work Version'!A71:B71\")=\"(Explain Flex Rent Lease)\",\"\",IF(INDIRECT(\"'Farms Operated Work Version'!A71:B71\")=\"(Explain Custom Hire Agreement)\",\"\",IF(INDIRECT(\"'Farms Operated Work Version'!A71\")=comments,\"\",INDIRECT(\"'Farms Operated Work Version'!A71:B71\")))))))","v":0},null,{"$f":"IF(INDIRECT(\"'Farms Operated Work Version'!C71\")=\"Branch #\",\"\",IF(INDIRECT(\"'Farms Operated Work Version'!C71\")=number,\"\",INDIRECT(\"'Farms Operated Work Version'!C71\")))","v":""},{"$f":"INDIRECT(\"'Farms Operated Work Version'!D71\")","v":0},{"$f":"INDIRECT(\"'Farms Operated Work Version'!E71\")","v":0},{"$f":"IF(INDIRECT(\"'Farms Operated Work Version'!F71\")=\"TOTAL CROP ACRES\",\"\",IF(INDIRECT(\"'Farms Operated Work Version'!F71\")=\"TOTAL FULL SHARE ACRES\",\"\",IF(INDIRECT(\"'Farms Operated Work Version'!F71\")=\"CIF Number\",\"\",INDIRECT(\"'Farms Operated Work Version'!F71\"))))","v":0},{"$f":"IF(INDIRECT(\"'Farms Operated Work Version'!G71\")=\"CIF Number\",\"\",INDIRECT(\"'Farms Operated Work Version'!G71\"))","v":0},0,0,0,0,0,0,0,{"$f":"IF(INDIRECT(\"'Farms Operated Work Version'!O71\")=\"Date\",\"\",IF(INDIRECT(\"'Farms Operated Work Version'!O71\")=date,\"\",INDIRECT(\"'Farms Operated Work Version'!O71\")))","v":""},{"$f":"IF(INDIRECT(\"'Farms Operated Work Version'!P71\")=\"Total Rent Paid:\",\"\",IF(INDIRECT(\"'Farms Operated Work Version'!P71\")=\"Avg. Rent Per Acre:\",\"\",INDIRECT(\"'Farms Operated Work Version'!P71\")))","v":0},0]
[{"$f":"IF(INDIRECT(\"'Farms Operated Work Version'!A72:B72\")=\"COMMENTS\",\"\",IF(INDIRECT(\"'Farms Operated Work Version'!A72:B72\")=\"Loan Entity\",\"\",IF(INDIRECT(\"'Farms Operated Work Version'!A72:B72\")=\"FCS\",\"\",IF(INDIRECT(\"'Farms Operated Work Version'!A72:B72\")=\"(Explain Flex Rent Lease)\",\"\",IF(INDIRECT(\"'Farms Operated Work Version'!A72:B72\")=\"(Explain Custom Hire Agreement)\",\"\",IF(INDIRECT(\"'Farms Operated Work Version'!A72\")=comments,\"\",INDIRECT(\"'Farms Operated Work Version'!A72:B72\")))))))","v":0},null,{"$f":"IF(INDIRECT(\"'Farms Operated Work Version'!C72\")=\"Branch #\",\"\",IF(INDIRECT(\"'Farms Operated Work Version'!C72\")=number,\"\",INDIRECT(\"'Farms Operated Work Version'!C72\")))","v":""},{"$f":"INDIRECT(\"'Farms Operated Work Version'!D72\")","v":0},{"$f":"INDIRECT(\"'Farms Operated Work Version'!E72\")","v":0},{"$f":"IF(INDIRECT(\"'Farms Operated Work Version'!F72\")=\"TOTAL CROP ACRES\",\"\",IF(INDIRECT(\"'Farms Operated Work Version'!F72\")=\"TOTAL FULL SHARE ACRES\",\"\",IF(INDIRECT(\"'Farms Operated Work Version'!F72\")=\"CIF Number\",\"\",INDIRECT(\"'Farms Operated Work Version'!F72\"))))","v":0},{"$f":"IF(INDIRECT(\"'Farms Operated Work Version'!G72\")=\"CIF Number\",\"\",INDIRECT(\"'Farms Operated Work Version'!G72\"))","v":0},0,0,0,0,0,0,0,{"$f":"IF(INDIRECT(\"'Farms Operated Work Version'!O72\")=\"Date\",\"\",IF(INDIRECT(\"'Farms Operated Work Version'!O72\")=date,\"\",INDIRECT(\"'Farms Operated Work Version'!O72\")))","v":""},{"$f":"IF(INDIRECT(\"'Farms Operated Work Version'!P72\")=\"Total Rent Paid:\",\"\",IF(INDIRECT(\"'Farms Operated Work Version'!P72\")=\"Avg. Rent Per Acre:\",\"\",INDIRECT(\"'Farms Operated Work Version'!P72\")))","v":0},0]
[{"$f":"IF(INDIRECT(\"'Farms Operated Work Version'!A73:B73\")=\"COMMENTS\",\"\",IF(INDIRECT(\"'Farms Operated Work Version'!A73:B73\")=\"Loan Entity\",\"\",IF(INDIRECT(\"'Farms Operated Work Version'!A73:B73\")=\"FCS\",\"\",IF(INDIRECT(\"'Farms Operated Work Version'!A73:B73\")=\"(Explain Flex Rent Lease)\",\"\",IF(INDIRECT(\"'Farms Operated Work Version'!A73:B73\")=\"(Explain Custom Hire Agreement)\",\"\",IF(INDIRECT(\"'Farms Operated Work Version'!A73\")=comments,\"\",INDIRECT(\"'Farms Operated Work Version'!A73:B73\")))))))","v":0},null,{"$f":"IF(INDIRECT(\"'Farms Operated Work Version'!C73\")=\"Branch #\",\"\",IF(INDIRECT(\"'Farms Operated Work Version'!C73\")=number,\"\",INDIRECT(\"'Farms Operated Work Version'!C73\")))","v":""},{"$f":"INDIRECT(\"'Farms Operated Work Version'!D73\")","v":0},{"$f":"INDIRECT(\"'Farms Operated Work Version'!E73\")","v":0},{"$f":"IF(INDIRECT(\"'Farms Operated Work Version'!F73\")=\"TOTAL CROP ACRES\",\"\",IF(INDIRECT(\"'Farms Operated Work Version'!F73\")=\"TOTAL FULL SHARE ACRES\",\"\",IF(INDIRECT(\"'Farms Operated Work Version'!F73\")=\"CIF Number\",\"\",INDIRECT(\"'Farms Operated Work Version'!F73\"))))","v":0},{"$f":"IF(INDIRECT(\"'Farms Operated Work Version'!G73\")=\"CIF Number\",\"\",INDIRECT(\"'Farms Operated Work Version'!G73\"))","v":0},0,0,0,0,0,0,0,{"$f":"IF(INDIRECT(\"'Farms Operated Work Version'!O73\")=\"Date\",\"\",IF(INDIRECT(\"'Farms Operated Work Version'!O73\")=date,\"\",INDIRECT(\"'Farms Operated Work Version'!O73\")))","v":""},{"$f":"IF(INDIRECT(\"'Farms Operated Work Version'!P73\")=\"Total Rent Paid:\",\"\",IF(INDIRECT(\"'Farms Operated Work Version'!P73\")=\"Avg. Rent Per Acre:\",\"\",INDIRECT(\"'Farms Operated Work Version'!P73\")))","v":0},0]
[{"$f":"IF(INDIRECT(\"'Farms Operated Work Version'!A74:B74\")=\"COMMENTS\",\"\",IF(INDIRECT(\"'Farms Operated Work Version'!A74:B74\")=\"Loan Entity\",\"\",IF(INDIRECT(\"'Farms Operated Work Version'!A74:B74\")=\"FCS\",\"\",IF(INDIRECT(\"'Farms Operated Work Version'!A74:B74\")=\"(Explain Flex Rent Lease)\",\"\",IF(INDIRECT(\"'Farms Operated Work Version'!A74:B74\")=\"(Explain Custom Hire Agreement)\",\"\",IF(INDIRECT(\"'Farms Operated Work Version'!A74\")=comments,\"\",INDIRECT(\"'Farms Operated Work Version'!A74:B74\")))))))","v":0},null,{"$f":"IF(INDIRECT(\"'Farms Operated Work Version'!C74\")=\"Branch #\",\"\",IF(INDIRECT(\"'Farms Operated Work Version'!C74\")=number,\"\",INDIRECT(\"'Farms Operated Work Version'!C74\")))","v":""},{"$f":"INDIRECT(\"'Farms Operated Work Version'!D74\")","v":0},{"$f":"INDIRECT(\"'Farms Operated Work Version'!E74\")","v":0},{"$f":"IF(INDIRECT(\"'Farms Operated Work Version'!F74\")=\"TOTAL CROP ACRES\",\"\",IF(INDIRECT(\"'Farms Operated Work Version'!F74\")=\"TOTAL FULL SHARE ACRES\",\"\",IF(INDIRECT(\"'Farms Operated Work Version'!F74\")=\"CIF Number\",\"\",INDIRECT(\"'Farms Operated Work Version'!F74\"))))","v":0},{"$f":"IF(INDIRECT(\"'Farms Operated Work Version'!G74\")=\"CIF Number\",\"\",INDIRECT(\"'Farms Operated Work Version'!G74\"))","v":0},0,0,0,0,0,0,0,{"$f":"IF(INDIRECT(\"'Farms Operated Work Version'!O74\")=\"Date\",\"\",IF(INDIRECT(\"'Farms Operated Work Version'!O74\")=date,\"\",INDIRECT(\"'Farms Operated Work Version'!O74\")))","v":""},{"$f":"IF(INDIRECT(\"'Farms Operated Work Version'!P74\")=\"Total Rent Paid:\",\"\",IF(INDIRECT(\"'Farms Operated Work Version'!P74\")=\"Avg. Rent Per Acre:\",\"\",INDIRECT(\"'Farms Operated Work Version'!P74\")))","v":0},0]
[{"$f":"IF(INDIRECT(\"'Farms Operated Work Version'!A75:B75\")=\"COMMENTS\",\"\",IF(INDIRECT(\"'Farms Operated Work Version'!A75:B75\")=\"Loan Entity\",\"\",IF(INDIRECT(\"'Farms Operated Work Version'!A75:B75\")=\"FCS\",\"\",IF(INDIRECT(\"'Farms Operated Work Version'!A75:B75\")=\"(Explain Flex Rent Lease)\",\"\",IF(INDIRECT(\"'Farms Operated Work Version'!A75:B75\")=\"(Explain Custom Hire Agreement)\",\"\",IF(INDIRECT(\"'Farms Operated Work Version'!A75\")=comments,\"\",INDIRECT(\"'Farms Operated Work Version'!A75:B75\")))))))","v":0},null,{"$f":"IF(INDIRECT(\"'Farms Operated Work Version'!C75\")=\"Branch #\",\"\",IF(INDIRECT(\"'Farms Operated Work Version'!C75\")=number,\"\",INDIRECT(\"'Farms Operated Work Version'!C75\")))","v":""},{"$f":"INDIRECT(\"'Farms Operated Work Version'!D75\")","v":0},{"$f":"INDIRECT(\"'Farms Operated Work Version'!E75\")","v":0},{"$f":"IF(INDIRECT(\"'Farms Operated Work Version'!F75\")=\"TOTAL CROP ACRES\",\"\",IF(INDIRECT(\"'Farms Operated Work Version'!F75\")=\"TOTAL FULL SHARE ACRES\",\"\",IF(INDIRECT(\"'Farms Operated Work Version'!F75\")=\"CIF Number\",\"\",INDIRECT(\"'Farms Operated Work Version'!F75\"))))","v":0},{"$f":"IF(INDIRECT(\"'Farms Operated Work Version'!G75\")=\"CIF Number\",\"\",INDIRECT(\"'Farms Operated Work Version'!G75\"))","v":0},0,0,0,0,0,0,0,{"$f":"IF(INDIRECT(\"'Farms Operated Work Version'!O75\")=\"Date\",\"\",IF(INDIRECT(\"'Farms Operated Work Version'!O75\")=date,\"\",INDIRECT(\"'Farms Operated Work Version'!O75\")))","v":""},{"$f":"IF(INDIRECT(\"'Farms Operated Work Version'!P75\")=\"Total Rent Paid:\",\"\",IF(INDIRECT(\"'Farms Operated Work Version'!P75\")=\"Avg. Rent Per Acre:\",\"\",INDIRECT(\"'Farms Operated Work Version'!P75\")))","v":0},0]
[{"$f":"IF(INDIRECT(\"'Farms Operated Work Version'!A76:B76\")=\"COMMENTS\",\"\",IF(INDIRECT(\"'Farms Operated Work Version'!A76:B76\")=\"Loan Entity\",\"\",IF(INDIRECT(\"'Farms Operated Work Version'!A76:B76\")=\"FCS\",\"\",IF(INDIRECT(\"'Farms Operated Work Version'!A76:B76\")=\"(Explain Flex Rent Lease)\",\"\",IF(INDIRECT(\"'Farms Operated Work Version'!A76:B76\")=\"(Explain Custom Hire Agreement)\",\"\",IF(INDIRECT(\"'Farms Operated Work Version'!A76\")=comments,\"\",INDIRECT(\"'Farms Operated Work Version'!A76:B76\")))))))","v":0},null,{"$f":"IF(INDIRECT(\"'Farms Operated Work Version'!C76\")=\"Branch #\",\"\",IF(INDIRECT(\"'Farms Operated Work Version'!C76\")=number,\"\",INDIRECT(\"'Farms Operated Work Version'!C76\")))","v":""},{"$f":"INDIRECT(\"'Farms Operated Work Version'!D76\")","v":0},{"$f":"INDIRECT(\"'Farms Operated Work Version'!E76\")","v":0},{"$f":"IF(INDIRECT(\"'Farms Operated Work Version'!F76\")=\"TOTAL CROP ACRES\",\"\",IF(INDIRECT(\"'Farms Operated Work Version'!F76\")=\"TOTAL FULL SHARE ACRES\",\"\",IF(INDIRECT(\"'Farms Operated Work Version'!F76\")=\"CIF Number\",\"\",INDIRECT(\"'Farms Operated Work Version'!F76\"))))","v":0},{"$f":"IF(INDIRECT(\"'Farms Operated Work Version'!G76\")=\"CIF Number\",\"\",INDIRECT(\"'Farms Operated Work Version'!G76\"))","v":0},0,0,0,0,0,0,0,{"$f":"IF(INDIRECT(\"'Farms Operated Work Version'!O76\")=\"Date\",\"\",IF(INDIRECT(\"'Farms Operated Work Version'!O76\")=date,\"\",INDIRECT(\"'Farms Operated Work Version'!O76\")))","v":""},{"$f":"IF(INDIRECT(\"'Farms Operated Work Version'!P76\")=\"Total Rent Paid:\",\"\",IF(INDIRECT(\"'Farms Operated Work Version'!P76\")=\"Avg. Rent Per Acre:\",\"\",INDIRECT(\"'Farms Operated Work Version'!P76\")))","v":0},0]
[{"$f":"IF(INDIRECT(\"'Farms Operated Work Version'!A77:B77\")=\"COMMENTS\",\"\",IF(INDIRECT(\"'Farms Operated Work Version'!A77:B77\")=\"Loan Entity\",\"\",IF(INDIRECT(\"'Farms Operated Work Version'!A77:B77\")=\"FCS\",\"\",IF(INDIRECT(\"'Farms Operated Work Version'!A77:B77\")=\"(Explain Flex Rent Lease)\",\"\",IF(INDIRECT(\"'Farms Operated Work Version'!A77:B77\")=\"(Explain Custom Hire Agreement)\",\"\",IF(INDIRECT(\"'Farms Operated Work Version'!A77\")=comments,\"\",INDIRECT(\"'Farms Operated Work Version'!A77:B77\")))))))","v":0},null,{"$f":"IF(INDIRECT(\"'Farms Operated Work Version'!C77\")=\"Branch #\",\"\",IF(INDIRECT(\"'Farms Operated Work Version'!C77\")=number,\"\",INDIRECT(\"'Farms Operated Work Version'!C77\")))","v":""},{"$f":"INDIRECT(\"'Farms Operated Work Version'!D77\")","v":0},{"$f":"INDIRECT(\"'Farms Operated Work Version'!E77\")","v":0},{"$f":"IF(INDIRECT(\"'Farms Operated Work Version'!F77\")=\"TOTAL CROP ACRES\",\"\",IF(INDIRECT(\"'Farms Operated Work Version'!F77\")=\"TOTAL FULL SHARE ACRES\",\"\",IF(INDIRECT(\"'Farms Operated Work Version'!F77\")=\"CIF Number\",\"\",INDIRECT(\"'Farms Operated Work Version'!F77\"))))","v":0},{"$f":"IF(INDIRECT(\"'Farms Operated Work Version'!G77\")=\"CIF Number\",\"\",INDIRECT(\"'Farms Operated Work Version'!G77\"))","v":0},0,0,0,0,0,0,0,{"$f":"IF(INDIRECT(\"'Farms Operated Work Version'!O77\")=\"Date\",\"\",IF(INDIRECT(\"'Farms Operated Work Version'!O77\")=date,\"\",INDIRECT(\"'Farms Operated Work Version'!O77\")))","v":""},{"$f":"IF(INDIRECT(\"'Farms Operated Work Version'!P77\")=\"Total Rent Paid:\",\"\",IF(INDIRECT(\"'Farms Operated Work Version'!P77\")=\"Avg. Rent Per Acre:\",\"\",INDIRECT(\"'Farms Operated Work Version'!P77\")))","v":0},0]
[{"$f":"IF(INDIRECT(\"'Farms Operated Work Version'!A78:B78\")=\"COMMENTS\",\"\",IF(INDIRECT(\"'Farms Operated Work Version'!A78:B78\")=\"Loan Entity\",\"\",IF(INDIRECT(\"'Farms Operated Work Version'!A78:B78\")=\"FCS\",\"\",IF(INDIRECT(\"'Farms Operated Work Version'!A78:B78\")=\"(Explain Flex Rent Lease)\",\"\",IF(INDIRECT(\"'Farms Operated Work Version'!A78:B78\")=\"(Explain Custom Hire Agreement)\",\"\",IF(INDIRECT(\"'Farms Operated Work Version'!A78\")=comments,\"\",INDIRECT(\"'Farms Operated Work Version'!A78:B78\")))))))","v":0},null,{"$f":"IF(INDIRECT(\"'Farms Operated Work Version'!C78\")=\"Branch #\",\"\",IF(INDIRECT(\"'Farms Operated Work Version'!C78\")=number,\"\",INDIRECT(\"'Farms Operated Work Version'!C78\")))","v":""},{"$f":"INDIRECT(\"'Farms Operated Work Version'!D78\")","v":0},{"$f":"INDIRECT(\"'Farms Operated Work Version'!E78\")","v":0},{"$f":"IF(INDIRECT(\"'Farms Operated Work Version'!F78\")=\"TOTAL CROP ACRES\",\"\",IF(INDIRECT(\"'Farms Operated Work Version'!F78\")=\"TOTAL FULL SHARE ACRES\",\"\",IF(INDIRECT(\"'Farms Operated Work Version'!F78\")=\"CIF Number\",\"\",INDIRECT(\"'Farms Operated Work Version'!F78\"))))","v":0},{"$f":"IF(INDIRECT(\"'Farms Operated Work Version'!G78\")=\"CIF Number\",\"\",INDIRECT(\"'Farms Operated Work Version'!G78\"))","v":0},0,0,0,0,0,0,0,{"$f":"IF(INDIRECT(\"'Farms Operated Work Version'!O78\")=\"Date\",\"\",IF(INDIRECT(\"'Farms Operated Work Version'!O78\")=date,\"\",INDIRECT(\"'Farms Operated Work Version'!O78\")))","v":""},{"$f":"IF(INDIRECT(\"'Farms Operated Work Version'!P78\")=\"Total Rent Paid:\",\"\",IF(INDIRECT(\"'Farms Operated Work Version'!P78\")=\"Avg. Rent Per Acre:\",\"\",INDIRECT(\"'Farms Operated Work Version'!P78\")))","v":0},0]
[null,null,null,null,null,"TOTAL CROP ACRES",null,{"$f":"'Farms Operated Work Version'!$H$37","v":0},{"$f":"'Farms Operated Work Version'!$I$37","v":0},{"$f":"'Farms Operated Work Version'!$J$37","v":0},{"$f":"'Farms Operated Work Version'!$K$37","v":0},{"$f":"'Farms Operated Work Version'!$L$37","v":0},{"$f":"'Farms Operated Work Version'!$M$37","v":0},{"$f":"'Farms Operated Work Version'!$N$37","v":0},null,"Total Rent Paid:",{"$f":"'Farms Operated Work Version'!$Q$37","v":0}]
[null,null,null,null,null,"TOTAL FULL SHARE ACRES",null,{"$f":"'Farms Operated Work Version'!$H$38","v":0},{"$f":"'Farms Operated Work Version'!$I$38","v":0},{"$f":"'Farms Operated Work Version'!$J$38","v":0},{"$f":"'Farms Operated Work Version'!$K$38","v":0},{"$f":"'Farms Operated Work Version'!$L$38","v":0},{"$f":"'Farms Operated Work Version'!$M$38","v":0},{"$f":"'Farms Operated Work Version'!$N$38","v":0},null,"Avg. Rent Per Acre:",{"$f":"IFERROR(Q111/N115, \"\")","v":""}]
["COMMENTS",null,null,null,null,null,null,null,null,null,null,null,"TOTAL SHARE ACRES",{"$f":"'Farms Operated Work Version'!$N$39","v":0}]
["(Explain Flex Rent Lease)",null,null,null,null,null,null,null,null,null,null,null,"TOTAL OWNED ACRES",{"$f":"'Farms Operated Work Version'!$N$40","v":0}]
["(Explain Custom Hire Agreement)",null,null,null,null,null,null,null,null,null,null,null,"TOTAL CASH RENT ACRES",{"$f":"'Farms Operated Work Version'!$N$41","v":0}]
[{"$f":"'Farms Operated Work Version'!A41","v":"COMMENTS"},null,null,null,null,null,null,null,null,null,null,null,"CASH RENT:OWNED RATIO",{"$f":"IFERROR(N115/N114,\"\")","v":""}]
[]
[]
[]
[null,null,"Branch #",null,null,null,null,"Borrower Name",null,null,null,null,null,null,"Date"]
[null,null,{"$f":"number","v":0},null,null,null,null,{"$f":"name","v":0},null,null,null,null,null,null,{"$f":"date","v":"00:00:00"}]
[]
[]
[null,null,null,null,null,null,null,null,null,null,null,null,null,null,"Rental Terms (cash rent/ac, lease term, etc.)","Cash Rent Per Acre","Cash Rent Paid"]
["Owner/Farm Name",null,"Years Operated",null,"Total","Crop","Percentage","Full Share Acres"]
[null,null,"First","Last","Acres","Acres","Full Share",{"$f":"H4","v":2016},2017,2018,2019,2020,2021,2022]
[{"$f":"IF(INDIRECT(\"'Farms Operated Work Version'!A79:B79\")=\"COMMENTS\",\"\",IF(INDIRECT(\"'Farms Operated Work Version'!A79:B79\")=\"Loan Entity\",\"\",IF(INDIRECT(\"'Farms Operated Work Version'!A79:B79\")=\"FCS\",\"\",IF(INDIRECT(\"'Farms Operated Work Version'!A79:B79\")=\"(Explain Flex Rent Lease)\",\"\",IF(INDIRECT(\"'Farms Operated Work Version'!A79:B79\")=\"(Explain Custom Hire Agreement)\",\"\",IF(INDIRECT(\"'Farms Operated Work Version'!A79\")=comments,\"\",INDIRECT(\"'Farms Operated Work Version'!A79:B79\")))))))","v":0},null,{"$f":"IF(INDIRECT(\"'Farms Operated Work Version'!C79\")=\"Branch #\",\"\",IF(INDIRECT(\"'Farms Operated Work Version'!C79\")=number,\"\",INDIRECT(\"'Farms Operated Work Version'!C79\")))","v":""},{"$f":"INDIRECT(\"'Farms Operated Work Version'!D79\")","v":0},{"$f":"INDIRECT(\"'Farms Operated Work Version'!E79\")","v":0},{"$f":"IF(INDIRECT(\"'Farms Operated Work Version'!F79\")=\"TOTAL CROP ACRES\",\"\",IF(INDIRECT(\"'Farms Operated Work Version'!F79\")=\"TOTAL FULL SHARE ACRES\",\"\",IF(INDIRECT(\"'Farms Operated Work Version'!F79\")=\"CIF Number\",\"\",INDIRECT(\"'Farms Operated Work Version'!F79\"))))","v":0},{"$f":"IF(INDIRECT(\"'Farms Operated Work Version'!G79\")=\"CIF Number\",\"\",INDIRECT(\"'Farms Operated Work Version'!G79\"))","v":0},{"$f":"IF($C127>0,IF(AND(H$4>=$C127,H$4<=$D127),$F127*$G127,0),0)","v":0},0,0,0,0,0,0,{"$f":"IF(INDIRECT(\"'Farms Operated Work Version'!O79\")=\"Date\",\"\",IF(INDIRECT(\"'Farms Operated Work Version'!O79\")=date,\"\",INDIRECT(\"'Farms Operated Work Version'!O79\")))","v":""},{"$f":"IF(INDIRECT(\"'Farms Operated Work Version'!P79\")=\"Total Rent Paid:\",\"\",IF(INDIRECT(\"'Farms Operated Work Version'!P79\")=\"Avg. Rent Per Acre:\",\"\",INDIRECT(\"'Farms Operated Work Version'!P79\")))","v":0},{"$f":"IFERROR(P127*N127,\"\")","v":0}]
[{"$f":"IF(INDIRECT(\"'Farms Operated Work Version'!A80:B80\")=\"COMMENTS\",\"\",IF(INDIRECT(\"'Farms Operated Work Version'!A80:B80\")=\"Loan Entity\",\"\",IF(INDIRECT(\"'Farms Operated Work Version'!A80:B80\")=\"FCS\",\"\",IF(INDIRECT(\"'Farms Operated Work Version'!A80:B80\")=\"(Explain Flex Rent Lease)\",\"\",IF(INDIRECT(\"'Farms Operated Work Version'!A80:B80\")=\"(Explain Custom Hire Agreement)\",\"\",IF(INDIRECT(\"'Farms Operated Work Version'!A80\")=comments,\"\",INDIRECT(\"'Farms Operated Work Version'!A80:B80\")))))))","v":0},null,{"$f":"IF(INDIRECT(\"'Farms Operated Work Version'!C80\")=\"Branch #\",\"\",IF(INDIRECT(\"'Farms Operated Work Version'!C80\")=number,\"\",INDIRECT(\"'Farms Operated Work Version'!C80\")))","v":""},{"$f":"INDIRECT(\"'Farms Operated Work Version'!D80\")","v":0},{"$f":"INDIRECT(\"'Farms Operated Work Version'!E80\")","v":0},{"$f":"IF(INDIRECT(\"'Farms Operated Work Version'!F80\")=\"TOTAL CROP ACRES\",\"\",IF(INDIRECT(\"'Farms Operated Work Version'!F80\")=\"TOTAL FULL SHARE ACRES\",\"\",IF(INDIRECT(\"'Farms Operated Work Version'!F80\")=\"CIF Number\",\"\",INDIRECT(\"'Farms Operated Work Version'!F80\"))))","v":0},{"$f":"IF(INDIRECT(\"'Farms Operated Work Version'!G80\")=\"CIF Number\",\"\",INDIRECT(\"'Farms Operated Work Version'!G80\"))","v":0},0,0,0,0,0,0,0,{"$f":"IF(INDIRECT(\"'Farms Operated Work Version'!O80\")=\"Date\",\"\",IF(INDIRECT(\"'Farms Operated Work Version'!O80\")=date,\"\",INDIRECT(\"'Farms Operated Work Version'!O80\")))","v":""},{"$f":"IF(INDIRECT(\"'Farms Operated Work Version'!P80\")=\"Total Rent Paid:\",\"\",IF(INDIRECT(\"'Farms Operated Work Version'!P80\")=\"Avg. Rent Per Acre:\",\"\",INDIRECT(\"'Farms Operated Work Version'!P80\")))","v":0},{"$f":"IFERROR(P128*N128,\"\")","v":0}]
[{"$f":"IF(INDIRECT(\"'Farms Operated Work Version'!A81:B81\")=\"COMMENTS\",\"\",IF(INDIRECT(\"'Farms Operated Work Version'!A81:B81\")=\"Loan Entity\",\"\",IF(INDIRECT(\"'Farms Operated Work Version'!A81:B81\")=\"FCS\",\"\",IF(INDIRECT(\"'Farms Operated Work Version'!A81:B81\")=\"(Explain Flex Rent Lease)\",\"\",IF(INDIRECT(\"'Farms Operated Work Version'!A81:B81\")=\"(Explain Custom Hire Agreement)\",\"\",IF(INDIRECT(\"'Farms Operated Work Version'!A81\")=comments,\"\",INDIRECT(\"'Farms Operated Work Version'!A81:B81\")))))))","v":0},null,{"$f":"IF(INDIRECT(\"'Farms Operated Work Version'!C81\")=\"Branch #\",\"\",IF(INDIRECT(\"'Farms Operated Work Version'!C81\")=number,\"\",INDIRECT(\"'Farms Operated Work Version'!C81\")))","v":""},{"$f":"INDIRECT(\"'Farms Operated Work Version'!D81\")","v":0},{"$f":"INDIRECT(\"'Farms Operated Work Version'!E81\")","v":0},{"$f":"IF(INDIRECT(\"'Farms Operated Work Version'!F81\")=\"TOTAL CROP ACRES\",\"\",IF(INDIRECT(\"'Farms Operated Work Version'!F81\")=\"TOTAL FULL SHARE ACRES\",\"\",IF(INDIRECT(\"'Farms Operated Work Version'!F81\")=\"CIF Number\",\"\",INDIRECT(\"'Farms Operated Work Version'!F81\"))))","v":0},{"$f":"IF(INDIRECT(\"'Farms Operated Work Version'!G81\")=\"CIF Number\",\"\",INDIRECT(\"'Farms Operated Work Version'!G81\"))","v":0},0,0,0,0,0,0,0,{"$f":"IF(INDIRECT(\"'Farms Operated Work Version'!O81\")=\"Date\",\"\",IF(INDIRECT(\"'Farms Operated Work Version'!O81\")=date,\"\",INDIRECT(\"'Farms Operated Work Version'!O81\")))","v":""},{"$f":"IF(INDIRECT(\"'Farms Operated Work Version'!P81\")=\"Total Rent Paid:\",\"\",IF(INDIRECT(\"'Farms Operated Work Version'!P81\")=\"Avg. Rent Per Acre:\",\"\",INDIRECT(\"'Farms Operated Work Version'!P81\")))","v":0},0]
[{"$f":"IF(INDIRECT(\"'Farms Operated Work Version'!A82:B82\")=\"COMMENTS\",\"\",IF(INDIRECT(\"'Farms Operated Work Version'!A82:B82\")=\"Loan Entity\",\"\",IF(INDIRECT(\"'Farms Operated Work Version'!A82:B82\")=\"FCS\",\"\",IF(INDIRECT(\"'Farms Operated Work Version'!A82:B82\")=\"(Explain Flex Rent Lease)\",\"\",IF(INDIRECT(\"'Farms Operated Work Version'!A82:B82\")=\"(Explain Custom Hire Agreement)\",\"\",IF(INDIRECT(\"'Farms Operated Work Version'!A82\")=comments,\"\",INDIRECT(\"'Farms Operated Work Version'!A82:B82\")))))))","v":0},null,{"$f":"IF(INDIRECT(\"'Farms Operated Work Version'!C82\")=\"Branch #\",\"\",IF(INDIRECT(\"'Farms Operated Work Version'!C82\")=number,\"\",INDIRECT(\"'Farms Operated Work Version'!C82\")))","v":""},{"$f":"INDIRECT(\"'Farms Operated Work Version'!D82\")","v":0},{"$f":"INDIRECT(\"'Farms Operated Work Version'!E82\")","v":0},{"$f":"IF(INDIRECT(\"'Farms Operated Work Version'!F82\")=\"TOTAL CROP ACRES\",\"\",IF(INDIRECT(\"'Farms Operated Work Version'!F82\")=\"TOTAL FULL SHARE ACRES\",\"\",IF(INDIRECT(\"'Farms Operated Work Version'!F82\")=\"CIF Number\",\"\",INDIRECT(\"'Farms Operated Work Version'!F82\"))))","v":0},{"$f":"IF(INDIRECT(\"'Farms Operated Work Version'!G82\")=\"CIF Number\",\"\",INDIRECT(\"'Farms Operated Work Version'!G82\"))","v":0},0,0,0,0,0,0,0,{"$f":"IF(INDIRECT(\"'Farms Operated Work Version'!O82\")=\"Date\",\"\",IF(INDIRECT(\"'Farms Operated Work Version'!O82\")=date,\"\",INDIRECT(\"'Farms Operated Work Version'!O82\")))","v":""},{"$f":"IF(INDIRECT(\"'Farms Operated Work Version'!P82\")=\"Total Rent Paid:\",\"\",IF(INDIRECT(\"'Farms Operated Work Version'!P82\")=\"Avg. Rent Per Acre:\",\"\",INDIRECT(\"'Farms Operated Work Version'!P82\")))","v":0},0]
[{"$f":"IF(INDIRECT(\"'Farms Operated Work Version'!A83:B83\")=\"COMMENTS\",\"\",IF(INDIRECT(\"'Farms Operated Work Version'!A83:B83\")=\"Loan Entity\",\"\",IF(INDIRECT(\"'Farms Operated Work Version'!A83:B83\")=\"FCS\",\"\",IF(INDIRECT(\"'Farms Operated Work Version'!A83:B83\")=\"(Explain Flex Rent Lease)\",\"\",IF(INDIRECT(\"'Farms Operated Work Version'!A83:B83\")=\"(Explain Custom Hire Agreement)\",\"\",IF(INDIRECT(\"'Farms Operated Work Version'!A83\")=comments,\"\",INDIRECT(\"'Farms Operated Work Version'!A83:B83\")))))))","v":0},null,{"$f":"IF(INDIRECT(\"'Farms Operated Work Version'!C83\")=\"Branch #\",\"\",IF(INDIRECT(\"'Farms Operated Work Version'!C83\")=number,\"\",INDIRECT(\"'Farms Operated Work Version'!C83\")))","v":""},{"$f":"INDIRECT(\"'Farms Operated Work Version'!D83\")","v":0},{"$f":"INDIRECT(\"'Farms Operated Work Version'!E83\")","v":0},{"$f":"IF(INDIRECT(\"'Farms Operated Work Version'!F83\")=\"TOTAL CROP ACRES\",\"\",IF(INDIRECT(\"'Farms Operated Work Version'!F83\")=\"TOTAL FULL SHARE ACRES\",\"\",IF(INDIRECT(\"'Farms Operated Work Version'!F83\")=\"CIF Number\",\"\",INDIRECT(\"'Farms Operated Work Version'!F83\"))))","v":0},{"$f":"IF(INDIRECT(\"'Farms Operated Work Version'!G83\")=\"CIF Number\",\"\",INDIRECT(\"'Farms Operated Work Version'!G83\"))","v":0},0,0,0,0,0,0,0,{"$f":"IF(INDIRECT(\"'Farms Operated Work Version'!O83\")=\"Date\",\"\",IF(INDIRECT(\"'Farms Operated Work Version'!O83\")=date,\"\",INDIRECT(\"'Farms Operated Work Version'!O83\")))","v":""},{"$f":"IF(INDIRECT(\"'Farms Operated Work Version'!P83\")=\"Total Rent Paid:\",\"\",IF(INDIRECT(\"'Farms Operated Work Version'!P83\")=\"Avg. Rent Per Acre:\",\"\",INDIRECT(\"'Farms Operated Work Version'!P83\")))","v":0},0]
[{"$f":"IF(INDIRECT(\"'Farms Operated Work Version'!A84:B84\")=\"COMMENTS\",\"\",IF(INDIRECT(\"'Farms Operated Work Version'!A84:B84\")=\"Loan Entity\",\"\",IF(INDIRECT(\"'Farms Operated Work Version'!A84:B84\")=\"FCS\",\"\",IF(INDIRECT(\"'Farms Operated Work Version'!A84:B84\")=\"(Explain Flex Rent Lease)\",\"\",IF(INDIRECT(\"'Farms Operated Work Version'!A84:B84\")=\"(Explain Custom Hire Agreement)\",\"\",IF(INDIRECT(\"'Farms Operated Work Version'!A84\")=comments,\"\",INDIRECT(\"'Farms Operated Work Version'!A84:B84\")))))))","v":0},null,{"$f":"IF(INDIRECT(\"'Farms Operated Work Version'!C84\")=\"Branch #\",\"\",IF(INDIRECT(\"'Farms Operated Work Version'!C84\")=number,\"\",INDIRECT(\"'Farms Operated Work Version'!C84\")))","v":""},{"$f":"INDIRECT(\"'Farms Operated Work Version'!D84\")","v":0},{"$f":"INDIRECT(\"'Farms Operated Work Version'!E84\")","v":0},{"$f":"IF(INDIRECT(\"'Farms Operated Work Version'!F84\")=\"TOTAL CROP ACRES\",\"\",IF(INDIRECT(\"'Farms Operated Work Version'!F84\")=\"TOTAL FULL SHARE ACRES\",\"\",IF(INDIRECT(\"'Farms Operated Work Version'!F84\")=\"CIF Number\",\"\",INDIRECT(\"'Farms Operated Work Version'!F84\"))))","v":0},{"$f":"IF(INDIRECT(\"'Farms Operated Work Version'!G84\")=\"CIF Number\",\"\",INDIRECT(\"'Farms Operated Work Version'!G84\"))","v":0},0,0,0,0,0,0,0,{"$f":"IF(INDIRECT(\"'Farms Operated Work Version'!O84\")=\"Date\",\"\",IF(INDIRECT(\"'Farms Operated Work Version'!O84\")=date,\"\",INDIRECT(\"'Farms Operated Work Version'!O84\")))","v":""},{"$f":"IF(INDIRECT(\"'Farms Operated Work Version'!P84\")=\"Total Rent Paid:\",\"\",IF(INDIRECT(\"'Farms Operated Work Version'!P84\")=\"Avg. Rent Per Acre:\",\"\",INDIRECT(\"'Farms Operated Work Version'!P84\")))","v":0},0]
[{"$f":"IF(INDIRECT(\"'Farms Operated Work Version'!A85:B85\")=\"COMMENTS\",\"\",IF(INDIRECT(\"'Farms Operated Work Version'!A85:B85\")=\"Loan Entity\",\"\",IF(INDIRECT(\"'Farms Operated Work Version'!A85:B85\")=\"FCS\",\"\",IF(INDIRECT(\"'Farms Operated Work Version'!A85:B85\")=\"(Explain Flex Rent Lease)\",\"\",IF(INDIRECT(\"'Farms Operated Work Version'!A85:B85\")=\"(Explain Custom Hire Agreement)\",\"\",IF(INDIRECT(\"'Farms Operated Work Version'!A85\")=comments,\"\",INDIRECT(\"'Farms Operated Work Version'!A85:B85\")))))))","v":0},null,{"$f":"IF(INDIRECT(\"'Farms Operated Work Version'!C85\")=\"Branch #\",\"\",IF(INDIRECT(\"'Farms Operated Work Version'!C85\")=number,\"\",INDIRECT(\"'Farms Operated Work Version'!C85\")))","v":""},{"$f":"INDIRECT(\"'Farms Operated Work Version'!D85\")","v":0},{"$f":"INDIRECT(\"'Farms Operated Work Version'!E85\")","v":0},{"$f":"IF(INDIRECT(\"'Farms Operated Work Version'!F85\")=\"TOTAL CROP ACRES\",\"\",IF(INDIRECT(\"'Farms Operated Work Version'!F85\")=\"TOTAL FULL SHARE ACRES\",\"\",IF(INDIRECT(\"'Farms Operated Work Version'!F85\")=\"CIF Number\",\"\",INDIRECT(\"'Farms Operated Work Version'!F85\"))))","v":0},{"$f":"IF(INDIRECT(\"'Farms Operated Work Version'!G85\")=\"CIF Number\",\"\",INDIRECT(\"'Farms Operated Work Version'!G85\"))","v":0},0,0,0,0,0,0,0,{"$f":"IF(INDIRECT(\"'Farms Operated Work Version'!O85\")=\"Date\",\"\",IF(INDIRECT(\"'Farms Operated Work Version'!O85\")=date,\"\",INDIRECT(\"'Farms Operated Work Version'!O85\")))","v":""},{"$f":"IF(INDIRECT(\"'Farms Operated Work Version'!P85\")=\"Total Rent Paid:\",\"\",IF(INDIRECT(\"'Farms Operated Work Version'!P85\")=\"Avg. Rent Per Acre:\",\"\",INDIRECT(\"'Farms Operated Work Version'!P85\")))","v":0},0]
[{"$f":"IF(INDIRECT(\"'Farms Operated Work Version'!A86:B86\")=\"COMMENTS\",\"\",IF(INDIRECT(\"'Farms Operated Work Version'!A86:B86\")=\"Loan Entity\",\"\",IF(INDIRECT(\"'Farms Operated Work Version'!A86:B86\")=\"FCS\",\"\",IF(INDIRECT(\"'Farms Operated Work Version'!A86:B86\")=\"(Explain Flex Rent Lease)\",\"\",IF(INDIRECT(\"'Farms Operated Work Version'!A86:B86\")=\"(Explain Custom Hire Agreement)\",\"\",IF(INDIRECT(\"'Farms Operated Work Version'!A86\")=comments,\"\",INDIRECT(\"'Farms Operated Work Version'!A86:B86\")))))))","v":0},null,{"$f":"IF(INDIRECT(\"'Farms Operated Work Version'!C86\")=\"Branch #\",\"\",IF(INDIRECT(\"'Farms Operated Work Version'!C86\")=number,\"\",INDIRECT(\"'Farms Operated Work Version'!C86\")))","v":""},{"$f":"INDIRECT(\"'Farms Operated Work Version'!D86\")","v":0},{"$f":"INDIRECT(\"'Farms Operated Work Version'!E86\")","v":0},{"$f":"IF(INDIRECT(\"'Farms Operated Work Version'!F86\")=\"TOTAL CROP ACRES\",\"\",IF(INDIRECT(\"'Farms Operated Work Version'!F86\")=\"TOTAL FULL SHARE ACRES\",\"\",IF(INDIRECT(\"'Farms Operated Work Version'!F86\")=\"CIF Number\",\"\",INDIRECT(\"'Farms Operated Work Version'!F86\"))))","v":0},{"$f":"IF(INDIRECT(\"'Farms Operated Work Version'!G86\")=\"CIF Number\",\"\",INDIRECT(\"'Farms Operated Work Version'!G86\"))","v":0},0,0,0,0,0,0,0,{"$f":"IF(INDIRECT(\"'Farms Operated Work Version'!O86\")=\"Date\",\"\",IF(INDIRECT(\"'Farms Operated Work Version'!O86\")=date,\"\",INDIRECT(\"'Farms Operated Work Version'!O86\")))","v":""},{"$f":"IF(INDIRECT(\"'Farms Operated Work Version'!P86\")=\"Total Rent Paid:\",\"\",IF(INDIRECT(\"'Farms Operated Work Version'!P86\")=\"Avg. Rent Per Acre:\",\"\",INDIRECT(\"'Farms Operated Work Version'!P86\")))","v":0},0]
[{"$f":"IF(INDIRECT(\"'Farms Operated Work Version'!A87:B87\")=\"COMMENTS\",\"\",IF(INDIRECT(\"'Farms Operated Work Version'!A87:B87\")=\"Loan Entity\",\"\",IF(INDIRECT(\"'Farms Operated Work Version'!A87:B87\")=\"FCS\",\"\",IF(INDIRECT(\"'Farms Operated Work Version'!A87:B87\")=\"(Explain Flex Rent Lease)\",\"\",IF(INDIRECT(\"'Farms Operated Work Version'!A87:B87\")=\"(Explain Custom Hire Agreement)\",\"\",IF(INDIRECT(\"'Farms Operated Work Version'!A87\")=comments,\"\",INDIRECT(\"'Farms Operated Work Version'!A87:B87\")))))))","v":0},null,{"$f":"IF(INDIRECT(\"'Farms Operated Work Version'!C87\")=\"Branch #\",\"\",IF(INDIRECT(\"'Farms Operated Work Version'!C87\")=number,\"\",INDIRECT(\"'Farms Operated Work Version'!C87\")))","v":""},{"$f":"INDIRECT(\"'Farms Operated Work Version'!D87\")","v":0},{"$f":"INDIRECT(\"'Farms Operated Work Version'!E87\")","v":0},{"$f":"IF(INDIRECT(\"'Farms Operated Work Version'!F87\")=\"TOTAL CROP ACRES\",\"\",IF(INDIRECT(\"'Farms Operated Work Version'!F87\")=\"TOTAL FULL SHARE ACRES\",\"\",IF(INDIRECT(\"'Farms Operated Work Version'!F87\")=\"CIF Number\",\"\",INDIRECT(\"'Farms Operated Work Version'!F87\"))))","v":0},{"$f":"IF(INDIRECT(\"'Farms Operated Work Version'!G87\")=\"CIF Number\",\"\",INDIRECT(\"'Farms Operated Work Version'!G87\"))","v":0},0,0,0,0,0,0,0,{"$f":"IF(INDIRECT(\"'Farms Operated Work Version'!O87\")=\"Date\",\"\",IF(INDIRECT(\"'Farms Operated Work Version'!O87\")=date,\"\",INDIRECT(\"'Farms Operated Work Version'!O87\")))","v":""},{"$f":"IF(INDIRECT(\"'Farms Operated Work Version'!P87\")=\"Total Rent Paid:\",\"\",IF(INDIRECT(\"'Farms Operated Work Version'!P87\")=\"Avg. Rent Per Acre:\",\"\",INDIRECT(\"'Farms Operated Work Version'!P87\")))","v":0},0]
[{"$f":"IF(INDIRECT(\"'Farms Operated Work Version'!A88:B88\")=\"COMMENTS\",\"\",IF(INDIRECT(\"'Farms Operated Work Version'!A88:B88\")=\"Loan Entity\",\"\",IF(INDIRECT(\"'Farms Operated Work Version'!A88:B88\")=\"FCS\",\"\",IF(INDIRECT(\"'Farms Operated Work Version'!A88:B88\")=\"(Explain Flex Rent Lease)\",\"\",IF(INDIRECT(\"'Farms Operated Work Version'!A88:B88\")=\"(Explain Custom Hire Agreement)\",\"\",IF(INDIRECT(\"'Farms Operated Work Version'!A88\")=comments,\"\",INDIRECT(\"'Farms Operated Work Version'!A88:B88\")))))))","v":0},null,{"$f":"IF(INDIRECT(\"'Farms Operated Work Version'!C88\")=\"Branch #\",\"\",IF(INDIRECT(\"'Farms Operated Work Version'!C88\")=number,\"\",INDIRECT(\"'Farms Operated Work Version'!C88\")))","v":""},{"$f":"INDIRECT(\"'Farms Operated Work Version'!D88\")","v":0},{"$f":"INDIRECT(\"'Farms Operated Work Version'!E88\")","v":0},{"$f":"IF(INDIRECT(\"'Farms Operated Work Version'!F88\")=\"TOTAL CROP ACRES\",\"\",IF(INDIRECT(\"'Farms Operated Work Version'!F88\")=\"TOTAL FULL SHARE ACRES\",\"\",IF(INDIRECT(\"'Farms Operated Work Version'!F88\")=\"CIF Number\",\"\",INDIRECT(\"'Farms Operated Work Version'!F88\"))))","v":0},{"$f":"IF(INDIRECT(\"'Farms Operated Work Version'!G88\")=\"CIF Number\",\"\",INDIRECT(\"'Farms Operated Work Version'!G88\"))","v":0},0,0,0,0,0,0,0,{"$f":"IF(INDIRECT(\"'Farms Operated Work Version'!O88\")=\"Date\",\"\",IF(INDIRECT(\"'Farms Operated Work Version'!O88\")=date,\"\",INDIRECT(\"'Farms Operated Work Version'!O88\")))","v":""},{"$f":"IF(INDIRECT(\"'Farms Operated Work Version'!P88\")=\"Total Rent Paid:\",\"\",IF(INDIRECT(\"'Farms Operated Work Version'!P88\")=\"Avg. Rent Per Acre:\",\"\",INDIRECT(\"'Farms Operated Work Version'!P88\")))","v":0},0]
[{"$f":"IF(INDIRECT(\"'Farms Operated Work Version'!A89:B89\")=\"COMMENTS\",\"\",IF(INDIRECT(\"'Farms Operated Work Version'!A89:B89\")=\"Loan Entity\",\"\",IF(INDIRECT(\"'Farms Operated Work Version'!A89:B89\")=\"FCS\",\"\",IF(INDIRECT(\"'Farms Operated Work Version'!A89:B89\")=\"(Explain Flex Rent Lease)\",\"\",IF(INDIRECT(\"'Farms Operated Work Version'!A89:B89\")=\"(Explain Custom Hire Agreement)\",\"\",IF(INDIRECT(\"'Farms Operated Work Version'!A89\")=comments,\"\",INDIRECT(\"'Farms Operated Work Version'!A89:B89\")))))))","v":0},null,{"$f":"IF(INDIRECT(\"'Farms Operated Work Version'!C89\")=\"Branch #\",\"\",IF(INDIRECT(\"'Farms Operated Work Version'!C89\")=number,\"\",INDIRECT(\"'Farms Operated Work Version'!C89\")))","v":""},{"$f":"INDIRECT(\"'Farms Operated Work Version'!D89\")","v":0},{"$f":"INDIRECT(\"'Farms Operated Work Version'!E89\")","v":0},{"$f":"IF(INDIRECT(\"'Farms Operated Work Version'!F89\")=\"TOTAL CROP ACRES\",\"\",IF(INDIRECT(\"'Farms Operated Work Version'!F89\")=\"TOTAL FULL SHARE ACRES\",\"\",IF(INDIRECT(\"'Farms Operated Work Version'!F89\")=\"CIF Number\",\"\",INDIRECT(\"'Farms Operated Work Version'!F89\"))))","v":0},{"$f":"IF(INDIRECT(\"'Farms Operated Work Version'!G89\")=\"CIF Number\",\"\",INDIRECT(\"'Farms Operated Work Version'!G89\"))","v":0},0,0,0,0,0,0,0,{"$f":"IF(INDIRECT(\"'Farms Operated Work Version'!O89\")=\"Date\",\"\",IF(INDIRECT(\"'Farms Operated Work Version'!O89\")=date,\"\",INDIRECT(\"'Farms Operated Work Version'!O89\")))","v":""},{"$f":"IF(INDIRECT(\"'Farms Operated Work Version'!P89\")=\"Total Rent Paid:\",\"\",IF(INDIRECT(\"'Farms Operated Work Version'!P89\")=\"Avg. Rent Per Acre:\",\"\",INDIRECT(\"'Farms Operated Work Version'!P89\")))","v":0},0]
[{"$f":"IF(INDIRECT(\"'Farms Operated Work Version'!A90:B90\")=\"COMMENTS\",\"\",IF(INDIRECT(\"'Farms Operated Work Version'!A90:B90\")=\"Loan Entity\",\"\",IF(INDIRECT(\"'Farms Operated Work Version'!A90:B90\")=\"FCS\",\"\",IF(INDIRECT(\"'Farms Operated Work Version'!A90:B90\")=\"(Explain Flex Rent Lease)\",\"\",IF(INDIRECT(\"'Farms Operated Work Version'!A90:B90\")=\"(Explain Custom Hire Agreement)\",\"\",IF(INDIRECT(\"'Farms Operated Work Version'!A90\")=comments,\"\",INDIRECT(\"'Farms Operated Work Version'!A90:B90\")))))))","v":0},null,{"$f":"IF(INDIRECT(\"'Farms Operated Work Version'!C90\")=\"Branch #\",\"\",IF(INDIRECT(\"'Farms Operated Work Version'!C90\")=number,\"\",INDIRECT(\"'Farms Operated Work Version'!C90\")))","v":""},{"$f":"INDIRECT(\"'Farms Operated Work Version'!D90\")","v":0},{"$f":"INDIRECT(\"'Farms Operated Work Version'!E90\")","v":0},{"$f":"IF(INDIRECT(\"'Farms Operated Work Version'!F90\")=\"TOTAL CROP ACRES\",\"\",IF(INDIRECT(\"'Farms Operated Work Version'!F90\")=\"TOTAL FULL SHARE ACRES\",\"\",IF(INDIRECT(\"'Farms Operated Work Version'!F90\")=\"CIF Number\",\"\",INDIRECT(\"'Farms Operated Work Version'!F90\"))))","v":0},{"$f":"IF(INDIRECT(\"'Farms Operated Work Version'!G90\")=\"CIF Number\",\"\",INDIRECT(\"'Farms Operated Work Version'!G90\"))","v":0},0,0,0,0,0,0,0,{"$f":"IF(INDIRECT(\"'Farms Operated Work Version'!O90\")=\"Date\",\"\",IF(INDIRECT(\"'Farms Operated Work Version'!O90\")=date,\"\",INDIRECT(\"'Farms Operated Work Version'!O90\")))","v":""},{"$f":"IF(INDIRECT(\"'Farms Operated Work Version'!P90\")=\"Total Rent Paid:\",\"\",IF(INDIRECT(\"'Farms Operated Work Version'!P90\")=\"Avg. Rent Per Acre:\",\"\",INDIRECT(\"'Farms Operated Work Version'!P90\")))","v":0},0]
[{"$f":"IF(INDIRECT(\"'Farms Operated Work Version'!A91:B91\")=\"COMMENTS\",\"\",IF(INDIRECT(\"'Farms Operated Work Version'!A91:B91\")=\"Loan Entity\",\"\",IF(INDIRECT(\"'Farms Operated Work Version'!A91:B91\")=\"FCS\",\"\",IF(INDIRECT(\"'Farms Operated Work Version'!A91:B91\")=\"(Explain Flex Rent Lease)\",\"\",IF(INDIRECT(\"'Farms Operated Work Version'!A91:B91\")=\"(Explain Custom Hire Agreement)\",\"\",IF(INDIRECT(\"'Farms Operated Work Version'!A91\")=comments,\"\",INDIRECT(\"'Farms Operated Work Version'!A91:B91\")))))))","v":0},null,{"$f":"IF(INDIRECT(\"'Farms Operated Work Version'!C91\")=\"Branch #\",\"\",IF(INDIRECT(\"'Farms Operated Work Version'!C91\")=number,\"\",INDIRECT(\"'Farms Operated Work Version'!C91\")))","v":""},{"$f":"INDIRECT(\"'Farms Operated Work Version'!D91\")","v":0},{"$f":"INDIRECT(\"'Farms Operated Work Version'!E91\")","v":0},{"$f":"IF(INDIRECT(\"'Farms Operated Work Version'!F91\")=\"TOTAL CROP ACRES\",\"\",IF(INDIRECT(\"'Farms Operated Work Version'!F91\")=\"TOTAL FULL SHARE ACRES\",\"\",IF(INDIRECT(\"'Farms Operated Work Version'!F91\")=\"CIF Number\",\"\",INDIRECT(\"'Farms Operated Work Version'!F91\"))))","v":0},{"$f":"IF(INDIRECT(\"'Farms Operated Work Version'!G91\")=\"CIF Number\",\"\",INDIRECT(\"'Farms Operated Work Version'!G91\"))","v":0},0,0,0,0,0,0,0,{"$f":"IF(INDIRECT(\"'Farms Operated Work Version'!O91\")=\"Date\",\"\",IF(INDIRECT(\"'Farms Operated Work Version'!O91\")=date,\"\",INDIRECT(\"'Farms Operated Work Version'!O91\")))","v":""},{"$f":"IF(INDIRECT(\"'Farms Operated Work Version'!P91\")=\"Total Rent Paid:\",\"\",IF(INDIRECT(\"'Farms Operated Work Version'!P91\")=\"Avg. Rent Per Acre:\",\"\",INDIRECT(\"'Farms Operated Work Version'!P91\")))","v":0},0]
[{"$f":"IF(INDIRECT(\"'Farms Operated Work Version'!A92:B92\")=\"COMMENTS\",\"\",IF(INDIRECT(\"'Farms Operated Work Version'!A92:B92\")=\"Loan Entity\",\"\",IF(INDIRECT(\"'Farms Operated Work Version'!A92:B92\")=\"FCS\",\"\",IF(INDIRECT(\"'Farms Operated Work Version'!A92:B92\")=\"(Explain Flex Rent Lease)\",\"\",IF(INDIRECT(\"'Farms Operated Work Version'!A92:B92\")=\"(Explain Custom Hire Agreement)\",\"\",IF(INDIRECT(\"'Farms Operated Work Version'!A92\")=comments,\"\",INDIRECT(\"'Farms Operated Work Version'!A92:B92\")))))))","v":0},null,{"$f":"IF(INDIRECT(\"'Farms Operated Work Version'!C92\")=\"Branch #\",\"\",IF(INDIRECT(\"'Farms Operated Work Version'!C92\")=number,\"\",INDIRECT(\"'Farms Operated Work Version'!C92\")))","v":""},{"$f":"INDIRECT(\"'Farms Operated Work Version'!D92\")","v":0},{"$f":"INDIRECT(\"'Farms Operated Work Version'!E92\")","v":0},{"$f":"IF(INDIRECT(\"'Farms Operated Work Version'!F92\")=\"TOTAL CROP ACRES\",\"\",IF(INDIRECT(\"'Farms Operated Work Version'!F92\")=\"TOTAL FULL SHARE ACRES\",\"\",IF(INDIRECT(\"'Farms Operated Work Version'!F92\")=\"CIF Number\",\"\",INDIRECT(\"'Farms Operated Work Version'!F92\"))))","v":0},{"$f":"IF(INDIRECT(\"'Farms Operated Work Version'!G92\")=\"CIF Number\",\"\",INDIRECT(\"'Farms Operated Work Version'!G92\"))","v":0},0,0,0,0,0,0,0,{"$f":"IF(INDIRECT(\"'Farms Operated Work Version'!O92\")=\"Date\",\"\",IF(INDIRECT(\"'Farms Operated Work Version'!O92\")=date,\"\",INDIRECT(\"'Farms Operated Work Version'!O92\")))","v":""},{"$f":"IF(INDIRECT(\"'Farms Operated Work Version'!P92\")=\"Total Rent Paid:\",\"\",IF(INDIRECT(\"'Farms Operated Work Version'!P92\")=\"Avg. Rent Per Acre:\",\"\",INDIRECT(\"'Farms Operated Work Version'!P92\")))","v":0},0]
[{"$f":"IF(INDIRECT(\"'Farms Operated Work Version'!A93:B93\")=\"COMMENTS\",\"\",IF(INDIRECT(\"'Farms Operated Work Version'!A93:B93\")=\"Loan Entity\",\"\",IF(INDIRECT(\"'Farms Operated Work Version'!A93:B93\")=\"FCS\",\"\",IF(INDIRECT(\"'Farms Operated Work Version'!A93:B93\")=\"(Explain Flex Rent Lease)\",\"\",IF(INDIRECT(\"'Farms Operated Work Version'!A93:B93\")=\"(Explain Custom Hire Agreement)\",\"\",IF(INDIRECT(\"'Farms Operated Work Version'!A93\")=comments,\"\",INDIRECT(\"'Farms Operated Work Version'!A93:B93\")))))))","v":0},null,{"$f":"IF(INDIRECT(\"'Farms Operated Work Version'!C93\")=\"Branch #\",\"\",IF(INDIRECT(\"'Farms Operated Work Version'!C93\")=number,\"\",INDIRECT(\"'Farms Operated Work Version'!C93\")))","v":""},{"$f":"INDIRECT(\"'Farms Operated Work Version'!D93\")","v":0},{"$f":"INDIRECT(\"'Farms Operated Work Version'!E93\")","v":0},{"$f":"IF(INDIRECT(\"'Farms Operated Work Version'!F93\")=\"TOTAL CROP ACRES\",\"\",IF(INDIRECT(\"'Farms Operated Work Version'!F93\")=\"TOTAL FULL SHARE ACRES\",\"\",IF(INDIRECT(\"'Farms Operated Work Version'!F93\")=\"CIF Number\",\"\",INDIRECT(\"'Farms Operated Work Version'!F93\"))))","v":0},{"$f":"IF(INDIRECT(\"'Farms Operated Work Version'!G93\")=\"CIF Number\",\"\",INDIRECT(\"'Farms Operated Work Version'!G93\"))","v":0},0,0,0,0,0,0,0,{"$f":"IF(INDIRECT(\"'Farms Operated Work Version'!O93\")=\"Date\",\"\",IF(INDIRECT(\"'Farms Operated Work Version'!O93\")=date,\"\",INDIRECT(\"'Farms Operated Work Version'!O93\")))","v":""},{"$f":"IF(INDIRECT(\"'Farms Operated Work Version'!P93\")=\"Total Rent Paid:\",\"\",IF(INDIRECT(\"'Farms Operated Work Version'!P93\")=\"Avg. Rent Per Acre:\",\"\",INDIRECT(\"'Farms Operated Work Version'!P93\")))","v":0},0]
[{"$f":"IF(INDIRECT(\"'Farms Operated Work Version'!A94:B94\")=\"COMMENTS\",\"\",IF(INDIRECT(\"'Farms Operated Work Version'!A94:B94\")=\"Loan Entity\",\"\",IF(INDIRECT(\"'Farms Operated Work Version'!A94:B94\")=\"FCS\",\"\",IF(INDIRECT(\"'Farms Operated Work Version'!A94:B94\")=\"(Explain Flex Rent Lease)\",\"\",IF(INDIRECT(\"'Farms Operated Work Version'!A94:B94\")=\"(Explain Custom Hire Agreement)\",\"\",IF(INDIRECT(\"'Farms Operated Work Version'!A94\")=comments,\"\",INDIRECT(\"'Farms Operated Work Version'!A94:B94\")))))))","v":0},null,{"$f":"IF(INDIRECT(\"'Farms Operated Work Version'!C94\")=\"Branch #\",\"\",IF(INDIRECT(\"'Farms Operated Work Version'!C94\")=number,\"\",INDIRECT(\"'Farms Operated Work Version'!C94\")))","v":""},{"$f":"INDIRECT(\"'Farms Operated Work Version'!D94\")","v":0},{"$f":"INDIRECT(\"'Farms Operated Work Version'!E94\")","v":0},{"$f":"IF(INDIRECT(\"'Farms Operated Work Version'!F94\")=\"TOTAL CROP ACRES\",\"\",IF(INDIRECT(\"'Farms Operated Work Version'!F94\")=\"TOTAL FULL SHARE ACRES\",\"\",IF(INDIRECT(\"'Farms Operated Work Version'!F94\")=\"CIF Number\",\"\",INDIRECT(\"'Farms Operated Work Version'!F94\"))))","v":0},{"$f":"IF(INDIRECT(\"'Farms Operated Work Version'!G94\")=\"CIF Number\",\"\",INDIRECT(\"'Farms Operated Work Version'!G94\"))","v":0},0,0,0,0,0,0,0,{"$f":"IF(INDIRECT(\"'Farms Operated Work Version'!O94\")=\"Date\",\"\",IF(INDIRECT(\"'Farms Operated Work Version'!O94\")=date,\"\",INDIRECT(\"'Farms Operated Work Version'!O94\")))","v":""},{"$f":"IF(INDIRECT(\"'Farms Operated Work Version'!P94\")=\"Total Rent Paid:\",\"\",IF(INDIRECT(\"'Farms Operated Work Version'!P94\")=\"Avg. Rent Per Acre:\",\"\",INDIRECT(\"'Farms Operated Work Version'!P94\")))","v":0},0]
[{"$f":"IF(INDIRECT(\"'Farms Operated Work Version'!A95:B95\")=\"COMMENTS\",\"\",IF(INDIRECT(\"'Farms Operated Work Version'!A95:B95\")=\"Loan Entity\",\"\",IF(INDIRECT(\"'Farms Operated Work Version'!A95:B95\")=\"FCS\",\"\",IF(INDIRECT(\"'Farms Operated Work Version'!A95:B95\")=\"(Explain Flex Rent Lease)\",\"\",IF(INDIRECT(\"'Farms Operated Work Version'!A95:B95\")=\"(Explain Custom Hire Agreement)\",\"\",IF(INDIRECT(\"'Farms Operated Work Version'!A95\")=comments,\"\",INDIRECT(\"'Farms Operated Work Version'!A95:B95\")))))))","v":0},null,{"$f":"IF(INDIRECT(\"'Farms Operated Work Version'!C95\")=\"Branch #\",\"\",IF(INDIRECT(\"'Farms Operated Work Version'!C95\")=number,\"\",INDIRECT(\"'Farms Operated Work Version'!C95\")))","v":""},{"$f":"INDIRECT(\"'Farms Operated Work Version'!D95\")","v":0},{"$f":"INDIRECT(\"'Farms Operated Work Version'!E95\")","v":0},{"$f":"IF(INDIRECT(\"'Farms Operated Work Version'!F95\")=\"TOTAL CROP ACRES\",\"\",IF(INDIRECT(\"'Farms Operated Work Version'!F95\")=\"TOTAL FULL SHARE ACRES\",\"\",IF(INDIRECT(\"'Farms Operated Work Version'!F95\")=\"CIF Number\",\"\",INDIRECT(\"'Farms Operated Work Version'!F95\"))))","v":0},{"$f":"IF(INDIRECT(\"'Farms Operated Work Version'!G95\")=\"CIF Number\",\"\",INDIRECT(\"'Farms Operated Work Version'!G95\"))","v":0},{"$f":"IF($C143>0,IF(AND(H$4>=$C143,H$4<=$D143),$F143*$G143,0),0)","v":0},0,0,0,0,0,0,{"$f":"IF(INDIRECT(\"'Farms Operated Work Version'!O95\")=\"Date\",\"\",IF(INDIRECT(\"'Farms Operated Work Version'!O95\")=date,\"\",INDIRECT(\"'Farms Operated Work Version'!O95\")))","v":""},{"$f":"IF(INDIRECT(\"'Farms Operated Work Version'!P95\")=\"Total Rent Paid:\",\"\",IF(INDIRECT(\"'Farms Operated Work Version'!P95\")=\"Avg. Rent Per Acre:\",\"\",INDIRECT(\"'Farms Operated Work Version'!P95\")))","v":0},0]
[{"$f":"IF(INDIRECT(\"'Farms Operated Work Version'!A96:B96\")=\"COMMENTS\",\"\",IF(INDIRECT(\"'Farms Operated Work Version'!A96:B96\")=\"Loan Entity\",\"\",IF(INDIRECT(\"'Farms Operated Work Version'!A96:B96\")=\"FCS\",\"\",IF(INDIRECT(\"'Farms Operated Work Version'!A96:B96\")=\"(Explain Flex Rent Lease)\",\"\",IF(INDIRECT(\"'Farms Operated Work Version'!A96:B96\")=\"(Explain Custom Hire Agreement)\",\"\",IF(INDIRECT(\"'Farms Operated Work Version'!A96\")=comments,\"\",INDIRECT(\"'Farms Operated Work Version'!A96:B96\")))))))","v":0},null,{"$f":"IF(INDIRECT(\"'Farms Operated Work Version'!C96\")=\"Branch #\",\"\",IF(INDIRECT(\"'Farms Operated Work Version'!C96\")=number,\"\",INDIRECT(\"'Farms Operated Work Version'!C96\")))","v":""},{"$f":"INDIRECT(\"'Farms Operated Work Version'!D96\")","v":0},{"$f":"INDIRECT(\"'Farms Operated Work Version'!E96\")","v":0},{"$f":"IF(INDIRECT(\"'Farms Operated Work Version'!F96\")=\"TOTAL CROP ACRES\",\"\",IF(INDIRECT(\"'Farms Operated Work Version'!F96\")=\"TOTAL FULL SHARE ACRES\",\"\",IF(INDIRECT(\"'Farms Operated Work Version'!F96\")=\"CIF Number\",\"\",INDIRECT(\"'Farms Operated Work Version'!F96\"))))","v":0},{"$f":"IF(INDIRECT(\"'Farms Operated Work Version'!G96\")=\"CIF Number\",\"\",INDIRECT(\"'Farms Operated Work Version'!G96\"))","v":0},0,0,0,0,0,0,0,{"$f":"IF(INDIRECT(\"'Farms Operated Work Version'!O96\")=\"Date\",\"\",IF(INDIRECT(\"'Farms Operated Work Version'!O96\")=date,\"\",INDIRECT(\"'Farms Operated Work Version'!O96\")))","v":""},{"$f":"IF(INDIRECT(\"'Farms Operated Work Version'!P96\")=\"Total Rent Paid:\",\"\",IF(INDIRECT(\"'Farms Operated Work Version'!P96\")=\"Avg. Rent Per Acre:\",\"\",INDIRECT(\"'Farms Operated Work Version'!P96\")))","v":0},0]
[{"$f":"IF(INDIRECT(\"'Farms Operated Work Version'!A97:B97\")=\"COMMENTS\",\"\",IF(INDIRECT(\"'Farms Operated Work Version'!A97:B97\")=\"Loan Entity\",\"\",IF(INDIRECT(\"'Farms Operated Work Version'!A97:B97\")=\"FCS\",\"\",IF(INDIRECT(\"'Farms Operated Work Version'!A97:B97\")=\"(Explain Flex Rent Lease)\",\"\",IF(INDIRECT(\"'Farms Operated Work Version'!A97:B97\")=\"(Explain Custom Hire Agreement)\",\"\",IF(INDIRECT(\"'Farms Operated Work Version'!A97\")=comments,\"\",INDIRECT(\"'Farms Operated Work Version'!A97:B97\")))))))","v":0},null,{"$f":"IF(INDIRECT(\"'Farms Operated Work Version'!C97\")=\"Branch #\",\"\",IF(INDIRECT(\"'Farms Operated Work Version'!C97\")=number,\"\",INDIRECT(\"'Farms Operated Work Version'!C97\")))","v":""},{"$f":"INDIRECT(\"'Farms Operated Work Version'!D97\")","v":0},{"$f":"INDIRECT(\"'Farms Operated Work Version'!E97\")","v":0},{"$f":"IF(INDIRECT(\"'Farms Operated Work Version'!F97\")=\"TOTAL CROP ACRES\",\"\",IF(INDIRECT(\"'Farms Operated Work Version'!F97\")=\"TOTAL FULL SHARE ACRES\",\"\",IF(INDIRECT(\"'Farms Operated Work Version'!F97\")=\"CIF Number\",\"\",INDIRECT(\"'Farms Operated Work Version'!F97\"))))","v":0},{"$f":"IF(INDIRECT(\"'Farms Operated Work Version'!G97\")=\"CIF Number\",\"\",INDIRECT(\"'Farms Operated Work Version'!G97\"))","v":0},0,0,0,0,0,0,0,{"$f":"IF(INDIRECT(\"'Farms Operated Work Version'!O97\")=\"Date\",\"\",IF(INDIRECT(\"'Farms Operated Work Version'!O97\")=date,\"\",INDIRECT(\"'Farms Operated Work Version'!O97\")))","v":""},{"$f":"IF(INDIRECT(\"'Farms Operated Work Version'!P97\")=\"Total Rent Paid:\",\"\",IF(INDIRECT(\"'Farms Operated Work Version'!P97\")=\"Avg. Rent Per Acre:\",\"\",INDIRECT(\"'Farms Operated Work Version'!P97\")))","v":0},0]
[{"$f":"IF(INDIRECT(\"'Farms Operated Work Version'!A98:B98\")=\"COMMENTS\",\"\",IF(INDIRECT(\"'Farms Operated Work Version'!A98:B98\")=\"Loan Entity\",\"\",IF(INDIRECT(\"'Farms Operated Work Version'!A98:B98\")=\"FCS\",\"\",IF(INDIRECT(\"'Farms Operated Work Version'!A98:B98\")=\"(Explain Flex Rent Lease)\",\"\",IF(INDIRECT(\"'Farms Operated Work Version'!A98:B98\")=\"(Explain Custom Hire Agreement)\",\"\",IF(INDIRECT(\"'Farms Operated Work Version'!A98\")=comments,\"\",INDIRECT(\"'Farms Operated Work Version'!A98:B98\")))))))","v":0},null,{"$f":"IF(INDIRECT(\"'Farms Operated Work Version'!C98\")=\"Branch #\",\"\",IF(INDIRECT(\"'Farms Operated Work Version'!C98\")=number,\"\",INDIRECT(\"'Farms Operated Work Version'!C98\")))","v":""},{"$f":"INDIRECT(\"'Farms Operated Work Version'!D98\")","v":0},{"$f":"INDIRECT(\"'Farms Operated Work Version'!E98\")","v":0},{"$f":"IF(INDIRECT(\"'Farms Operated Work Version'!F98\")=\"TOTAL CROP ACRES\",\"\",IF(INDIRECT(\"'Farms Operated Work Version'!F98\")=\"TOTAL FULL SHARE ACRES\",\"\",IF(INDIRECT(\"'Farms Operated Work Version'!F98\")=\"CIF Number\",\"\",INDIRECT(\"'Farms Operated Work Version'!F98\"))))","v":0},{"$f":"IF(INDIRECT(\"'Farms Operated Work Version'!G98\")=\"CIF Number\",\"\",INDIRECT(\"'Farms Operated Work Version'!G98\"))","v":0},0,0,0,0,0,0,0,{"$f":"IF(INDIRECT(\"'Farms Operated Work Version'!O98\")=\"Date\",\"\",IF(INDIRECT(\"'Farms Operated Work Version'!O98\")=date,\"\",INDIRECT(\"'Farms Operated Work Version'!O98\")))","v":""},{"$f":"IF(INDIRECT(\"'Farms Operated Work Version'!P98\")=\"Total Rent Paid:\",\"\",IF(INDIRECT(\"'Farms Operated Work Version'!P98\")=\"Avg. Rent Per Acre:\",\"\",INDIRECT(\"'Farms Operated Work Version'!P98\")))","v":0},0]
[{"$f":"IF(INDIRECT(\"'Farms Operated Work Version'!A99:B99\")=\"COMMENTS\",\"\",IF(INDIRECT(\"'Farms Operated Work Version'!A99:B99\")=\"Loan Entity\",\"\",IF(INDIRECT(\"'Farms Operated Work Version'!A99:B99\")=\"FCS\",\"\",IF(INDIRECT(\"'Farms Operated Work Version'!A99:B99\")=\"(Explain Flex Rent Lease)\",\"\",IF(INDIRECT(\"'Farms Operated Work Version'!A99:B99\")=\"(Explain Custom Hire Agreement)\",\"\",IF(INDIRECT(\"'Farms Operated Work Version'!A99\")=comments,\"\",INDIRECT(\"'Farms Operated Work Version'!A99:B99\")))))))","v":0},null,{"$f":"IF(INDIRECT(\"'Farms Operated Work Version'!C99\")=\"Branch #\",\"\",IF(INDIRECT(\"'Farms Operated Work Version'!C99\")=number,\"\",INDIRECT(\"'Farms Operated Work Version'!C99\")))","v":""},{"$f":"INDIRECT(\"'Farms Operated Work Version'!D99\")","v":0},{"$f":"INDIRECT(\"'Farms Operated Work Version'!E99\")","v":0},{"$f":"IF(INDIRECT(\"'Farms Operated Work Version'!F99\")=\"TOTAL CROP ACRES\",\"\",IF(INDIRECT(\"'Farms Operated Work Version'!F99\")=\"TOTAL FULL SHARE ACRES\",\"\",IF(INDIRECT(\"'Farms Operated Work Version'!F99\")=\"CIF Number\",\"\",INDIRECT(\"'Farms Operated Work Version'!F99\"))))","v":0},{"$f":"IF(INDIRECT(\"'Farms Operated Work Version'!G99\")=\"CIF Number\",\"\",INDIRECT(\"'Farms Operated Work Version'!G99\"))","v":0},0,0,0,0,0,0,0,{"$f":"IF(INDIRECT(\"'Farms Operated Work Version'!O99\")=\"Date\",\"\",IF(INDIRECT(\"'Farms Operated Work Version'!O99\")=date,\"\",INDIRECT(\"'Farms Operated Work Version'!O99\")))","v":""},{"$f":"IF(INDIRECT(\"'Farms Operated Work Version'!P99\")=\"Total Rent Paid:\",\"\",IF(INDIRECT(\"'Farms Operated Work Version'!P99\")=\"Avg. Rent Per Acre:\",\"\",INDIRECT(\"'Farms Operated Work Version'!P99\")))","v":0},0]
[{"$f":"IF(INDIRECT(\"'Farms Operated Work Version'!A100:B100\")=\"COMMENTS\",\"\",IF(INDIRECT(\"'Farms Operated Work Version'!A100:B100\")=\"Loan Entity\",\"\",IF(INDIRECT(\"'Farms Operated Work Version'!A100:B100\")=\"FCS\",\"\",IF(INDIRECT(\"'Farms Operated Work Version'!A100:B100\")=\"(Explain Flex Rent Lease)\",\"\",IF(INDIRECT(\"'Farms Operated Work Version'!A100:B100\")=\"(Explain Custom Hire Agreement)\",\"\",IF(INDIRECT(\"'Farms Operated Work Version'!A100\")=comments,\"\",INDIRECT(\"'Farms Operated Work Version'!A100:B100\")))))))","v":0},null,{"$f":"IF(INDIRECT(\"'Farms Operated Work Version'!C100\")=\"Branch #\",\"\",IF(INDIRECT(\"'Farms Operated Work Version'!C100\")=number,\"\",INDIRECT(\"'Farms Operated Work Version'!C100\")))","v":""},{"$f":"INDIRECT(\"'Farms Operated Work Version'!D100\")","v":0},{"$f":"INDIRECT(\"'Farms Operated Work Version'!E100\")","v":0},{"$f":"IF(INDIRECT(\"'Farms Operated Work Version'!F100\")=\"TOTAL CROP ACRES\",\"\",IF(INDIRECT(\"'Farms Operated Work Version'!F100\")=\"TOTAL FULL SHARE ACRES\",\"\",IF(INDIRECT(\"'Farms Operated Work Version'!F100\")=\"CIF Number\",\"\",INDIRECT(\"'Farms Operated Work Version'!F100\"))))","v":0},{"$f":"IF(INDIRECT(\"'Farms Operated Work Version'!G100\")=\"CIF Number\",\"\",INDIRECT(\"'Farms Operated Work Version'!G100\"))","v":0},0,0,0,0,0,0,0,{"$f":"IF(INDIRECT(\"'Farms Operated Work Version'!O100\")=\"Date\",\"\",IF(INDIRECT(\"'Farms Operated Work Version'!O100\")=date,\"\",INDIRECT(\"'Farms Operated Work Version'!O100\")))","v":""},{"$f":"IF(INDIRECT(\"'Farms Operated Work Version'!P100\")=\"Total Rent Paid:\",\"\",IF(INDIRECT(\"'Farms Operated Work Version'!P100\")=\"Avg. Rent Per Acre:\",\"\",INDIRECT(\"'Farms Operated Work Version'!P100\")))","v":0},0]
[{"$f":"IF(INDIRECT(\"'Farms Operated Work Version'!A101:B101\")=\"COMMENTS\",\"\",IF(INDIRECT(\"'Farms Operated Work Version'!A101:B101\")=\"Loan Entity\",\"\",IF(INDIRECT(\"'Farms Operated Work Version'!A101:B101\")=\"FCS\",\"\",IF(INDIRECT(\"'Farms Operated Work Version'!A101:B101\")=\"(Explain Flex Rent Lease)\",\"\",IF(INDIRECT(\"'Farms Operated Work Version'!A101:B101\")=\"(Explain Custom Hire Agreement)\",\"\",IF(INDIRECT(\"'Farms Operated Work Version'!A101\")=comments,\"\",INDIRECT(\"'Farms Operated Work Version'!A101:B101\")))))))","v":0},null,{"$f":"IF(INDIRECT(\"'Farms Operated Work Version'!C101\")=\"Branch #\",\"\",IF(INDIRECT(\"'Farms Operated Work Version'!C101\")=number,\"\",INDIRECT(\"'Farms Operated Work Version'!C101\")))","v":""},{"$f":"INDIRECT(\"'Farms Operated Work Version'!D101\")","v":0},{"$f":"INDIRECT(\"'Farms Operated Work Version'!E101\")","v":0},{"$f":"IF(INDIRECT(\"'Farms Operated Work Version'!F101\")=\"TOTAL CROP ACRES\",\"\",IF(INDIRECT(\"'Farms Operated Work Version'!F101\")=\"TOTAL FULL SHARE ACRES\",\"\",IF(INDIRECT(\"'Farms Operated Work Version'!F101\")=\"CIF Number\",\"\",INDIRECT(\"'Farms Operated Work Version'!F101\"))))","v":0},{"$f":"IF(INDIRECT(\"'Farms Operated Work Version'!G101\")=\"CIF Number\",\"\",INDIRECT(\"'Farms Operated Work Version'!G101\"))","v":0},0,0,0,0,0,0,0,{"$f":"IF(INDIRECT(\"'Farms Operated Work Version'!O101\")=\"Date\",\"\",IF(INDIRECT(\"'Farms Operated Work Version'!O101\")=date,\"\",INDIRECT(\"'Farms Operated Work Version'!O101\")))","v":""},{"$f":"IF(INDIRECT(\"'Farms Operated Work Version'!P101\")=\"Total Rent Paid:\",\"\",IF(INDIRECT(\"'Farms Operated Work Version'!P101\")=\"Avg. Rent Per Acre:\",\"\",INDIRECT(\"'Farms Operated Work Version'!P101\")))","v":0},0]
[{"$f":"IF(INDIRECT(\"'Farms Operated Work Version'!A102:B102\")=\"COMMENTS\",\"\",IF(INDIRECT(\"'Farms Operated Work Version'!A102:B102\")=\"Loan Entity\",\"\",IF(INDIRECT(\"'Farms Operated Work Version'!A102:B102\")=\"FCS\",\"\",IF(INDIRECT(\"'Farms Operated Work Version'!A102:B102\")=\"(Explain Flex Rent Lease)\",\"\",IF(INDIRECT(\"'Farms Operated Work Version'!A102:B102\")=\"(Explain Custom Hire Agreement)\",\"\",IF(INDIRECT(\"'Farms Operated Work Version'!A102\")=comments,\"\",INDIRECT(\"'Farms Operated Work Version'!A102:B102\")))))))","v":0},null,{"$f":"IF(INDIRECT(\"'Farms Operated Work Version'!C102\")=\"Branch #\",\"\",IF(INDIRECT(\"'Farms Operated Work Version'!C102\")=number,\"\",INDIRECT(\"'Farms Operated Work Version'!C102\")))","v":""},{"$f":"INDIRECT(\"'Farms Operated Work Version'!D102\")","v":0},{"$f":"INDIRECT(\"'Farms Operated Work Version'!E102\")","v":0},{"$f":"IF(INDIRECT(\"'Farms Operated Work Version'!F102\")=\"TOTAL CROP ACRES\",\"\",IF(INDIRECT(\"'Farms Operated Work Version'!F102\")=\"TOTAL FULL SHARE ACRES\",\"\",IF(INDIRECT(\"'Farms Operated Work Version'!F102\")=\"CIF Number\",\"\",INDIRECT(\"'Farms Operated Work Version'!F102\"))))","v":0},{"$f":"IF(INDIRECT(\"'Farms Operated Work Version'!G102\")=\"CIF Number\",\"\",INDIRECT(\"'Farms Operated Work Version'!G102\"))","v":0},0,0,0,0,0,0,0,{"$f":"IF(INDIRECT(\"'Farms Operated Work Version'!O102\")=\"Date\",\"\",IF(INDIRECT(\"'Farms Operated Work Version'!O102\")=date,\"\",INDIRECT(\"'Farms Operated Work Version'!O102\")))","v":""},{"$f":"IF(INDIRECT(\"'Farms Operated Work Version'!P102\")=\"Total Rent Paid:\",\"\",IF(INDIRECT(\"'Farms Operated Work Version'!P102\")=\"Avg. Rent Per Acre:\",\"\",INDIRECT(\"'Farms Operated Work Version'!P102\")))","v":0},0]
[{"$f":"IF(INDIRECT(\"'Farms Operated Work Version'!A103:B103\")=\"COMMENTS\",\"\",IF(INDIRECT(\"'Farms Operated Work Version'!A103:B103\")=\"Loan Entity\",\"\",IF(INDIRECT(\"'Farms Operated Work Version'!A103:B103\")=\"FCS\",\"\",IF(INDIRECT(\"'Farms Operated Work Version'!A103:B103\")=\"(Explain Flex Rent Lease)\",\"\",IF(INDIRECT(\"'Farms Operated Work Version'!A103:B103\")=\"(Explain Custom Hire Agreement)\",\"\",IF(INDIRECT(\"'Farms Operated Work Version'!A103\")=comments,\"\",INDIRECT(\"'Farms Operated Work Version'!A103:B103\")))))))","v":0},null,{"$f":"IF(INDIRECT(\"'Farms Operated Work Version'!C103\")=\"Branch #\",\"\",IF(INDIRECT(\"'Farms Operated Work Version'!C103\")=number,\"\",INDIRECT(\"'Farms Operated Work Version'!C103\")))","v":""},{"$f":"INDIRECT(\"'Farms Operated Work Version'!D103\")","v":0},{"$f":"INDIRECT(\"'Farms Operated Work Version'!E103\")","v":0},{"$f":"IF(INDIRECT(\"'Farms Operated Work Version'!F103\")=\"TOTAL CROP ACRES\",\"\",IF(INDIRECT(\"'Farms Operated Work Version'!F103\")=\"TOTAL FULL SHARE ACRES\",\"\",IF(INDIRECT(\"'Farms Operated Work Version'!F103\")=\"CIF Number\",\"\",INDIRECT(\"'Farms Operated Work Version'!F103\"))))","v":0},{"$f":"IF(INDIRECT(\"'Farms Operated Work Version'!G103\")=\"CIF Number\",\"\",INDIRECT(\"'Farms Operated Work Version'!G103\"))","v":0},0,0,0,0,0,0,0,{"$f":"IF(INDIRECT(\"'Farms Operated Work Version'!O103\")=\"Date\",\"\",IF(INDIRECT(\"'Farms Operated Work Version'!O103\")=date,\"\",INDIRECT(\"'Farms Operated Work Version'!O103\")))","v":""},{"$f":"IF(INDIRECT(\"'Farms Operated Work Version'!P103\")=\"Total Rent Paid:\",\"\",IF(INDIRECT(\"'Farms Operated Work Version'!P103\")=\"Avg. Rent Per Acre:\",\"\",INDIRECT(\"'Farms Operated Work Version'!P103\")))","v":0},0]
[null,null,null,null,null,"TOTAL CROP ACRES",null,{"$f":"'Farms Operated Work Version'!$H$37","v":0},{"$f":"'Farms Operated Work Version'!$I$37","v":0},{"$f":"'Farms Operated Work Version'!$J$37","v":0},{"$f":"'Farms Operated Work Version'!$K$37","v":0},{"$f":"'Farms Operated Work Version'!$L$37","v":0},{"$f":"'Farms Operated Work Version'!$M$37","v":0},{"$f":"'Farms Operated Work Version'!$N$37","v":0},null,"Total Rent Paid:",{"$f":"'Farms Operated Work Version'!$Q$37","v":0}]
[null,null,null,null,null,"TOTAL FULL SHARE ACRES",null,{"$f":"'Farms Operated Work Version'!$H$38","v":0},{"$f":"'Farms Operated Work Version'!$I$38","v":0},{"$f":"'Farms Operated Work Version'!$J$38","v":0},{"$f":"'Farms Operated Work Version'!$K$38","v":0},{"$f":"'Farms Operated Work Version'!$L$38","v":0},{"$f":"'Farms Operated Work Version'!$M$38","v":0},{"$f":"'Farms Operated Work Version'!$N$38","v":0},null,"Avg. Rent Per Acre:",{"$f":"IFERROR(Q152/N156, \"\")","v":""}]
["COMMENTS",null,null,null,null,null,null,null,null,null,null,null,"TOTAL SHARE ACRES",{"$f":"'Farms Operated Work Version'!$N$39","v":0}]
["(Explain Flex Rent Lease)",null,null,null,null,null,null,null,null,null,null,null,"TOTAL OWNED ACRES",{"$f":"'Farms Operated Work Version'!$N$40","v":0}]
["(Explain Custom Hire Agreement)",null,null,null,null,null,null,null,null,null,null,null,"TOTAL CASH RENT ACRES",{"$f":"'Farms Operated Work Version'!$N$41","v":0}]
[{"$f":"'Farms Operated Work Version'!A41","v":"COMMENTS"},null,null,null,null,null,null,null,null,null,null,null,"CASH RENT:OWNED RATIO",{"$f":"IFERROR(N156/N155,\"\")","v":""}]
[]
[]
[]
[null,null,"Branch #",null,null,null,null,"Borrower Name",null,null,null,null,null,null,"Date"]
[null,null,{"$f":"number","v":0},null,null,null,null,{"$f":"name","v":0},null,null,null,null,null,null,{"$f":"date","v":"00:00:00"}]

{"sheet":"Farms Operated Work Version","index":2,"n_rows":45,"n_cols":17,"rows_kept":45,"cut":false,"hidden":false,"merged":[[9,0,9,1],[25,0,25,1],[34,0,34,1],[8,0,8,1],[2,0,3,1],[5,0,5,1],[6,0,6,1],[7,0,7,1],[13,0,13,1],[14,0,14,1],[16,0,16,1],[17,0,17,1],[15,0,15,1],[2,2,2,3],[2,14,3,14],[2,6,3,6],[2,16,3,16],[4,0,4,1],[2,15,3,15],[40,0,42,5],[33,0,33,1],[30,0,30,1],[31,0,31,1],[19,0,19,1],[29,0,29,1],[22,0,22,1],[20,0,20,1],[45,7,45,13],[10,0,10,1],[27,0,27,1],[18,0,18,1],[21,0,21,1],[23,0,23,1],[24,0,24,1],[26,0,26,1],[28,0,28,1],[45,2,45,3],[45,5,45,6],[44,5,44,6],[44,2,44,3],[32,0,32,1],[11,0,11,1],[12,0,12,1]]}
[]
[]
["Owner/Farm Name",null,"Years Operated",null,"Total","Crop","Percentage Full Share",null,null,null,"Full Share Acres",null,null,null,"Rental Terms (cash rent/ac, lease term, etc.)","Cash Rent Per Acre","Cash Rent Paid"]
[null,null,"First","Last","Acres","Acres",null,2016,{"$f":"H4+1","v":2017},2018,2019,2020,2021,2022]
[null,null,null,{"$f":"IF(C5>0,(YEAR(NOW())+1),0)","v":0},null,null,null,{"$f":"IF($C5>0,IF(AND(H$4>=$C5,H$4<=$D5),$F5*$G5,0),0)","v":0},0,0,0,0,0,0,null,null,{"$f":"IFERROR(P5*N5,\"\")","v":0}]
[null,null,null,{"$f":"IF(C6>0,(YEAR(NOW())+1),0)","v":0},null,null,null,0,0,0,0,0,0,0,null,null,{"$f":"IFERROR(P6*N6,\"\")","v":0}]
[null,null,null,0,null,null,null,0,0,0,0,0,0,0,null,null,0]
[null,null,null,0,null,null,null,0,0,0,0,0,0,0,null,null,0]
[null,null,null,0,null,null,null,0,0,0,0,0,0,0,null,null,0]
[null,null,null,0,null,null,null,0,0,0,0,0,0,0,null,null,0]
[null,null,null,0,null,null,null,0,0,0,0,0,0,0,null,null,{"$f":"IFERROR(P11*N11,\"\")","v":0}]
[null,null,null,0,null,null,null,0,0,0,0,0,0,0,null,null,0]
[null,null,null,0,null,null,null,0,0,0,0,0,0,0,null,null,0]
[null,null,null,0,null,null,null,0,0,0,0,0,0,0,null,null,0]
[null,null,null,0,null,null,null,{"$f":"IF($C15>0,IF(AND(H$4>=$C15,H$4<=$D15),$F15*$G15,0),0)","v":0},0,0,0,0,0,0,null,null,0]
[null,null,null,0,null,null,null,0,{"$f":"IF($C16>0,IF(AND(I$4>=$C16,I$4<=$D16),$F16*$G16,0),0)","v":0},0,0,0,0,0,null,null,{"$f":"IFERROR(P16*N16,\"\")","v":0}]
[null,null,null,0,null,null,null,0,0,0,0,0,0,0,null,null,0]
[null,null,null,0,null,null,null,0,0,0,0,0,0,0,null,null,0]
[null,null,null,0,null,null,null,0,0,0,0,0,0,0,null,null,0]
[null,null,null,{"$f":"IF(C20>0,(YEAR(NOW())+1),0)","v":0},null,null,null,0,0,0,0,0,0,0,null,null,{"$f":"IFERROR(P20*N20,\"\")","v":0}]
[null,null,null,0,null,null,null,0,0,0,0,0,0,0,null,null,{"$f":"IFERROR(P21*N21,\"\")","v":0}]
[null,null,null,0,null,null,null,0,0,0,0,0,0,0,null,null,0]
[null,null,null,0,null,null,null,{"$f":"IF($C23>0,IF(AND(H$4>=$C23,H$4<=$D23),$F23*$G23,0),0)","v":0},0,0,0,0,0,0,null,null,{"$f":"IFERROR(P23*N23,\"\")","v":0}]
[null,null,null,0,null,null,null,0,0,0,0,0,0,0,null,null,0]
[null,null,null,{"$f":"IF(C25>0,(YEAR(NOW())+1),0)","v":0},null,null,null,0,0,0,0,0,0,0,null,null,{"$f":"IFERROR(P25*N25,\"\")","v":0}]
[null,null,null,{"$f":"IF(C26>0,(YEAR(NOW())+1),0)","v":0},null,null,null,0,0,0,0,0,0,0,"",null,{"$f":"IFERROR(P26*N26,\"\")","v":0}]
[null,null,null,0,null,null,null,0,0,0,0,0,0,0,null,null,0]
[null,null,null,0,null,null,null,0,0,0,0,0,0,0,null,null,0]
[null,null,null,0,null,null,null,0,0,0,0,0,0,0,null,null,{"$f":"IFERROR(P29*N29,\"\")","v":0}]
[null,null,null,{"$f":"IF(C30>0,(YEAR(NOW())+1),0)","v":0},null,null,null,0,0,0,0,0,0,0,null,null,{"$f":"IFERROR(P30*N30,\"\")","v":0}]
[null,null,null,{"$f":"IF(C31>0,(YEAR(NOW())+1),0)","v":0},null,null,null,0,0,0,0,0,0,0,null,null,{"$f":"IFERROR(P31*N31,\"\")","v":0}]
[null,null,null,{"$f":"IF(C32>0,(YEAR(NOW())+1),0)","v":0},null,null,null,0,0,0,0,0,0,0,null,null,{"$f":"IFERROR(P32*N32,\"\")","v":0}]
[null,null,null,0,null,null,null,0,0,0,0,0,0,0,null,null,0]
[null,null,null,{"$f":"IF(C34>0,(YEAR(NOW())+1),0)","v":0},null,null,null,0,0,0,0,0,0,0,"",null,{"$f":"IFERROR(P34*N34,\"\")","v":0}]
[null,null,null,{"$f":"IF(C35>0,(YEAR(NOW())+1),0)","v":0},null,null,null,0,0,0,0,0,0,0,"",null,{"$f":"IFERROR(P35*N35,\"\")","v":0}]
[]
[null,null,null,null,null,"TOTAL CROP ACRES",null,{"$f":"SUMIF(H5:H36,\">0\",$F5:$F36)","v":0},{"$f":"SUMIF(I5:I36,\">0\",$F5:$F36)","v":0},0,0,0,0,0,null,"Total Rent Paid:",{"$f":"SUM(Q5:Q33)","v":0}]
["COMMENTS",null,null,null,null,"TOTAL FULL SHARE ACRES",null,{"$f":"SUM(H5:H36)","v":0},{"$f":"SUM(I5:I36)","v":0},0,0,0,0,0,null,"Avg. Rent Per Acre:",{"$f":"IFERROR(Q37/N41, \"\")","v":""}]
["(Explain Flex Rent Lease)",null,null,null,null,null,null,null,null,null,null,null,"TOTAL SHARE ACRES",{"$f":"SUMIF(O5:O1048576,\"Share\",N5:N1048576)","v":0}]
["(Explain Custom Hire Agreement)",null,null,null,null,null,null,null,null,null,null,null,"TOTAL OWNED ACRES",{"$f":"SUMIF(O5:O1048576,\"Own\",N5:N1048576)","v":0}]
["COMMENTS",null,null,null,null,null,null,null,null,null,null,null,"TOTAL CASH RENT ACRES",{"$f":"SUMIF(O:O,\"Cash Rent\",N:N) + SUMIF(O:O,\"Flex Lease\",N:N)","v":0}]
[null,null,null,null,null,null,null,null,null,null,null,null,"CASH RENT:OWNED RATIO",{"$f":"IFERROR(N41/N40,\"\")","v":""}]
[]
[]
[null,null,"Branch #",null,null,null,null,null,null,null,"Borrower Name",null,null,null,"Date"]